Service Area,Service Division,Expense Type,Expense Code,Detailed Expense Type,Payment Date,Transaction Number,Amount Exc VAT,Supplier Name
Regeneration Economy and Growth,Culture Sport and Tourism,Premises,150015,Apportioned Exps of Operational Blds,03/10/2022,4051830-50609825,"1,732.55",ADT FIRE & SECURITY PLC.
Regeneration Economy and Growth,Culture Sport and Tourism,Premises,150015,Apportioned Exps of Operational Blds,03/10/2022,4051830-50609831,"2,398.00",ADT FIRE & SECURITY PLC.
Regeneration Economy and Growth,Culture Sport and Tourism,Premises,150015,Apportioned Exps of Operational Blds,03/10/2022,4051831-50375579,"2,720.88",ADT FIRE & SECURITY PLC.
Adult and Health Services,Head of Adults,Premises,150005,Apportioned Exps of Operational Blds,03/10/2022,4051923-JOB001/20774,650.00,COLIN JOBLING T/A RAINBOW INTERNATIONAL.
Regeneration Economy and Growth,Culture Sport and Tourism,Premises,150015,Apportioned Exps of Operational Blds,03/10/2022,4052022-413110710,"1,580.90",GAP GROUP LTD.
Neighbourhoods and Climate Change,Environmental Services,Premises,150015,Apportioned Exps of Operational Blds,03/10/2022,4052022-413110718,782.00,GAP GROUP LTD.
Neighbourhoods and Climate Change,Technical Services CM0300,Premises,150015,Apportioned Exps of Operational Blds,03/10/2022,4052022-413110721,782.00,GAP GROUP LTD.
Neighbourhoods and Climate Change,Technical Services CM0300,Premises,150015,Apportioned Exps of Operational Blds,03/10/2022,4052022-413110725,"1,150.00",GAP GROUP LTD.
Regeneration Economy and Growth,Transport and Contracted Services,Construction work A908,908201,Capital - Public Utilities - Electricity Services,03/10/2022,4052218-50062576,"1,640.00",NORTHERN POWERGRID (NORTHEAST) LTD.
Children and Young Peoples Services,Head of Childrens Social Care,Premises,106082,Centrally Controlled Rep and Maint,03/10/2022,4051830-50612460,"1,063.56",ADT FIRE & SECURITY PLC.
Children and Young Peoples Services,Head of Childrens Social Care,Premises,106082,Centrally Controlled Rep and Maint,03/10/2022,4051830-50612666,"2,368.00",ADT FIRE & SECURITY PLC.
Regeneration Economy and Growth,Culture Sport and Tourism,Premises,106082,Centrally Controlled Rep and Maint,03/10/2022,4051830-50616292,"1,364.06",ADT FIRE & SECURITY PLC.
Regeneration Economy and Growth,Culture Sport and Tourism,Premises,106080,Centrally Controlled Rep and Maint,03/10/2022,4052295-100591780,685.00,SCHNEIDER ELECTRIC LTD.
Regeneration Economy and Growth,Culture Sport and Tourism,Premises,145023,Cleaning and Domestic Supplies,03/10/2022,4052040-06/191820,804.94,GREENHAM TRADING LTD.
Resources BK0010,Digital Services,Vehicles Equipment Furniture and Fittings,912701,Computer equipment,03/10/2022,4052404-LC65124,"1,125.00",XMA LTD.
Regeneration Economy and Growth,Planning & Housing,Supplies and Services,342051,Computers and Communications,03/10/2022,4051848-9958015,"1,147.33",ANCHOR COMPUTER SYSTEMS LTD.
Neighbourhoods and Climate Change,Environmental Services,Supplies and Services,352001,Conference Expenses,03/10/2022,4052000-IN54554,"1,155.00",EMAP PUBLISHING LTD.
Regeneration Economy and Growth,Transport and Contracted Services,Construction work A908,908105,Construction work,03/10/2022,4052088-26897,"2,286.89",JACK COUPE & SONS LTD T/A COUPE LINE.
Regeneration Economy and Growth,Transport and Contracted Services,Construction work A908,908105,Construction work,03/10/2022,4052088-26898,"2,850.25",JACK COUPE & SONS LTD T/A COUPE LINE.
Regeneration Economy and Growth,Transport and Contracted Services,Construction work A908,908105,Construction work,03/10/2022,4052218-DI20392357,908.00,NORTHERN POWERGRID (NORTHEAST) LTD.
Neighbourhoods and Climate Change,Technical Services CM0300,Construction work A908,908105,Construction work,03/10/2022,4052218-DI20392429,"1,046.53",NORTHERN POWERGRID (NORTHEAST) LTD.
Regeneration Economy and Growth,Business Durham CL0850,Fees,901002,Professional fees 901002,03/10/2022,4051970-13272,"3,000.00",DPP ONE LTD.
Children and Young Peoples Services,Head of Education and Skills,Transport,230005,Contract Hire,03/10/2022,4051879-0601,863.00,BIRDS TAXIS LTD.
Children and Young Peoples Services,Head of Education and Skills,Transport,230006,Contract Hire,03/10/2022,4051915-1610,"2,681.00",CHEVRON TAXIS LTD.
Children and Young Peoples Services,Head of Education and Skills,Transport,230006,Contract Hire,03/10/2022,4051915-1638,"4,140.00",CHEVRON TAXIS LTD.
Children and Young Peoples Services,Head of Education and Skills,Transport,230006,Contract Hire,03/10/2022,4051915-1648,"2,660.00",CHEVRON TAXIS LTD.
Children and Young Peoples Services,Head of Education and Skills,Transport,230006,Contract Hire,03/10/2022,4051915-1681,"3,740.00",CHEVRON TAXIS LTD.
Children and Young Peoples Services,Head of Education and Skills,Transport,230006,Contract Hire,03/10/2022,4051915-1723,"2,808.00",CHEVRON TAXIS LTD.
Children and Young Peoples Services,Head of Education and Skills,Transport,230006,Contract Hire,03/10/2022,4051915-1764,"3,802.00",CHEVRON TAXIS LTD.
Children and Young Peoples Services,Head of Education and Skills,Transport,230006,Contract Hire,03/10/2022,4051915-1799,"1,774.00",CHEVRON TAXIS LTD.
Children and Young Peoples Services,Head of Education and Skills,Transport,230006,Contract Hire,03/10/2022,4051915-1833,"3,210.00",CHEVRON TAXIS LTD.
Children and Young Peoples Services,Head of Education and Skills,Transport,230006,Contract Hire,03/10/2022,4051915-1864,"2,568.00",CHEVRON TAXIS LTD.
Children and Young Peoples Services,Head of Childrens Social Care,Transport,230005,Contract Hire,03/10/2022,4051967-DH2229M,500.00,DH2 CABS.
Children and Young Peoples Services,Head of Childrens Social Care,Transport,230005,Contract Hire,03/10/2022,4051967-DH2229R,660.00,DH2 CABS.
Children and Young Peoples Services,Head of Childrens Social Care,Transport,230005,Contract Hire,03/10/2022,4051967-DH2230P,780.00,DH2 CABS.
Children and Young Peoples Services,Head of Childrens Social Care,Transport,230005,Contract Hire,03/10/2022,4051967-DH2231H,630.00,DH2 CABS.
Children and Young Peoples Services,Head of Childrens Social Care,Transport,230005,Contract Hire,03/10/2022,4051967-DH2236J,550.00,DH2 CABS.
Children and Young Peoples Services,Head of Childrens Social Care,Transport,230005,Contract Hire,03/10/2022,4051967-DH2236O,580.00,DH2 CABS.
Children and Young Peoples Services,Head of Childrens Social Care,Transport,230005,Contract Hire,03/10/2022,4051967-DH2236R,620.00,DH2 CABS.
Children and Young Peoples Services,Head of Childrens Social Care,Transport,230005,Contract Hire,03/10/2022,4051967-DH2236S,720.00,DH2 CABS.
Children and Young Peoples Services,Head of Childrens Social Care,Transport,230005,Contract Hire,03/10/2022,4051967-DH2236U,520.00,DH2 CABS.
Children and Young Peoples Services,Head of Education and Skills,Transport,230016,Contract Hire,03/10/2022,4052020-103033,"1,527.00",G & P JOHNSON LTD T/A NIGHTINGALE COACHES.
Children and Young Peoples Services,Head of Education and Skills,Transport,230008,Contract Hire,03/10/2022,4052020-103034,931.28,G & P JOHNSON LTD T/A NIGHTINGALE COACHES.
Children and Young Peoples Services,Head of Education and Skills,Transport,230008,Contract Hire,03/10/2022,4052020-103035,784.00,G & P JOHNSON LTD T/A NIGHTINGALE COACHES.
Children and Young Peoples Services,Head of Education and Skills,Transport,230008,Contract Hire,03/10/2022,4052020-103036,"1,676.64",G & P JOHNSON LTD T/A NIGHTINGALE COACHES.
Children and Young Peoples Services,Head of Education and Skills,Transport,230008,Contract Hire,03/10/2022,4052020-103037,"1,148.00",G & P JOHNSON LTD T/A NIGHTINGALE COACHES.
Children and Young Peoples Services,Head of Education and Skills,Transport,230008,Contract Hire,03/10/2022,4052020-103038,"1,246.00",G & P JOHNSON LTD T/A NIGHTINGALE COACHES.
Children and Young Peoples Services,Head of Education and Skills,Transport,230008,Contract Hire,03/10/2022,4052020-103040,728.00,G & P JOHNSON LTD T/A NIGHTINGALE COACHES.
Children and Young Peoples Services,Head of Education and Skills,Transport,230008,Contract Hire,03/10/2022,4052020-103041,"1,013.60",G & P JOHNSON LTD T/A NIGHTINGALE COACHES.
Children and Young Peoples Services,Head of Education and Skills,Transport,230008,Contract Hire,03/10/2022,4052020-103042,"1,148.00",G & P JOHNSON LTD T/A NIGHTINGALE COACHES.
Children and Young Peoples Services,Head of Education and Skills,Transport,230008,Contract Hire,03/10/2022,4052020-103043,"1,293.60",G & P JOHNSON LTD T/A NIGHTINGALE COACHES.
Adult and Health Services,Head of Adults,Transport,230005,Contract Hire,03/10/2022,4052020-103044,"2,093.70",G & P JOHNSON LTD T/A NIGHTINGALE COACHES.
Adult and Health Services,Head of Adults,Transport,230005,Contract Hire,03/10/2022,4052020-103045,"2,193.40",G & P JOHNSON LTD T/A NIGHTINGALE COACHES.
Adult and Health Services,Head of Adults,Transport,230005,Contract Hire,03/10/2022,4052020-103046,"1,422.00",G & P JOHNSON LTD T/A NIGHTINGALE COACHES.
Adult and Health Services,Head of Adults,Transport,230005,Contract Hire,03/10/2022,4052020-103047,"1,343.00",G & P JOHNSON LTD T/A NIGHTINGALE COACHES.
Adult and Health Services,Head of Adults,Transport,230005,Contract Hire,03/10/2022,4052020-103048,"2,071.65",G & P JOHNSON LTD T/A NIGHTINGALE COACHES.
Adult and Health Services,Head of Adults,Transport,230005,Contract Hire,03/10/2022,4052020-103049,"2,170.30",G & P JOHNSON LTD T/A NIGHTINGALE COACHES.
Adult and Health Services,Head of Adults,Transport,230005,Contract Hire,03/10/2022,4052020-103052,"3,088.14",G & P JOHNSON LTD T/A NIGHTINGALE COACHES.
Adult and Health Services,Head of Adults,Transport,230005,Contract Hire,03/10/2022,4052020-103053,"1,711.16",G & P JOHNSON LTD T/A NIGHTINGALE COACHES.
Adult and Health Services,Head of Adults,Transport,230005,Contract Hire,03/10/2022,4052020-103054,"2,002.00",G & P JOHNSON LTD T/A NIGHTINGALE COACHES.
Adult and Health Services,Head of Adults,Transport,230005,Contract Hire,03/10/2022,4052020-103055,"1,937.00",G & P JOHNSON LTD T/A NIGHTINGALE COACHES.
Adult and Health Services,Head of Adults,Transport,230005,Contract Hire,03/10/2022,4052020-103056,"1,952.00",G & P JOHNSON LTD T/A NIGHTINGALE COACHES.
Adult and Health Services,Head of Adults,Transport,230005,Contract Hire,03/10/2022,4052020-103057,"1,276.00",G & P JOHNSON LTD T/A NIGHTINGALE COACHES.
Adult and Health Services,Head of Adults,Transport,230005,Contract Hire,03/10/2022,4052020-103061,"1,973.00",G & P JOHNSON LTD T/A NIGHTINGALE COACHES.
Adult and Health Services,Head of Adults,Transport,230005,Contract Hire,03/10/2022,4052020-103062,"2,008.80",G & P JOHNSON LTD T/A NIGHTINGALE COACHES.
Adult and Health Services,Head of Adults,Transport,230005,Contract Hire,03/10/2022,4052020-103063,"1,264.00",G & P JOHNSON LTD T/A NIGHTINGALE COACHES.
Children and Young Peoples Services,Head of Education and Skills,Transport,230007,Contract Hire,03/10/2022,4052035-79127,"8,132.00",GO GATESHEAD LTD.
Children and Young Peoples Services,Head of Education and Skills,Transport,230007,Contract Hire,03/10/2022,4052118-2000-JAN22,950.00,KINGSWAY CABS LTD.
Children and Young Peoples Services,Head of Education and Skills,Transport,230007,Contract Hire,03/10/2022,4052118-2004,"1,144.00",KINGSWAY CABS LTD.
Children and Young Peoples Services,Head of Education and Skills,Transport,230034,Contract Hire,03/10/2022,4052118-2012,"1,350.00",KINGSWAY CABS LTD.
Children and Young Peoples Services,Head of Education and Skills,Transport,230034,Contract Hire,03/10/2022,4052142-354,"1,520.00",MACS TAXIS LTD.
Children and Young Peoples Services,Head of Education and Skills,Transport,230034,Contract Hire,03/10/2022,4052142-357,"1,200.00",MACS TAXIS LTD.
Children and Young Peoples Services,Head of Education and Skills,Transport,230008,Contract Hire,03/10/2022,4052278-009-SEPT22,"2,594.89",RONS TAXI (CHESTER LE ST).
Neighbourhoods and Climate Change,Environmental Services,Transport,230005,Contract Hire,03/10/2022,4052392-91944,923.30,WARREN ACCESS LTD.
Children and Young Peoples Services,Head of Education and Skills,Transport,230007,Contract Hire,03/10/2022,4052049-01-SEP22,"1,051.57",REDACTED - PAYMENT TO INDIVIDUAL
Adult and Health Services,Head of Adults,Transport,230005,Contract Hire,03/10/2022,4052049-12-SEP22,836.00,REDACTED - PAYMENT TO INDIVIDUAL
Children and Young Peoples Services,Head of Education and Skills,Transport,230007,Contract Hire,03/10/2022,4052235-00/01/1900,"2,220.00",REDACTED - PAYMENT TO INDIVIDUAL
Children and Young Peoples Services,Head of Education and Skills,Transport,230008,Contract Hire,03/10/2022,4052235-00/01/1900/M014,"2,652.20",REDACTED - PAYMENT TO INDIVIDUAL
Adult and Health Services,Public Health CC0450,Third Party Payments,460803,Contract Payments,03/10/2022,4051827-INV-1732,"16,333.35",ABL HEALTH LTD.
Adult and Health Services,Public Health CC0450,Third Party Payments,460803,Contract Payments,03/10/2022,4051827-INV-1733,"16,333.33",ABL HEALTH LTD.
Adult and Health Services,Public Health CC0450,Third Party Payments,460803,Contract Payments,03/10/2022,4051827-INV-1734,"16,333.33",ABL HEALTH LTD.
Neighbourhoods and Climate Change,Environmental Services,Third Party Payments,460305,Contract Payments,03/10/2022,4051905-430166,769.26,CARRS BILLINGTON AGRICULTURE.
Adult and Health Services,Public Health CC0450,Third Party Payments,460803,Contract Payments,03/10/2022,4052209-7310027358,"27,136.00",NHS NORTH OF ENGLAND CSU.
Adult and Health Services,Public Health CC0450,Third Party Payments,460803,Contract Payments,03/10/2022,4052388-1812093,"95,568.25",VOLUNTARY ORGANISATIONS NETWORK NORTH EAST (VONNE).
Adult and Health Services,Public Health CC0450,Third Party Payments,460803,Contract Payments,03/10/2022,4052216-3610053009,"72,884.50",NORTH TEES & HARTLEPOOL NHS FOUNDATION TRUST.
Neighbourhoods and Climate Change,Partnerships & Community Engagement Div.,Cap Exp on Grants & Other Financial Assistance (REFCUS),918004,Contributions to other bodies 918004,03/10/2022,4052039-VOUCHER21AB-DCTY015,"4,000.00",GO THE DISTANCE (GTD) CIC.
Neighbourhoods and Climate Change,Partnerships & Community Engagement Div.,Cap Exp on Grants & Other Financial Assistance (REFCUS),918004,Contributions to other bodies 918004,03/10/2022,4052070-VOUCHER22NB-3TWN0042NDINST,860.00,"HUNWICK COMMUNITY, SOCIAL & ENVIRONMENT GROUP."
Resources BK0010,Digital Services,Premises,120009,Energy Costs,03/10/2022,4052334-2803084419,"5,553.57",SUNDERLAND CITY COUNCIL.
Regeneration Economy and Growth,Corporate Property and Land,Supplies and Services,304221,Equipment and Materials,03/10/2022,4051840-175771,"11,497.76",ALBANY OFFICE EQUIPMENT (WHOLESALE) LTD.
Regeneration Economy and Growth,Corporate Property and Land,Supplies and Services,304221,Equipment and Materials,03/10/2022,4051840-175772,"15,527.33",ALBANY OFFICE EQUIPMENT (WHOLESALE) LTD.
Neighbourhoods and Climate Change,Technical Services CM0300,Supplies and Services,304358,Equipment and Materials,03/10/2022,4051858-0000037356,"1,820.00",AQUAJET DRAIN CLEANING LTD.
Regeneration Economy and Growth,Culture Sport and Tourism,Supplies and Services,304252,Equipment and Materials,03/10/2022,4051870-100136,509.40,BAILEYS BLINDS LTD.
Neighbourhoods and Climate Change,Environmental Services,Supplies and Services,304259,Equipment and Materials,03/10/2022,4051905-430167,"3,685.00",CARRS BILLINGTON AGRICULTURE.
Neighbourhoods and Climate Change,Environmental Services,Supplies and Services,304259,Equipment and Materials,03/10/2022,4051905-430184,"1,006.00",CARRS BILLINGTON AGRICULTURE.
Neighbourhoods and Climate Change,Environmental Services,Supplies and Services,304221,Equipment and Materials,03/10/2022,4051905-430743,"1,123.00",CARRS BILLINGTON AGRICULTURE.
Neighbourhoods and Climate Change,Environmental Services,Supplies and Services,304259,Equipment and Materials,03/10/2022,4052025-11038,"1,102.45",GB SPORT & LEISURE UK LTD.
Neighbourhoods and Climate Change,Technical Services CM0300,Supplies and Services,304358,Equipment and Materials,03/10/2022,4052029-80316,"1,000.00",GEORGE VARDY HAULAGE.
Neighbourhoods and Climate Change,Technical Services CM0300,Supplies and Services,304358,Equipment and Materials,03/10/2022,4052029-80317,"1,300.00",GEORGE VARDY HAULAGE.
Neighbourhoods and Climate Change,Technical Services CM0300,Supplies and Services,304358,Equipment and Materials,03/10/2022,4052029-80370,"1,000.00",GEORGE VARDY HAULAGE.
Neighbourhoods and Climate Change,Technical Services CM0300,Supplies and Services,304358,Equipment and Materials,03/10/2022,4052029-80544,596.38,GEORGE VARDY HAULAGE.
Neighbourhoods and Climate Change,Technical Services CM0300,Supplies and Services,304358,Equipment and Materials,03/10/2022,4052029-80545,"2,981.54",GEORGE VARDY HAULAGE.
Neighbourhoods and Climate Change,Environmental Services,Supplies and Services,304221,Equipment and Materials,03/10/2022,4052032-SI847743,"4,160.76",GLASDON UK LTD.
Neighbourhoods and Climate Change,Technical Services CM0300,Supplies and Services,304358,Equipment and Materials,03/10/2022,4052101-32131,"1,365.70",JOHN R BUTTERFIELD LTD.
Neighbourhoods and Climate Change,Environmental Services,Supplies and Services,304358,Equipment and Materials,03/10/2022,4052102-0000083755,"1,154.00",JOHN WADE (HAULAGE) LTD.
Regeneration Economy and Growth,Culture Sport and Tourism,Supplies and Services,304259,Equipment and Materials,03/10/2022,4052104-317325,810.75,JORDAN FITNESS LTD.
Regeneration Economy and Growth,Corporate Property and Land,Supplies and Services,304221,Equipment and Materials,03/10/2022,4052108-0213/00754840,"1,045.29",JT DOVE LTD.
Neighbourhoods and Climate Change,Technical Services CM0300,Supplies and Services,304358,Equipment and Materials,03/10/2022,4052114-4233,913.90,KEVIN SNOWDON GROUNDWORKS LTD.
Neighbourhoods and Climate Change,Technical Services CM0300,Supplies and Services,304358,Equipment and Materials,03/10/2022,4052114-4234,929.90,KEVIN SNOWDON GROUNDWORKS LTD.
Neighbourhoods and Climate Change,Technical Services CM0300,Supplies and Services,304358,Equipment and Materials,03/10/2022,4052114-4235,913.90,KEVIN SNOWDON GROUNDWORKS LTD.
Neighbourhoods and Climate Change,Technical Services CM0300,Supplies and Services,304358,Equipment and Materials,03/10/2022,4052114-4236,913.90,KEVIN SNOWDON GROUNDWORKS LTD.
Neighbourhoods and Climate Change,Technical Services CM0300,Supplies and Services,304358,Equipment and Materials,03/10/2022,4052114-4237,612.00,KEVIN SNOWDON GROUNDWORKS LTD.
Neighbourhoods and Climate Change,Technical Services CM0300,Supplies and Services,304358,Equipment and Materials,03/10/2022,4052114-4238,962.00,KEVIN SNOWDON GROUNDWORKS LTD.
Neighbourhoods and Climate Change,Technical Services CM0300,Supplies and Services,304358,Equipment and Materials,03/10/2022,4052114-4241,619.50,KEVIN SNOWDON GROUNDWORKS LTD.
Neighbourhoods and Climate Change,Technical Services CM0300,Supplies and Services,304358,Equipment and Materials,03/10/2022,4052114-4243,913.90,KEVIN SNOWDON GROUNDWORKS LTD.
Neighbourhoods and Climate Change,Technical Services CM0300,Supplies and Services,304358,Equipment and Materials,03/10/2022,4052114-4244,962.00,KEVIN SNOWDON GROUNDWORKS LTD.
Neighbourhoods and Climate Change,Technical Services CM0300,Supplies and Services,304358,Equipment and Materials,03/10/2022,4052114-4246,"1,309.50",KEVIN SNOWDON GROUNDWORKS LTD.
Neighbourhoods and Climate Change,Technical Services CM0300,Supplies and Services,304358,Equipment and Materials,03/10/2022,4052114-4247,"1,077.00",KEVIN SNOWDON GROUNDWORKS LTD.
Neighbourhoods and Climate Change,Technical Services CM0300,Supplies and Services,304358,Equipment and Materials,03/10/2022,4052114-4248,"1,077.00",KEVIN SNOWDON GROUNDWORKS LTD.
Neighbourhoods and Climate Change,Technical Services CM0300,Supplies and Services,304358,Equipment and Materials,03/10/2022,4052114-4249,"1,032.00",KEVIN SNOWDON GROUNDWORKS LTD.
Neighbourhoods and Climate Change,Technical Services CM0300,Supplies and Services,304358,Equipment and Materials,03/10/2022,4052114-4250,"1,077.00",KEVIN SNOWDON GROUNDWORKS LTD.
Neighbourhoods and Climate Change,Technical Services CM0300,Supplies and Services,304358,Equipment and Materials,03/10/2022,4052114-4251,"1,309.50",KEVIN SNOWDON GROUNDWORKS LTD.
Neighbourhoods and Climate Change,Technical Services CM0300,Supplies and Services,304358,Equipment and Materials,03/10/2022,4052114-4252,"1,077.00",KEVIN SNOWDON GROUNDWORKS LTD.
Neighbourhoods and Climate Change,Technical Services CM0300,Supplies and Services,304358,Equipment and Materials,03/10/2022,4052114-4253,"1,309.50",KEVIN SNOWDON GROUNDWORKS LTD.
Neighbourhoods and Climate Change,Technical Services CM0300,Supplies and Services,304358,Equipment and Materials,03/10/2022,4052114-4254,"1,077.00",KEVIN SNOWDON GROUNDWORKS LTD.
Neighbourhoods and Climate Change,Technical Services CM0300,Supplies and Services,304358,Equipment and Materials,03/10/2022,4052114-4255,"1,077.00",KEVIN SNOWDON GROUNDWORKS LTD.
Neighbourhoods and Climate Change,Technical Services CM0300,Supplies and Services,304358,Equipment and Materials,03/10/2022,4052114-4256,"1,077.00",KEVIN SNOWDON GROUNDWORKS LTD.
Neighbourhoods and Climate Change,Technical Services CM0300,Supplies and Services,304358,Equipment and Materials,03/10/2022,4052114-4257,"1,163.55",KEVIN SNOWDON GROUNDWORKS LTD.
Neighbourhoods and Climate Change,Technical Services CM0300,Supplies and Services,304358,Equipment and Materials,03/10/2022,4052114-4258,963.30,KEVIN SNOWDON GROUNDWORKS LTD.
Neighbourhoods and Climate Change,Technical Services CM0300,Supplies and Services,304358,Equipment and Materials,03/10/2022,4052114-4259,963.30,KEVIN SNOWDON GROUNDWORKS LTD.
Neighbourhoods and Climate Change,Technical Services CM0300,Supplies and Services,304358,Equipment and Materials,03/10/2022,4052114-4261,950.95,KEVIN SNOWDON GROUNDWORKS LTD.
Neighbourhoods and Climate Change,Technical Services CM0300,Supplies and Services,304358,Equipment and Materials,03/10/2022,4052114-4262,"1,164.55",KEVIN SNOWDON GROUNDWORKS LTD.
Neighbourhoods and Climate Change,Technical Services CM0300,Supplies and Services,304358,Equipment and Materials,03/10/2022,4052114-4263,950.95,KEVIN SNOWDON GROUNDWORKS LTD.
Neighbourhoods and Climate Change,Technical Services CM0300,Supplies and Services,304358,Equipment and Materials,03/10/2022,4052114-4264,"1,164.55",KEVIN SNOWDON GROUNDWORKS LTD.
Neighbourhoods and Climate Change,Technical Services CM0300,Supplies and Services,304358,Equipment and Materials,03/10/2022,4052114-4265,950.95,KEVIN SNOWDON GROUNDWORKS LTD.
Neighbourhoods and Climate Change,Technical Services CM0300,Supplies and Services,304358,Equipment and Materials,03/10/2022,4052114-4266,950.95,KEVIN SNOWDON GROUNDWORKS LTD.
Neighbourhoods and Climate Change,Technical Services CM0300,Supplies and Services,304358,Equipment and Materials,03/10/2022,4052114-4267,950.95,KEVIN SNOWDON GROUNDWORKS LTD.
Regeneration Economy and Growth,Corporate Property and Land,Supplies and Services,304221,Equipment and Materials,03/10/2022,4052128-00028888,"13,265.00",LESTER CONTROL SYSTEMS LTD.
Regeneration Economy and Growth,Corporate Property and Land,Supplies and Services,304221,Equipment and Materials,03/10/2022,4052219-873462,"1,955.00",NORTHERN TOOLS & ACCESSORIES.
Resources BK0010,Digital Services,Supplies and Services,304252,Equipment and Materials,03/10/2022,4052259-92915546,"2,000.00",QUADIENT FINANCE UK LTD FORMERLY NEOPOST LTD.
Neighbourhoods and Climate Change,Technical Services CM0300,Supplies and Services,304358,Equipment and Materials,03/10/2022,4052284-3306,771.40,S & R LANDSCAPES.
Neighbourhoods and Climate Change,Technical Services CM0300,Supplies and Services,304358,Equipment and Materials,03/10/2022,4052284-3371,765.80,S & R LANDSCAPES.
Neighbourhoods and Climate Change,Technical Services CM0300,Supplies and Services,304358,Equipment and Materials,03/10/2022,4052284-3372,949.40,S & R LANDSCAPES.
Neighbourhoods and Climate Change,Technical Services CM0300,Supplies and Services,304358,Equipment and Materials,03/10/2022,4052284-3380,"1,005.80",S & R LANDSCAPES.
Neighbourhoods and Climate Change,Technical Services CM0300,Supplies and Services,304358,Equipment and Materials,03/10/2022,4052284-3381,864.00,S & R LANDSCAPES.
Neighbourhoods and Climate Change,Technical Services CM0300,Supplies and Services,304358,Equipment and Materials,03/10/2022,4052284-3394,690.00,S & R LANDSCAPES.
Neighbourhoods and Climate Change,Technical Services CM0300,Supplies and Services,304358,Equipment and Materials,03/10/2022,4052284-3397,"1,051.40",S & R LANDSCAPES.
Regeneration Economy and Growth,Corporate Property and Land,Supplies and Services,304221,Equipment and Materials,03/10/2022,4052307-0000143757,"1,953.00",SHORTS INDUSTRIES LTD T/A SHORTS LIFTS.
Neighbourhoods and Climate Change,Technical Services CM0300,Supplies and Services,304221,Equipment and Materials,03/10/2022,4052337-INV-0483,630.00,SUPAMOLE DIRECTIONAL DRILLING SPECIALISTS.
Regeneration Economy and Growth,Corporate Property and Land,Supplies and Services,304221,Equipment and Materials,03/10/2022,4052340-873390,"1,548.22",T CROSSLING & CO LTD.
Neighbourhoods and Climate Change,Technical Services CM0300,Supplies and Services,304221,Equipment and Materials,03/10/2022,4052363-38734,670.00,TODDS HIGHWAY MAINTENANCE LTD.
Neighbourhoods and Climate Change,Technical Services CM0300,Supplies and Services,304221,Equipment and Materials,03/10/2022,4052363-38735,640.00,TODDS HIGHWAY MAINTENANCE LTD.
Neighbourhoods and Climate Change,Technical Services CM0300,Supplies and Services,304221,Equipment and Materials,03/10/2022,4052365-111631,"1,300.00",TOTAL RENTAL SOLUTIONS LTD.
Regeneration Economy and Growth,Corporate Property and Land,Supplies and Services,304221,Equipment and Materials,03/10/2022,4052375-04034014,920.72,UK ELECTRIC LTD.*
Neighbourhoods and Climate Change,Environmental Services,Supplies and Services,304358,Equipment and Materials,03/10/2022,4052389-51080,710.00,W MARLEY AGRICULTURAL CONTRACTORS LTD.
Regeneration Economy and Growth,Corporate Property and Land,Supplies and Services,304221,Equipment and Materials,03/10/2022,4052402-20985656E,846.50,WINDCREST LIFTBITS LTD.
Neighbourhoods and Climate Change,Technical Services CM0300,Supplies and Services,304221,Equipment and Materials,03/10/2022,4051842-13903,"3,200.00",ALSTON NATURAL STONE LTD.
Regeneration Economy and Growth,Corporate Property and Land,Supplies and Services,304221,Equipment and Materials,03/10/2022,4052068-A38/0156336,"2,052.17",HOWDENS JOINERY LTD.
Resources BK0010,Digital Services,Supplies and Services,304303,Equipment and Materials,03/10/2022,4052252-11326,875.00,PIONEER DIGITAL SOLUTIONS LTD.
Regeneration Economy and Growth,Corporate Property and Land,Supplies and Services,304221,Equipment and Materials,03/10/2022,4052294-514008434,909.74,SCHINDLER LTD.
Neighbourhoods and Climate Change,Community Protection,Supplies and Services,304259,Equipment and Materials,03/10/2022,4052313-SI22005575,994.25,SOLON SECURITY LTD.
Regeneration Economy and Growth,Planning & Housing,Supplies and Services,308011,Furniture,03/10/2022,4051939-RLS0039,"6,011.00",COUNTY DURHAM FURNITURE HELP SCHEME (CDFHS).
Children and Young Peoples Services,Head of Education and Skills,Supplies and Services,308011,Furniture,03/10/2022,4052093-242080,895.00,JENX LTD.
Children and Young Peoples Services,Head of Education and Skills,Supplies and Services,384199,Miscellaneous Expenses,03/10/2022,4051955-98072806,544.21,DAVIES SPORTS.
Neighbourhoods and Climate Change,Environmental Services,Supplies and Services,384199,Miscellaneous Expenses,03/10/2022,4052072-3041,"11,165.00",IAN C LIDDLE T/A IC LIDDLE SERVICES.
Children and Young Peoples Services,Head of Early Help Inclusion & Vulnerable Children.,Supplies and Services,384409,Miscellaneous Expenses,03/10/2022,4052111-1226,"10,400.00",KALMA LIFE NORTH DURHAM & GATESHEAD WEST.
Regeneration Economy and Growth,Corporate Property and Land,Supplies and Services,384199,Miscellaneous Expenses,03/10/2022,4052152-2098/0273BEDLINGTONACADEMY,"38,747.27",MGL DEMOLITION LTD.
Neighbourhoods and Climate Change,Partnerships & Community Engagement Div.,Supplies and Services,384086,Miscellaneous Expenses,03/10/2022,4052202-VOUCHERADCR05-22,900.00,MURTON COLLIERY BANNER GROUP.
Adult and Health Services,Public Health CC0450,Supplies and Services,384155,Miscellaneous Expenses,03/10/2022,4052208-10000074628,"60,172.85",NHS BUSINESS SERVICES AUTHORITY (NHSBSA).
Children and Young Peoples Services,Head of Childrens Social Care,Supplies and Services,384500,Miscellaneous Expenses,03/10/2022,4052212-3571,"2,500.00",NORTH EAST ADOPTION THERAPY SERVICES LTD (NEATS).
Children and Young Peoples Services,Head of Education and Skills,Supplies and Services,384199,Miscellaneous Expenses,03/10/2022,4052227-INV-0924,"1,386.68",OPTIMUM SKILLS LTD.
Children and Young Peoples Services,Head of Education and Skills,Supplies and Services,384199,Miscellaneous Expenses,03/10/2022,4052227-INV-0925,571.43,OPTIMUM SKILLS LTD.
Regeneration Economy and Growth,Culture Sport and Tourism,Supplies and Services,384199,Miscellaneous Expenses,03/10/2022,4052308-185707,796.72,SHOWSEC INTERNATIONAL LTD.
Regeneration Economy and Growth,Culture Sport and Tourism,Supplies and Services,384199,Miscellaneous Expenses,03/10/2022,4052308-185708,"11,661.44",SHOWSEC INTERNATIONAL LTD.
Regeneration Economy and Growth,Culture Sport and Tourism,Supplies and Services,384199,Miscellaneous Expenses,03/10/2022,4052308-185709,"10,623.42",SHOWSEC INTERNATIONAL LTD.
Regeneration Economy and Growth,Culture Sport and Tourism,Supplies and Services,384199,Miscellaneous Expenses,03/10/2022,4052308-185710,"11,136.35",SHOWSEC INTERNATIONAL LTD.
Regeneration Economy and Growth,Culture Sport and Tourism,Supplies and Services,384199,Miscellaneous Expenses,03/10/2022,4052308-185711,522.12,SHOWSEC INTERNATIONAL LTD.
Regeneration Economy and Growth,Culture Sport and Tourism,Supplies and Services,384199,Miscellaneous Expenses,03/10/2022,4052308-185712,"11,072.76",SHOWSEC INTERNATIONAL LTD.
Regeneration Economy and Growth,Culture Sport and Tourism,Supplies and Services,384199,Miscellaneous Expenses,03/10/2022,4052308-185713,861.84,SHOWSEC INTERNATIONAL LTD.
Regeneration Economy and Growth,Culture Sport and Tourism,Supplies and Services,384199,Miscellaneous Expenses,03/10/2022,4052308-185714,881.98,SHOWSEC INTERNATIONAL LTD.
Regeneration Economy and Growth,Culture Sport and Tourism,Supplies and Services,384199,Miscellaneous Expenses,03/10/2022,4052308-185715,"11,773.42",SHOWSEC INTERNATIONAL LTD.
Regeneration Economy and Growth,Culture Sport and Tourism,Supplies and Services,384199,Miscellaneous Expenses,03/10/2022,4052308-185716,"12,302.76",SHOWSEC INTERNATIONAL LTD.
Children and Young Peoples Services,Head of Childrens Social Care,Supplies and Services,384302,Miscellaneous Expenses,03/10/2022,4052446-0443,"1,000.00",WORLD ALTERNATIVE EDUCATION LTD.
Children and Young Peoples Services,Head of Early Help Inclusion & Vulnerable Children.,Supplies and Services,384409,Miscellaneous Expenses,03/10/2022,4051853-299,"18,000.00",REDACTED - PAYMENT TO INDIVIDUAL
Regeneration Economy and Growth,Culture Sport and Tourism,Supplies and Services,384540,Miscellaneous Expenses,03/10/2022,4052103-KILLHOPE,843.93,REDACTED - PAYMENT TO INDIVIDUAL
Regeneration Economy and Growth,Transport and Contracted Services,Supplies and Services,384899,Miscellaneous Expenses,03/10/2022,4051983-015A,"25,000.00",DURHAM CITY SHOPMOBILITY.
Neighbourhoods and Climate Change,Partnerships & Community Engagement Div.,Supplies and Services,384086,Miscellaneous Expenses,03/10/2022,4052300-VOUCHERQUIJ07-22,900.00,SECONDS OUT BOXING ACADEMY..
Regeneration Economy and Growth,Culture Sport and Tourism,Supplies and Services,312013,Newspapers books and periodicals E312,03/10/2022,4051867-6758165,616.15,ASKEWS & HOLTS LIBRARY SERVICES LTD.
Regeneration Economy and Growth,Culture Sport and Tourism,Supplies and Services,312013,Newspapers books and periodicals E312,03/10/2022,4051867-6758234,748.90,ASKEWS & HOLTS LIBRARY SERVICES LTD.
Regeneration Economy and Growth,Culture Sport and Tourism,Supplies and Services,312013,Newspapers books and periodicals E312,03/10/2022,4051867-6758235,561.35,ASKEWS & HOLTS LIBRARY SERVICES LTD.
Regeneration Economy and Growth,Culture Sport and Tourism,Supplies and Services,312013,Newspapers books and periodicals E312,03/10/2022,4051867-6760338,658.29,ASKEWS & HOLTS LIBRARY SERVICES LTD.
Regeneration Economy and Growth,Culture Sport and Tourism,Supplies and Services,312013,Newspapers books and periodicals E312,03/10/2022,4051867-6760339,503.52,ASKEWS & HOLTS LIBRARY SERVICES LTD.
Regeneration Economy and Growth,Culture Sport and Tourism,Supplies and Services,312013,Newspapers books and periodicals E312,03/10/2022,4051867-6764092,762.55,ASKEWS & HOLTS LIBRARY SERVICES LTD.
Children and Young Peoples Services,Head of Education and Skills,Third Party Payments,440999,Other third party payments E440,03/10/2022,4052047-CL-LOT1A-2021-22,"14,040.00",HANDCRAFTED PROJECTS.
Children and Young Peoples Services,Head of Childrens Social Care,Third Party Payments,440046,Other third party payments E440,03/10/2022,4052144-24146,"1,014.35",MAJOR RECRUITMENT LTD.
Children and Young Peoples Services,Head of Childrens Social Care,Third Party Payments,440046,Other third party payments E440,03/10/2022,4052144-24193,"13,033.47",MAJOR RECRUITMENT LTD.
Children and Young Peoples Services,Head of Childrens Social Care,Third Party Payments,440046,Other third party payments E440,03/10/2022,4052144-24249,"9,908.06",MAJOR RECRUITMENT LTD.
Children and Young Peoples Services,Head of Childrens Social Care,Third Party Payments,440046,Other third party payments E440,03/10/2022,4052144-24296,648.62,MAJOR RECRUITMENT LTD.
Children and Young Peoples Services,Head of Childrens Social Care,Third Party Payments,440046,Other third party payments E440,03/10/2022,4052144-24301,"2,667.84",MAJOR RECRUITMENT LTD.
Children and Young Peoples Services,Head of Childrens Social Care,Third Party Payments,440046,Other third party payments E440,03/10/2022,4052144-24303,"14,433.20",MAJOR RECRUITMENT LTD.
Children and Young Peoples Services,Head of Childrens Social Care,Third Party Payments,440046,Other third party payments E440,03/10/2022,4052144-24350,"6,316.08",MAJOR RECRUITMENT LTD.
Children and Young Peoples Services,Head of Childrens Social Care,Third Party Payments,440046,Other third party payments E440,03/10/2022,4052144-24351,"2,334.36",MAJOR RECRUITMENT LTD.
Children and Young Peoples Services,Head of Childrens Social Care,Third Party Payments,440046,Other third party payments E440,03/10/2022,4052429-12893,"24,864.00",MOONRISE 24HR RECRUITMENT LTD.
Children and Young Peoples Services,Head of Childrens Social Care,Third Party Payments,440046,Other third party payments E440,03/10/2022,4052429-12935,"7,254.00",MOONRISE 24HR RECRUITMENT LTD.
Children and Young Peoples Services,Head of Childrens Social Care,Third Party Payments,440046,Other third party payments E440,03/10/2022,4052429-12994,"14,045.00",MOONRISE 24HR RECRUITMENT LTD.
Children and Young Peoples Services,Head of Childrens Social Care,Third Party Payments,440046,Other third party payments E440,03/10/2022,4052429-13011,"6,014.50",MOONRISE 24HR RECRUITMENT LTD.
Children and Young Peoples Services,Head of Childrens Social Care,Third Party Payments,440046,Other third party payments E440,03/10/2022,4052429-13027,"25,557.85",MOONRISE 24HR RECRUITMENT LTD.
Children and Young Peoples Services,Head of Childrens Social Care,Third Party Payments,440046,Other third party payments E440,03/10/2022,4052438-1037,"44,533.16",PROTECTIVE CARE GROUP LTD.
Children and Young Peoples Services,Head of Childrens Social Care,Third Party Payments,440046,Other third party payments E440,03/10/2022,4052438-1038,"51,144.70",PROTECTIVE CARE GROUP LTD.
Children and Young Peoples Services,Head of Education and Skills,Supplies and Services,340001,Postages E340,03/10/2022,4052279-9065736736,"13,455.09",ROYAL MAIL GROUP PLC.
Resources BK0010,Digital Services,Supplies and Services,332029,Printing Stationery and Gen Off Exps,03/10/2022,4052254-709457,"3,750.00",POTTS PRINTERS LTD.
Resources BK0010,Digital Services,Supplies and Services,332029,Printing Stationery and Gen Off Exps,03/10/2022,4052037-DM6604,"2,250.00",GO PRODUCTIONS LTD T/A DOCKLANDS MEDIA.
Regeneration Economy and Growth,Culture Sport and Tourism,Supplies and Services,324001,Provisions E324,03/10/2022,4052182-906771839,"1,684.41",MOLSON COORS BREWING COMPANY (UK) LTD.
Children and Young Peoples Services,Head of Education and Skills,Transport,235005,Public Transport,03/10/2022,4052322-40435,537.00,STANLEY TRAVEL (NORTH EAST) LTD.
Adult and Health Services,Head of Adults,Third Party Payments,472101,Purchase of Care,03/10/2022,4051856-I-22-5725116,923.00,APM CLEANING LTD.
Regeneration Economy and Growth,Corporate Property and Land,Third Party Payments,430100,Rendered by Private Contractors,03/10/2022,4051907-10063,"2,633.92",CATHEDRAL LOCK & SAFE SERVICES LTD.
Regeneration Economy and Growth,Corporate Property and Land,Third Party Payments,430100,Rendered by Private Contractors,03/10/2022,4051907-10064,"1,170.98",CATHEDRAL LOCK & SAFE SERVICES LTD.
Regeneration Economy and Growth,Corporate Property and Land,Third Party Payments,430100,Rendered by Private Contractors,03/10/2022,4051909-711,"1,522.80",CEILINGS DIRECT LTD.
Neighbourhoods and Climate Change,Technical Services CM0300,Third Party Payments,430100,Rendered by Private Contractors,03/10/2022,4052058-3441-SEPT2022,"4,776.00",HIGHWAY CONSTRUCTION SERVICES LTD.
Neighbourhoods and Climate Change,Technical Services CM0300,Third Party Payments,430100,Rendered by Private Contractors,03/10/2022,4052058-3442,"3,184.00",HIGHWAY CONSTRUCTION SERVICES LTD.
Regeneration Economy and Growth,Corporate Property and Land,Third Party Payments,430100,Rendered by Private Contractors,03/10/2022,4052078-13083,616.50,INGLEFORD SCAFFOLDING LTD.
Neighbourhoods and Climate Change,Technical Services CM0300,Third Party Payments,430100,Rendered by Private Contractors,03/10/2022,4052088-26901,712.14,JACK COUPE & SONS LTD T/A COUPE LINE.
Neighbourhoods and Climate Change,Technical Services CM0300,Third Party Payments,430100,Rendered by Private Contractors,03/10/2022,4052088-26903,"2,587.70",JACK COUPE & SONS LTD T/A COUPE LINE.
Neighbourhoods and Climate Change,Technical Services CM0300,Third Party Payments,430100,Rendered by Private Contractors,03/10/2022,4052088-26917,"2,292.10",JACK COUPE & SONS LTD T/A COUPE LINE.
Neighbourhoods and Climate Change,Technical Services CM0300,Third Party Payments,430100,Rendered by Private Contractors,03/10/2022,4052088-26918,"2,400.10",JACK COUPE & SONS LTD T/A COUPE LINE.
Neighbourhoods and Climate Change,Technical Services CM0300,Third Party Payments,430100,Rendered by Private Contractors,03/10/2022,4052088-26919,"1,407.65",JACK COUPE & SONS LTD T/A COUPE LINE.
Neighbourhoods and Climate Change,Technical Services CM0300,Third Party Payments,430100,Rendered by Private Contractors,03/10/2022,4052088-26920,726.90,JACK COUPE & SONS LTD T/A COUPE LINE.
Neighbourhoods and Climate Change,Technical Services CM0300,Third Party Payments,430100,Rendered by Private Contractors,03/10/2022,4052088-26923,"1,294.26",JACK COUPE & SONS LTD T/A COUPE LINE.
Neighbourhoods and Climate Change,Technical Services CM0300,Third Party Payments,430100,Rendered by Private Contractors,03/10/2022,4052116-220303,"545,001.87",KIELY BROS LTD.
Neighbourhoods and Climate Change,Environmental Services,Third Party Payments,430100,Rendered by Private Contractors,03/10/2022,4052117-SI02-0369938,845.00,KILLGERM CHEMICALS LTD.
Neighbourhoods and Climate Change,Community Protection,Third Party Payments,430100,Rendered by Private Contractors,03/10/2022,4052217-250004387,900.00,NORTH YORKSHIRE COUNTY COUNCIL.
Regeneration Economy and Growth,Corporate Property and Land,Third Party Payments,430100,Rendered by Private Contractors,03/10/2022,4052238-320675,"3,325.00",PEART FENCING LTD.
Neighbourhoods and Climate Change,Technical Services CM0300,Third Party Payments,430100,Rendered by Private Contractors,03/10/2022,4052261-14422,"4,083.20",QUANTUM POWER CONNECTIONS LTD.
Neighbourhoods and Climate Change,Technical Services CM0300,Third Party Payments,430100,Rendered by Private Contractors,03/10/2022,4052261-14423,"1,429.12",QUANTUM POWER CONNECTIONS LTD.
Regeneration Economy and Growth,Corporate Property and Land,Third Party Payments,430100,Rendered by Private Contractors,03/10/2022,4052286-7040,"9,390.00",SAFE STRIP UK LTD.
Regeneration Economy and Growth,Corporate Property and Land,Third Party Payments,430100,Rendered by Private Contractors,03/10/2022,4052391-7773,932.03,WARREN (ELECTRICAL) LTD.
Regeneration Economy and Growth,Corporate Property and Land,Third Party Payments,430100,Rendered by Private Contractors,03/10/2022,4052197-DCC250,"1,500.00",REDACTED - PAYMENT TO INDIVIDUAL
Regeneration Economy and Growth,Corporate Property and Land,Third Party Payments,430100,Rendered by Private Contractors,03/10/2022,4052197-DCC251,"1,500.00",REDACTED - PAYMENT TO INDIVIDUAL
Regeneration Economy and Growth,Corporate Property and Land,Third Party Payments,430100,Rendered by Private Contractors,03/10/2022,4052197-DCC252,"1,200.00",REDACTED - PAYMENT TO INDIVIDUAL
Regeneration Economy and Growth,Corporate Property and Land,Third Party Payments,430100,Rendered by Private Contractors,03/10/2022,4052197-DCC254,"1,500.00",REDACTED - PAYMENT TO INDIVIDUAL
Regeneration Economy and Growth,Corporate Property and Land,Third Party Payments,430100,Rendered by Private Contractors,03/10/2022,4052197-DCC255,"1,200.00",REDACTED - PAYMENT TO INDIVIDUAL
Neighbourhoods and Climate Change,Environmental Services,Third Party Payments,430100,Rendered by Private Contractors,03/10/2022,4052214-909822,860.00,NORTH EAST MOTOR SALVAGE LTD.
Children and Young Peoples Services,Head of Childrens Social Care,Third Party Payments,425040,Rendered by Voluntary Organisations,03/10/2022,4052422-PIG_141523,"6,295.08",FUTURES FOR CHILDREN LTD.
Neighbourhoods and Climate Change,Environmental Services,Transport,215005,Running Costs of Vehicles,03/10/2022,4052409-1003940,"17,068.80",YOUR NRG LTD.
Regeneration Economy and Growth,Corporate Property and Land,Premises,108099,Service Repairs and Maintenance,03/10/2022,4051828-398,"7,728.60",ACROL AIR CONDITIONING CO LTD.
Regeneration Economy and Growth,Corporate Property and Land,Premises,108099,Service Repairs and Maintenance,03/10/2022,4051830-50385081,664.00,ADT FIRE & SECURITY PLC.
Regeneration Economy and Growth,Corporate Property and Land,Premises,108099,Service Repairs and Maintenance,03/10/2022,4051831-50174227,"2,026.00",ADT FIRE & SECURITY PLC.
Regeneration Economy and Growth,Corporate Property and Land,Premises,108099,Service Repairs and Maintenance,03/10/2022,4051907-10047,538.72,CATHEDRAL LOCK & SAFE SERVICES LTD.
Regeneration Economy and Growth,Corporate Property and Land,Premises,108099,Service Repairs and Maintenance,03/10/2022,4052328-20602,808.05,STONE TECHNICAL SERVICES LTD.
Regeneration Economy and Growth,Corporate Property and Land,Premises,108099,Service Repairs and Maintenance,03/10/2022,4052257-OP/I007912,"1,725.00",PROTEC CAMERFIELD LTD.
Children and Young Peoples Services,Head of Childrens Social Care,Supplies and Services,338044,Services,03/10/2022,4051832-CJ1270922,"3,738.50",ADVANCED CHILD CARE ASSESSMENTS LTD.
Children and Young Peoples Services,Head of Childrens Social Care,Supplies and Services,338044,Services,03/10/2022,4051832-KT440722,"1,938.60",ADVANCED CHILD CARE ASSESSMENTS LTD.
Children and Young Peoples Services,Head of Childrens Social Care,Supplies and Services,338044,Services,03/10/2022,4051832-MWCJ530622,"3,986.30",ADVANCED CHILD CARE ASSESSMENTS LTD.
Children and Young Peoples Services,Head of Childrens Social Care,Supplies and Services,338044,Services,03/10/2022,4051832-MWDL1020622,693.65,ADVANCED CHILD CARE ASSESSMENTS LTD.
Children and Young Peoples Services,Childrens Services Operational Support,Supplies and Services,338026,Services,03/10/2022,4051855-APD036,999.00,AP & D CONSULTANCY.
Adult and Health Services,Head of Adults,Supplies and Services,338366,Services,03/10/2022,4051901-86379,"1,181.09",CARE ABILITY HEALTHCARE LTD.
Adult and Health Services,Head of Adults,Supplies and Services,338366,Services,03/10/2022,4051901-86380,827.80,CARE ABILITY HEALTHCARE LTD.
Adult and Health Services,Head of Adults,Supplies and Services,338366,Services,03/10/2022,4051901-86381,"1,181.09",CARE ABILITY HEALTHCARE LTD.
Adult and Health Services,Head of Adults,Supplies and Services,338366,Services,03/10/2022,4051901-86427,586.71,CARE ABILITY HEALTHCARE LTD.
Resources BK0010,Transactional & Customer Services,Supplies and Services,338066,Services,03/10/2022,4051919-C/BN251812,928.22,CIVICA UK LTD.
Adult and Health Services,Head of Adults,Supplies and Services,338429,Services,03/10/2022,4051923-JOB001/20773,625.00,COLIN JOBLING T/A RAINBOW INTERNATIONAL.
Resources BK0010,Legal & Democratic Services,Supplies and Services,338042,Services,03/10/2022,4051963-364970/INVAD0138,725.00,DERE STREET BARRISTERS.
Resources BK0010,Legal & Democratic Services,Supplies and Services,338042,Services,03/10/2022,4051963-364970/INVLHA161,"2,300.00",DERE STREET BARRISTERS.
Resources BK0010,Legal & Democratic Services,Supplies and Services,338042,Services,03/10/2022,4051963-368283/INVADO140,"1,440.00",DERE STREET BARRISTERS.
Resources BK0010,Legal & Democratic Services,Supplies and Services,338042,Services,03/10/2022,4051963-368796/INVEMC529,"2,475.00",DERE STREET BARRISTERS.
Resources BK0010,Legal & Democratic Services,Supplies and Services,338042,Services,03/10/2022,4051963-369730/INVAD0141,"3,575.00",DERE STREET BARRISTERS.
Resources BK0010,Legal & Democratic Services,Supplies and Services,338042,Services,03/10/2022,4051963-370634/INVJAH201,550.00,DERE STREET BARRISTERS.
Resources BK0010,Legal & Democratic Services,Supplies and Services,338042,Services,03/10/2022,4051963-372778/INVLD88,"1,750.00",DERE STREET BARRISTERS.
Resources BK0010,Legal & Democratic Services,Supplies and Services,338042,Services,03/10/2022,4051963-374283/INVSPA476,775.00,DERE STREET BARRISTERS.
Resources BK0010,Legal & Democratic Services,Supplies and Services,338042,Services,03/10/2022,4051963-374464/INVSP12,"1,075.00",DERE STREET BARRISTERS.
Resources BK0010,Legal & Democratic Services,Supplies and Services,338042,Services,03/10/2022,4051963-375409/INVEMC526,875.00,DERE STREET BARRISTERS.
Resources BK0010,Legal & Democratic Services,Supplies and Services,338042,Services,03/10/2022,4051963-375683/INVRC88,600.00,DERE STREET BARRISTERS.
Regeneration Economy and Growth,Culture Sport and Tourism,Supplies and Services,338047,Services,03/10/2022,4052006-ECAMB1621,"1,135.52",ESTA CHARKHAM ASSOCIATES.
Children and Young Peoples Services,Head of Childrens Social Care,Supplies and Services,338044,Services,03/10/2022,4052016-91180,823.33,FORENSIC TESTING SERVICE LTD.
Neighbourhoods and Climate Change,Environmental Services,Supplies and Services,338099,Services,03/10/2022,4052042-10751,775.61,GUSTHARTS LTD.
Neighbourhoods and Climate Change,Environmental Services,Supplies and Services,338027,Services,03/10/2022,4052312-0000976886,"3,603.86",SOCOTEC UK LTD.
Resources BK0010,Legal & Democratic Services,Supplies and Services,338042,Services,03/10/2022,4052369-294892/INVKIO227,840.00,TRINITY CHAMBERS.
Resources BK0010,Legal & Democratic Services,Supplies and Services,338042,Services,03/10/2022,4052369-298595/INVRSH109,"1,030.00",TRINITY CHAMBERS.
Children and Young Peoples Services,Head of Education and Skills,Supplies and Services,338027,Services,03/10/2022,4052398-UOTR4969510,502.00,WESTERN UNION BUSINESS SOLUTIONS.
Regeneration Economy and Growth,Culture Sport and Tourism,Supplies and Services,338047,Services,03/10/2022,4051903-2917,750.00,REDACTED - PAYMENT TO INDIVIDUAL
Resources BK0010,Legal & Democratic Services,Supplies and Services,338025,Services,03/10/2022,4051975-JRB072022JC,"1,088.25",REDACTED - PAYMENT TO INDIVIDUAL
Children and Young Peoples Services,Head of Childrens Social Care,Supplies and Services,338044,Services,03/10/2022,4052119-1709221,"1,358.20",REDACTED - PAYMENT TO INDIVIDUAL
Children and Young Peoples Services,Head of Education and Skills,Supplies and Services,338076,Services,03/10/2022,4052216-3610051326,507.00,NORTH TEES & HARTLEPOOL NHS FOUNDATION TRUST.
Children and Young Peoples Services,Head of Education and Skills,Supplies and Services,338076,Services,03/10/2022,4052216-3610052108,507.00,NORTH TEES & HARTLEPOOL NHS FOUNDATION TRUST.
Children and Young Peoples Services,Head of Childrens Social Care,Supplies and Services,338045,Services,03/10/2022,4052292-SB-181,756.09,SB CONSULTANCY LTD.
Children and Young Peoples Services,Head of Childrens Social Care,Supplies and Services,338045,Services,03/10/2022,4052292-SB-183,708.17,SB CONSULTANCY LTD.
Neighbourhoods and Climate Change,Environmental Services,Supplies and Services,338099,Services,03/10/2022,4052321-INV-X000190,"15,000.00",SPRYTAR LTD.
Regeneration Economy and Growth,Culture Sport and Tourism,Supplies and Services,338047,Services,03/10/2022,4052155-BATH16/09/2022,"2,025.00",REDACTED - PAYMENT TO INDIVIDUAL
Neighbourhoods and Climate Change,Technical Services CM0300,Stock A926,926900,Stock in hand-Inventory system,03/10/2022,4052032-SI847796,"1,179.20",GLASDON UK LTD.
Neighbourhoods and Climate Change,Technical Services CM0300,Stock A926,926900,Stock in hand-Inventory system,03/10/2022,4052040-06/191432,"1,941.01",GREENHAM TRADING LTD.
Neighbourhoods and Climate Change,Technical Services CM0300,Stock A926,926900,Stock in hand-Inventory system,03/10/2022,4052234-XL291164,780.00,PARK ELECTRICAL DISTRIBUTORS LTD.
Neighbourhoods and Climate Change,Technical Services CM0300,Stock A926,926900,Stock in hand-Inventory system,03/10/2022,4052360-NSIN00082031,508.00,THOMAS OWEN & SONS (NEWCASTLE) LTD.
Neighbourhoods and Climate Change,Technical Services CM0300,Stock A926,926900,Stock in hand-Inventory system,03/10/2022,4052365-111630,"1,220.70",TOTAL RENTAL SOLUTIONS LTD.
Neighbourhoods and Climate Change,Technical Services CM0300,Stock A926,926900,Stock in hand-Inventory system,03/10/2022,4052365-111632,"1,600.00",TOTAL RENTAL SOLUTIONS LTD.
Neighbourhoods and Climate Change,Technical Services CM0300,Stock A926,926900,Stock in hand-Inventory system,03/10/2022,4052365-111636,"1,796.00",TOTAL RENTAL SOLUTIONS LTD.
Neighbourhoods and Climate Change,Technical Services CM0300,Stock A926,926900,Stock in hand-Inventory system,03/10/2022,4052365-111638,"3,088.00",TOTAL RENTAL SOLUTIONS LTD.
Neighbourhoods and Climate Change,Technical Services CM0300,Stock A926,926900,Stock in hand-Inventory system,03/10/2022,4052365-111639,"1,328.64",TOTAL RENTAL SOLUTIONS LTD.
Children and Young Peoples Services,Head of Education and Skills,Supplies and Services,372009,Subscriptions E372,03/10/2022,4052397-100205,500.00,WEST CREATIVE.
Resources BK0010,Digital Services,Supplies and Services,344033,Telephones,03/10/2022,4052226-A229800,"1,721.00",OPENREACH LLU.
Regeneration Economy and Growth,REG - Central Costs,Supplies and Services,336005,Advertising E336,04/10/2022,4053282-41077425,700.00,NEWSQUEST (YORKSHIRE & NORTH EAST) LTD.
Regeneration Economy and Growth,Communications Management,Supplies and Services,336005,Advertising E336,04/10/2022,4053282-41078546,"1,780.00",NEWSQUEST (YORKSHIRE & NORTH EAST) LTD.
Regeneration Economy and Growth,REG - Central Costs,Supplies and Services,336005,Advertising E336,04/10/2022,4053282-41079941,"1,050.00",NEWSQUEST (YORKSHIRE & NORTH EAST) LTD.
Regeneration Economy and Growth,Communications Management,Supplies and Services,336005,Advertising E336,04/10/2022,4053133-0000024340,"50,000.00",EYE AIRPORTS LTD.
Regeneration Economy and Growth,Culture Sport and Tourism,Premises,106080,Centrally Controlled Rep and Maint,04/10/2022,4053411-NT66149,"5,300.00",WARDELL ARMSTRONG LLP.
Resources BK0010,Digital Services,Supplies and Services,342051,Computers and Communications,04/10/2022,4053198-19241,"6,238.00",JC APPLICATIONS DEVELOPMENT LTD.
Children and Young Peoples Services,Head of Education and Skills,Construction work A908,908105,Construction work,04/10/2022,4053297-2832,"2,525.00",OS ECOLOGY LTD.
Neighbourhoods and Climate Change,Technical Services CM0300,Fees,901002,Professional fees 901002,04/10/2022,4053413-267,"40,309.00",WEAR RIVERS TRUST.
Adult and Health Services,Head of Adults,Supplies and Services,304259,Equipment and Materials,04/10/2022,4053051-86258,556.00,CAREFLEX LTD.
Regeneration Economy and Growth,Corporate Property and Land,Supplies and Services,304221,Equipment and Materials,04/10/2022,4053095-05092022-1466397,"27,650.00",DG JOINERY SOLUTIONS LTD.
Regeneration Economy and Growth,Corporate Property and Land,Supplies and Services,304221,Equipment and Materials,04/10/2022,4053095-21092022,"29,738.21",DG JOINERY SOLUTIONS LTD.
Regeneration Economy and Growth,Corporate Property and Land,Supplies and Services,304221,Equipment and Materials,04/10/2022,4053115-059-307389,605.75,EDMUNDSON ELECTRICAL LTD.
Neighbourhoods and Climate Change,Environmental Services,Supplies and Services,304221,Equipment and Materials,04/10/2022,4053127-202386,933.12,EMORSGATE SEEDS.
Neighbourhoods and Climate Change,Environmental Services,Supplies and Services,304259,Equipment and Materials,04/10/2022,4053158-847,"1,602.68",GOTT TECHNICAL SERVICES LTD.
Neighbourhoods and Climate Change,Environmental Services,Supplies and Services,304259,Equipment and Materials,04/10/2022,4053164-108211,817.01,GUSTHARTS LTD.
Neighbourhoods and Climate Change,Technical Services CM0300,Supplies and Services,304221,Equipment and Materials,04/10/2022,4053210-0113/00731695,"1,719.55",JT DOVE LTD.
Regeneration Economy and Growth,Corporate Property and Land,Supplies and Services,304221,Equipment and Materials,04/10/2022,4053301-XL291383,"4,825.94",PARK ELECTRICAL DISTRIBUTORS LTD.
Regeneration Economy and Growth,Corporate Property and Land,Supplies and Services,304221,Equipment and Materials,04/10/2022,4053355-0000143910,972.00,SHORTS INDUSTRIES LTD T/A SHORTS LIFTS.
Regeneration Economy and Growth,Planning & Housing,Supplies and Services,304245,Equipment and Materials,04/10/2022,4053397-3IN/10395022,"7,074.80",TUNSTALL HEALTHCARE (UK) LTD.
Neighbourhoods and Climate Change,Technical Services CM0300,Supplies and Services,304221,Equipment and Materials,04/10/2022,4053399-237176,"3,188.49",TYNEDALE ROADSTONE LTD.
Neighbourhoods and Climate Change,Technical Services CM0300,Supplies and Services,304221,Equipment and Materials,04/10/2022,4053399-237177,902.27,TYNEDALE ROADSTONE LTD.
Neighbourhoods and Climate Change,Technical Services CM0300,Supplies and Services,304221,Equipment and Materials,04/10/2022,4053399-237180,779.09,TYNEDALE ROADSTONE LTD.
Neighbourhoods and Climate Change,Technical Services CM0300,Supplies and Services,304221,Equipment and Materials,04/10/2022,4053399-237388,"1,746.39",TYNEDALE ROADSTONE LTD.
Neighbourhoods and Climate Change,Technical Services CM0300,Supplies and Services,304221,Equipment and Materials,04/10/2022,4053399-237537,"1,716.66",TYNEDALE ROADSTONE LTD.
Neighbourhoods and Climate Change,Technical Services CM0300,Supplies and Services,304221,Equipment and Materials,04/10/2022,4053399-237539,897.00,TYNEDALE ROADSTONE LTD.
Neighbourhoods and Climate Change,Technical Services CM0300,Supplies and Services,304221,Equipment and Materials,04/10/2022,4053399-237540,"1,456.10",TYNEDALE ROADSTONE LTD.
Neighbourhoods and Climate Change,Technical Services CM0300,Supplies and Services,304221,Equipment and Materials,04/10/2022,4053399-237541,891.82,TYNEDALE ROADSTONE LTD.
Neighbourhoods and Climate Change,Technical Services CM0300,Supplies and Services,304221,Equipment and Materials,04/10/2022,4053399-237542,"1,580.20",TYNEDALE ROADSTONE LTD.
Neighbourhoods and Climate Change,Technical Services CM0300,Supplies and Services,304221,Equipment and Materials,04/10/2022,4053399-237592,"1,094.46",TYNEDALE ROADSTONE LTD.
Regeneration Economy and Growth,Corporate Property and Land,Supplies and Services,304221,Equipment and Materials,04/10/2022,4053391-10872449,"1,638.00",TRADECHOICE DISTRIBUTION LTD.
Neighbourhoods and Climate Change,Environmental Services,Supplies and Services,304259,Equipment and Materials,04/10/2022,4053277-2417,"1,445.00",NATURE SIGN DESIGN LTD.
Regeneration Economy and Growth,Economic Development Level C,Supplies and Services,384899,Miscellaneous Expenses,04/10/2022,4053076-SD009/23,"3,069.18",CORNFORTH PARTNERSHIP.
Children and Young Peoples Services,Head of Early Help Inclusion & Vulnerable Children.,Supplies and Services,384302,Miscellaneous Expenses,04/10/2022,4053233-INV-1486,"85,788.00",LINGOTOT DERWENTSIDE LTD.
Regeneration Economy and Growth,Culture Sport and Tourism,Supplies and Services,384199,Miscellaneous Expenses,04/10/2022,4053291-00021976,"1,669.14",NSL LTD.
Neighbourhoods and Climate Change,Environmental Services,Supplies and Services,384199,Miscellaneous Expenses,04/10/2022,4053250-1330,785.00,REDACTED - PAYMENT TO INDIVIDUAL
Neighbourhoods and Climate Change,Environmental Services,Supplies and Services,384199,Miscellaneous Expenses,04/10/2022,4053250-1333,"2,425.00",REDACTED - PAYMENT TO INDIVIDUAL
Neighbourhoods and Climate Change,Environmental Services,Supplies and Services,384199,Miscellaneous Expenses,04/10/2022,4053250-1335,"1,965.00",REDACTED - PAYMENT TO INDIVIDUAL
Children and Young Peoples Services,Head of Early Help Inclusion & Vulnerable Children.,Supplies and Services,384302,Miscellaneous Expenses,04/10/2022,4053069-INV-0144,"54,172.80",CNS SPORTS STARS.
Children and Young Peoples Services,Head of Education and Skills,Supplies and Services,384199,Miscellaneous Expenses,04/10/2022,4053155-INV-000290,600.00,GO WELL.
Resources BK0010,Legal & Democratic Services,Supplies and Services,340001,Postages E340,04/10/2022,4053338-9065778393,"1,180.77",ROYAL MAIL GROUP PLC.
Children and Young Peoples Services,Head of Early Help Inclusion & Vulnerable Children.,Supplies and Services,324500,Provisions E324,04/10/2022,4053083-24706,"23,326.56",CREATIVE MANAGEMENT SERVICES LTD.
Children and Young Peoples Services,Head of Education and Skills,Transport,235005,Public Transport,04/10/2022,4053154-78603,"2,400.00",GO GATESHEAD LTD.
Neighbourhoods and Climate Change,Environmental Services,Third Party Payments,430100,Rendered by Private Contractors,04/10/2022,4053037-46064813,"22,728.50",BELL TRUCK SALES LTD T/A BELL TRUCK & VAN.
Neighbourhoods and Climate Change,Technical Services CM0300,Third Party Payments,430100,Rendered by Private Contractors,04/10/2022,4053041-207R02165-22,"1,661.00",BIFFA WASTE SERVICES LTD.
Neighbourhoods and Climate Change,Technical Services CM0300,Third Party Payments,430100,Rendered by Private Contractors,04/10/2022,4053041-207R02177-22,"2,542.10",BIFFA WASTE SERVICES LTD.
Regeneration Economy and Growth,Corporate Property and Land,Third Party Payments,430100,Rendered by Private Contractors,04/10/2022,4053095-05092022,"1,600.00",DG JOINERY SOLUTIONS LTD.
Regeneration Economy and Growth,Corporate Property and Land,Third Party Payments,430100,Rendered by Private Contractors,04/10/2022,4053095-22092022,"1,060.00",DG JOINERY SOLUTIONS LTD.
Regeneration Economy and Growth,Corporate Property and Land,Third Party Payments,430100,Rendered by Private Contractors,04/10/2022,4053128-SIN/22-081939-BD,669.00,ENGINEERING PRECISION SOLUTIONS LTD T/A CYRUS-BRADFORD.
Neighbourhoods and Climate Change,Environmental Services,Third Party Payments,430100,Rendered by Private Contractors,04/10/2022,4053151-A79226,704.00,GLASS ASSIST UK.
Neighbourhoods and Climate Change,Environmental Services,Third Party Payments,430100,Rendered by Private Contractors,04/10/2022,4053175-90938,"32,676.75",HOGARTH COACHWORKS LTD.
Regeneration Economy and Growth,Corporate Property and Land,Third Party Payments,430100,Rendered by Private Contractors,04/10/2022,4053188-13082,"4,973.50",INGLEFORD SCAFFOLDING LTD.
Neighbourhoods and Climate Change,Technical Services CM0300,Third Party Payments,430100,Rendered by Private Contractors,04/10/2022,4053194-26945,"1,290.99",JACK COUPE & SONS LTD T/A COUPE LINE.
Regeneration Economy and Growth,Culture Sport and Tourism,Third Party Payments,430131,Rendered by Private Contractors,04/10/2022,4053288-4577,630.00,NORTH EAST DANCE CIC.
Neighbourhoods and Climate Change,Technical Services CM0300,Third Party Payments,430100,Rendered by Private Contractors,04/10/2022,4053290-DI20391767,644.46,NORTHERN POWERGRID (NORTHEAST) LTD.
Neighbourhoods and Climate Change,Environmental Services,Third Party Payments,430100,Rendered by Private Contractors,04/10/2022,4053315-TYN30412,"1,223.07",PIRTEK TYNE & WEAR.
Neighbourhoods and Climate Change,Technical Services CM0300,Third Party Payments,430100,Rendered by Private Contractors,04/10/2022,4053322-1191,954.00,PRM FABRICATIONS LTD.
Neighbourhoods and Climate Change,Technical Services CM0300,Third Party Payments,430100,Rendered by Private Contractors,04/10/2022,4053327-10000/220945,"136,417.36",RAINTON CONSTRUCTION LTD.
Neighbourhoods and Climate Change,Technical Services CM0300,Third Party Payments,430100,Rendered by Private Contractors,04/10/2022,4053327-10000/220946,"131,609.80",RAINTON CONSTRUCTION LTD.
Regeneration Economy and Growth,Corporate Property and Land,Third Party Payments,430100,Rendered by Private Contractors,04/10/2022,4053265-DCC253,"1,500.00",REDACTED - PAYMENT TO INDIVIDUAL
Children and Young Peoples Services,Head of Childrens Social Care,Third Party Payments,425028,Rendered by Voluntary Organisations,04/10/2022,4053107-003-2022-23,"10,000.00",DURHAM AREA DISABILITY LEISURE GROUP (DADLG).
Neighbourhoods and Climate Change,Environmental Services,Transport,210057,Repair and Maintenance of Vehicles,04/10/2022,4053034-173180,"2,284.15",BARRETT STEEL LTD T/A PARSON & CROSLAND.
Neighbourhoods and Climate Change,Environmental Services,Transport,210057,Repair and Maintenance of Vehicles,04/10/2022,4053037-35231138,967.58,BELL TRUCK SALES LTD T/A BELL TRUCK & VAN.
Neighbourhoods and Climate Change,Environmental Services,Transport,210057,Repair and Maintenance of Vehicles,04/10/2022,4053037-45072053,596.05,BELL TRUCK SALES LTD T/A BELL TRUCK & VAN.
Neighbourhoods and Climate Change,Environmental Services,Transport,210057,Repair and Maintenance of Vehicles,04/10/2022,4053037-45072103,630.08,BELL TRUCK SALES LTD T/A BELL TRUCK & VAN.
Neighbourhoods and Climate Change,Environmental Services,Transport,210057,Repair and Maintenance of Vehicles,04/10/2022,4053092-96429037,"1,003.48",DENNIS EAGLE LTD T/A TERBERG MATEC (UK) LTD.
Neighbourhoods and Climate Change,Environmental Services,Transport,210057,Repair and Maintenance of Vehicles,04/10/2022,4053113-S210737,"3,472.46",ECON ENGINEERING LTD.
Neighbourhoods and Climate Change,Environmental Services,Transport,210057,Repair and Maintenance of Vehicles,04/10/2022,4053161-277766,925.07,GREENLAY T/A THOMAS SHERRIFF & CO LTD.
Neighbourhoods and Climate Change,Environmental Services,Transport,210057,Repair and Maintenance of Vehicles,04/10/2022,4053279-INV77837,640.77,NE TRUCK SPARES LTD (NETS).
Neighbourhoods and Climate Change,Environmental Services,Transport,210057,Repair and Maintenance of Vehicles,04/10/2022,4053279-INV78486,520.92,NE TRUCK SPARES LTD (NETS).
Neighbourhoods and Climate Change,Environmental Services,Transport,210057,Repair and Maintenance of Vehicles,04/10/2022,4053287-84570,"2,766.13",NORPLAST LTD.
Neighbourhoods and Climate Change,Environmental Services,Transport,210057,Repair and Maintenance of Vehicles,04/10/2022,4053012-60282998,559.08,AEBI SCHMIDT UK LTD.
Children and Young Peoples Services,Head of Early Help Inclusion & Vulnerable Children.,Third Party Payments,486046,Service level agreements E486,04/10/2022,4053276-56760,"5,415.00",NATIONAL YOUTH ADVOCACY SERVICE.
Adult and Health Services,Public Health CC0450,Supplies and Services,338066,Services,04/10/2022,4053044-SIN036613,"168,509.17",BLOOM PROCUREMENT SERVICES LTD (FORMERLY NEPRO LTD).
Neighbourhoods and Climate Change,Environmental Services,Supplies and Services,338066,Services,04/10/2022,4053044-SIN036773,"69,462.86",BLOOM PROCUREMENT SERVICES LTD (FORMERLY NEPRO LTD).
Regeneration Economy and Growth,Planning & Housing,Supplies and Services,338045,Services,04/10/2022,4053218-492584-130922,"43,250.00",KINGS CHAMBERS.
Regeneration Economy and Growth,Corporate Property and Land,Supplies and Services,338066,Services,04/10/2022,4053341-NEW15908,"2,950.00",SANDERSON WEATHERALL LLP.
Regeneration Economy and Growth,Culture Sport and Tourism,Supplies and Services,338047,Services,04/10/2022,4053346-INV-1217,"6,667.00",SCENIC PANTOMIMES LTD.
Regeneration Economy and Growth,Culture Sport and Tourism,Supplies and Services,338047,Services,04/10/2022,4053366-00390980,"8,110.00",STAGE ELECTRICS PARTNERSHIP LTD.
Regeneration Economy and Growth,Corporate Property and Land,Supplies and Services,338078,Services,04/10/2022,4053369-18478,"10,406.70",STEADFAST SECURITY SOLUTIONS LTD.
Resources BK0010,Legal & Democratic Services,Supplies and Services,338042,Services,04/10/2022,4053394-298358/INVKW661,"1,030.00",TRINITY CHAMBERS.
Resources BK0010,Legal & Democratic Services,Supplies and Services,338042,Services,04/10/2022,4053394-299326/INVPG397,720.00,TRINITY CHAMBERS.
Resources BK0010,Legal & Democratic Services,Supplies and Services,338042,Services,04/10/2022,4053394-302015/INVPG398,"2,780.00",TRINITY CHAMBERS.
Resources BK0010,Legal & Democratic Services,Supplies and Services,338042,Services,04/10/2022,4053394-302122/INVKW665,785.00,TRINITY CHAMBERS.
Adult and Health Services,Head of Adults,Supplies and Services,338089,Services,04/10/2022,4053416-1817,500.00,WELL HANDLED LTD.
Regeneration Economy and Growth,Culture Sport and Tourism,Supplies and Services,338047,Services,04/10/2022,4053125-GALA68,"1,957.37",REDACTED - PAYMENT TO INDIVIDUAL
Neighbourhoods and Climate Change,Environmental Services,Supplies and Services,338066,Services,04/10/2022,4053136-4100791962,542.50,FARMHOUSE KITCHEN.
Children and Young Peoples Services,Childrens Services Operational Support,Supplies and Services,338089,Services,04/10/2022,4053139-INV001432,"2,840.00",FOX & ASSOCIATES CONSULTING LTD.
Resources BK0010,Digital Services,Stock A926,926900,Stock in hand-Inventory system,04/10/2022,4053091-7402852014,859.80,DELL COMPUTER CORPORATION LTD.
Neighbourhoods and Climate Change,Technical Services CM0300,Stock A926,926900,Stock in hand-Inventory system,04/10/2022,4053210-0107/00744215,"1,510.60",JT DOVE LTD.
Neighbourhoods and Climate Change,Technical Services CM0300,Stock A926,926900,Stock in hand-Inventory system,04/10/2022,4053210-0107/00746492,"1,698.30",JT DOVE LTD.
Neighbourhoods and Climate Change,Technical Services CM0300,Stock A926,926900,Stock in hand-Inventory system,04/10/2022,4053301-XL291221,"1,144.65",PARK ELECTRICAL DISTRIBUTORS LTD.
Neighbourhoods and Climate Change,Technical Services CM0300,Stock A926,926900,Stock in hand-Inventory system,04/10/2022,4053301-XL291222,"7,975.00",PARK ELECTRICAL DISTRIBUTORS LTD.
Neighbourhoods and Climate Change,Technical Services CM0300,Stock A926,926900,Stock in hand-Inventory system,04/10/2022,4053389-111790,"1,600.00",TOTAL RENTAL SOLUTIONS LTD.
Neighbourhoods and Climate Change,Technical Services CM0300,Stock A926,926900,Stock in hand-Inventory system,04/10/2022,4053389-111791,742.00,TOTAL RENTAL SOLUTIONS LTD.
Neighbourhoods and Climate Change,Technical Services CM0300,Stock A926,926900,Stock in hand-Inventory system,04/10/2022,4053389-111792,"2,316.47",TOTAL RENTAL SOLUTIONS LTD.
Neighbourhoods and Climate Change,Technical Services CM0300,Stock A926,926900,Stock in hand-Inventory system,04/10/2022,4053424-1002515,910.15,YOUR NRG LTD.
Neighbourhoods and Climate Change,Technical Services CM0300,Stock A926,926900,Stock in hand-Inventory system,04/10/2022,4053426-145497008,"3,672.00",ZG LIGHTING (UK) LTD.
Neighbourhoods and Climate Change,Technical Services CM0300,Stock A926,926900,Stock in hand-Inventory system,04/10/2022,4053426-145497009,"2,376.00",ZG LIGHTING (UK) LTD.
Neighbourhoods and Climate Change,Technical Services CM0300,Stock A926,926900,Stock in hand-Inventory system,04/10/2022,4053426-145497010,"17,078.00",ZG LIGHTING (UK) LTD.
Children and Young Peoples Services,Head of Education and Skills,Supplies and Services,336005,Advertising E336,05/10/2022,4053835-INV-6290,"8,430.00",STEVE DAVIDSON ADVERTISING LTD T/A SD ADVERTISING LTD.
Children and Young Peoples Services,Head of Early Help Inclusion & Vulnerable Children.,Employees,080025,Agency Staff,05/10/2022,4053485-21923199,"2,966.16",BROOK STREET UK LTD T/A BS SOCIAL CARE.
Children and Young Peoples Services,Head of Childrens Social Care,Employees,080025,Agency Staff,05/10/2022,4053601-2463837,"151,729.66",GEOMETRIC RESULTS INTERNATIONAL.
Non-Service Specific,Non Service Specific-Financing,Long Term Debtors,924001,Car loans,05/10/2022,4053456-119886,793.00,ARRIVA DURHAM COUNTY LTD.
Non-Service Specific,Non Service Specific-Financing,Long Term Debtors,924001,Car loans,05/10/2022,4053456-119887,543.00,ARRIVA DURHAM COUNTY LTD.
Non-Service Specific,Non Service Specific-Financing,Long Term Debtors,924001,Car loans,05/10/2022,4053456-119888,543.00,ARRIVA DURHAM COUNTY LTD.
Regeneration Economy and Growth,Culture Sport and Tourism,Premises,145009,Cleaning and Domestic Supplies,05/10/2022,4053512-CN30212087,537.48,CITRON HYGIENE UK LTD.
Regeneration Economy and Growth,Transport and Contracted Services,Supplies and Services,328041,Clothing uniforms and laundry E328,05/10/2022,4053669-99846,515.70,KING SCIENTIFIC.
Resources BK0010,Digital Services,Supplies and Services,342033,Computers and Communications,05/10/2022,4053548-7402853216,"2,763.80",DELL COMPUTER CORPORATION LTD.
Resources BK0010,Digital Services,Supplies and Services,342033,Computers and Communications,05/10/2022,4053635-2100376174,"1,014.05",INSIGHT DIRECT (UK) LTD.
Resources BK0010,Digital Services,Supplies and Services,342033,Computers and Communications,05/10/2022,4053774-OP/I945346,"1,292.19",PHOENIX SOFTWARE LTD.
Resources BK0010,HR & Employee Services,Supplies and Services,352001,Conference Expenses,05/10/2022,4053678-126529,"1,770.00",LEARNING NEXUS LTD.
Regeneration Economy and Growth,Transport and Contracted Services,Construction work A908,908105,Construction work,05/10/2022,4053488-NO29177,"6,468.37",BUS SHELTERS LTD.
Regeneration Economy and Growth,Corporate Property and Land,Construction work A908,908105,Construction work,05/10/2022,4053658-0000083769,"1,400.00",JOHN WADE (HAULAGE) LTD.
Regeneration Economy and Growth,Corporate Property and Land,Construction work A908,908105,Construction work,05/10/2022,4053658-0000083770,"1,820.00",JOHN WADE (HAULAGE) LTD.
Regeneration Economy and Growth,Planning & Housing,Construction work A908,908105,Construction work,05/10/2022,4053868-SPN-000540,"1,005,467.40",TOLENT LIVING LTD.
Children and Young Peoples Services,Head of Education and Skills,Construction work A908,908105,Construction work,05/10/2022,4053452-10893,"1,380.00",ARC ENVIRONMENTAL LTD.
Regeneration Economy and Growth,Culture Sport and Tourism,Fees,901002,Professional fees 901002,05/10/2022,4053770-4592,"27,500.00",PEAK INDICATORS LTD.
Neighbourhoods and Climate Change,Environmental Services,Fees,901002,Professional fees 901002,05/10/2022,4053710-INV-0119,"5,663.33",MIND OVER MATTER MEDTECH LTD.
Children and Young Peoples Services,Head of Education and Skills,Transport,230008,Contract Hire,05/10/2022,4053431-92211,"2,671.20",24/7 TAXI SERVICES (PETERLEE) LTD.
Children and Young Peoples Services,Head of Education and Skills,Transport,230008,Contract Hire,05/10/2022,4053431-92212,"2,632.00",24/7 TAXI SERVICES (PETERLEE) LTD.
Children and Young Peoples Services,Head of Education and Skills,Transport,230008,Contract Hire,05/10/2022,4053431-92213,"4,045.93",24/7 TAXI SERVICES (PETERLEE) LTD.
Neighbourhoods and Climate Change,Environmental Services,Transport,230005,Contract Hire,05/10/2022,4053435-I2224710,"1,285.80",ACL HIRE LTD.
Neighbourhoods and Climate Change,Environmental Services,Transport,230005,Contract Hire,05/10/2022,4053435-I2224711,"1,285.80",ACL HIRE LTD.
Children and Young Peoples Services,Head of Education and Skills,Transport,230008,Contract Hire,05/10/2022,4053440-012SEPT22,"1,848.00",AIRPORT TRANSFER DURHAM.
Children and Young Peoples Services,Head of Education and Skills,Transport,230008,Contract Hire,05/10/2022,4053460-116,"3,337.14",AUCKLAND TRAVEL.
Children and Young Peoples Services,Head of Education and Skills,Transport,230008,Contract Hire,05/10/2022,4053460-117,"2,654.40",AUCKLAND TRAVEL.
Children and Young Peoples Services,Head of Education and Skills,Transport,230008,Contract Hire,05/10/2022,4053460-118,"2,545.40",AUCKLAND TRAVEL.
Children and Young Peoples Services,Head of Education and Skills,Transport,230008,Contract Hire,05/10/2022,4053460-119,"2,519.20",AUCKLAND TRAVEL.
Children and Young Peoples Services,Head of Education and Skills,Transport,230008,Contract Hire,05/10/2022,4053460-120,"2,613.60",AUCKLAND TRAVEL.
Children and Young Peoples Services,Head of Education and Skills,Transport,230008,Contract Hire,05/10/2022,4053460-121,"3,049.20",AUCKLAND TRAVEL.
Children and Young Peoples Services,Head of Education and Skills,Transport,230008,Contract Hire,05/10/2022,4053465-1010-A,666.01,BEELINE MINI BUSES.
Children and Young Peoples Services,Head of Education and Skills,Transport,230008,Contract Hire,05/10/2022,4053465-1010-B,"1,377.96",BEELINE MINI BUSES.
Children and Young Peoples Services,Head of Education and Skills,Transport,230008,Contract Hire,05/10/2022,4053465-1011,"2,209.87",BEELINE MINI BUSES.
Children and Young Peoples Services,Head of Education and Skills,Transport,230008,Contract Hire,05/10/2022,4053465-1012-A,915.45,BEELINE MINI BUSES.
Children and Young Peoples Services,Head of Education and Skills,Transport,230006,Contract Hire,05/10/2022,4053468-1-SEP22,"1,180.00",BENNETTS TAXIS.
Children and Young Peoples Services,Head of Education and Skills,Transport,230007,Contract Hire,05/10/2022,4053469-SH-PITT0922,"1,071.60",BENS TAXIS.
Children and Young Peoples Services,Head of Education and Skills,Transport,230034,Contract Hire,05/10/2022,4053469-SUNHASBEL0922,"1,726.60",BENS TAXIS.
Children and Young Peoples Services,Head of Education and Skills,Transport,230012,Contract Hire,05/10/2022,4053472-1-SEP22,"1,260.00",BH TRAVEL.
Children and Young Peoples Services,Head of Education and Skills,Transport,230006,Contract Hire,05/10/2022,4053472-2-SEP22,"1,400.00",BH TRAVEL.
Children and Young Peoples Services,Head of Education and Skills,Transport,230007,Contract Hire,05/10/2022,4053474-INV-641,"1,333.36",BILL SCOTT TAXIS LTD.
Adult and Health Services,Head of Adults,Transport,230005,Contract Hire,05/10/2022,4053475-0619,678.20,BIRDS TAXIS LTD.
Adult and Health Services,Head of Adults,Transport,230005,Contract Hire,05/10/2022,4053475-0620,"2,215.53",BIRDS TAXIS LTD.
Adult and Health Services,Head of Adults,Transport,230005,Contract Hire,05/10/2022,4053475-0621,859.14,BIRDS TAXIS LTD.
Adult and Health Services,Head of Adults,Transport,230005,Contract Hire,05/10/2022,4053475-0622,"1,177.71",BIRDS TAXIS LTD.
Adult and Health Services,Head of Adults,Transport,230005,Contract Hire,05/10/2022,4053475-0623,678.20,BIRDS TAXIS LTD.
Children and Young Peoples Services,Head of Education and Skills,Transport,230006,Contract Hire,05/10/2022,4053475-0627,"1,038.40",BIRDS TAXIS LTD.
Adult and Health Services,Head of Adults,Transport,230005,Contract Hire,05/10/2022,4053475-0629,"1,544.40",BIRDS TAXIS LTD.
Adult and Health Services,Head of Adults,Transport,230005,Contract Hire,05/10/2022,4053475-0630,"1,188.00",BIRDS TAXIS LTD.
Children and Young Peoples Services,Head of Education and Skills,Transport,230007,Contract Hire,05/10/2022,4053475-0631,802.42,BIRDS TAXIS LTD.
Children and Young Peoples Services,Head of Education and Skills,Transport,230008,Contract Hire,05/10/2022,4053475-0632,"1,642.05",BIRDS TAXIS LTD.
Children and Young Peoples Services,Head of Education and Skills,Transport,230008,Contract Hire,05/10/2022,4053475-0633,"2,482.39",BIRDS TAXIS LTD.
Children and Young Peoples Services,Head of Education and Skills,Transport,230035,Contract Hire,05/10/2022,4053476-16-3467,"1,985.47",BL TAXIS.
Children and Young Peoples Services,Head of Education and Skills,Transport,230007,Contract Hire,05/10/2022,4053479-M-3425,"2,757.96",BOBS TAXIS.
Children and Young Peoples Services,Head of Education and Skills,Transport,230007,Contract Hire,05/10/2022,4053479-M1-4517,"1,560.40",BOBS TAXIS.
Children and Young Peoples Services,Head of Education and Skills,Transport,230006,Contract Hire,05/10/2022,4053481-001-B,521.21,BOWBURN TAXIS.
Children and Young Peoples Services,Head of Education and Skills,Transport,230006,Contract Hire,05/10/2022,4053481-001-C,"1,373.96",BOWBURN TAXIS.
Children and Young Peoples Services,Head of Education and Skills,Transport,230007,Contract Hire,05/10/2022,4053491-200901,"1,424.00",C & R TAXIS.
Children and Young Peoples Services,Head of Education and Skills,Transport,230008,Contract Hire,05/10/2022,4053491-S01501,"1,773.23",C & R TAXIS.
Children and Young Peoples Services,Head of Education and Skills,Transport,230008,Contract Hire,05/10/2022,4053491-W046034,"2,086.69",C & R TAXIS.
Children and Young Peoples Services,Head of Education and Skills,Transport,230008,Contract Hire,05/10/2022,4053504-077,"2,017.22",CHANNER`S CABS.
Children and Young Peoples Services,Head of Education and Skills,Transport,230007,Contract Hire,05/10/2022,4053519-C/11591,"6,336.80",COCHRANES T/A KELVIN TRAVEL.
Children and Young Peoples Services,Head of Education and Skills,Transport,230007,Contract Hire,05/10/2022,4053519-C/11592,"3,722.40",COCHRANES T/A KELVIN TRAVEL.
Children and Young Peoples Services,Head of Education and Skills,Transport,230003,Contract Hire,05/10/2022,4053519-C/11593,"2,782.40",COCHRANES T/A KELVIN TRAVEL.
Children and Young Peoples Services,Head of Education and Skills,Transport,230003,Contract Hire,05/10/2022,4053519-C/11594,"2,406.40",COCHRANES T/A KELVIN TRAVEL.
Children and Young Peoples Services,Head of Education and Skills,Transport,230003,Contract Hire,05/10/2022,4053519-C/11595,"4,286.40",COCHRANES T/A KELVIN TRAVEL.
Children and Young Peoples Services,Head of Education and Skills,Transport,230007,Contract Hire,05/10/2022,4053519-C/11596,"4,700.00",COCHRANES T/A KELVIN TRAVEL.
Children and Young Peoples Services,Head of Education and Skills,Transport,230007,Contract Hire,05/10/2022,4053519-C/11597,"4,450.00",COCHRANES T/A KELVIN TRAVEL.
Children and Young Peoples Services,Head of Education and Skills,Transport,230008,Contract Hire,05/10/2022,4053523-01-SEP22,"2,895.00",CONNORS MINI BUSES.*
Children and Young Peoples Services,Head of Education and Skills,Transport,230008,Contract Hire,05/10/2022,4053523-02,"2,520.00",CONNORS MINI BUSES.*
Children and Young Peoples Services,Head of Education and Skills,Transport,230008,Contract Hire,05/10/2022,4053523-03,"1,495.20",CONNORS MINI BUSES.*
Children and Young Peoples Services,Head of Education and Skills,Transport,230008,Contract Hire,05/10/2022,4053523-04,"1,848.00",CONNORS MINI BUSES.*
Children and Young Peoples Services,Head of Education and Skills,Transport,230007,Contract Hire,05/10/2022,4053524-INV017,"2,340.22",CONSETT EXECUTIVE CABS.
Children and Young Peoples Services,Head of Childrens Social Care,Transport,230005,Contract Hire,05/10/2022,4053532-114315,662.20,CROFT BUSINESS SERVICES LTD T/A CROFT TRAVEL.
Children and Young Peoples Services,Head of Childrens Social Care,Transport,230005,Contract Hire,05/10/2022,4053532-114317,794.64,CROFT BUSINESS SERVICES LTD T/A CROFT TRAVEL.
Children and Young Peoples Services,Head of Childrens Social Care,Transport,230005,Contract Hire,05/10/2022,4053532-114321,503.50,CROFT BUSINESS SERVICES LTD T/A CROFT TRAVEL.
Children and Young Peoples Services,Head of Education and Skills,Transport,230007,Contract Hire,05/10/2022,4053532-114385,"3,595.68",CROFT BUSINESS SERVICES LTD T/A CROFT TRAVEL.
Children and Young Peoples Services,Head of Education and Skills,Transport,230008,Contract Hire,05/10/2022,4053532-114387,"3,200.36",CROFT BUSINESS SERVICES LTD T/A CROFT TRAVEL.
Children and Young Peoples Services,Head of Education and Skills,Transport,230016,Contract Hire,05/10/2022,4053532-114395,627.52,CROFT BUSINESS SERVICES LTD T/A CROFT TRAVEL.
Children and Young Peoples Services,Head of Education and Skills,Transport,230008,Contract Hire,05/10/2022,4053532-114397,"2,798.20",CROFT BUSINESS SERVICES LTD T/A CROFT TRAVEL.
Children and Young Peoples Services,Head of Education and Skills,Transport,230008,Contract Hire,05/10/2022,4053532-114399,"3,463.92",CROFT BUSINESS SERVICES LTD T/A CROFT TRAVEL.
Children and Young Peoples Services,Head of Education and Skills,Transport,230008,Contract Hire,05/10/2022,4053532-114400,"1,866.94",CROFT BUSINESS SERVICES LTD T/A CROFT TRAVEL.
Children and Young Peoples Services,Head of Education and Skills,Transport,230010,Contract Hire,05/10/2022,4053532-114404,"2,700.96",CROFT BUSINESS SERVICES LTD T/A CROFT TRAVEL.
Children and Young Peoples Services,Head of Education and Skills,Transport,230008,Contract Hire,05/10/2022,4053532-114405,"1,692.90",CROFT BUSINESS SERVICES LTD T/A CROFT TRAVEL.
Children and Young Peoples Services,Head of Education and Skills,Transport,230008,Contract Hire,05/10/2022,4053532-114406,"1,921.00",CROFT BUSINESS SERVICES LTD T/A CROFT TRAVEL.
Adult and Health Services,Head of Adults,Transport,230005,Contract Hire,05/10/2022,4053532-114409,"1,561.04",CROFT BUSINESS SERVICES LTD T/A CROFT TRAVEL.
Children and Young Peoples Services,Head of Education and Skills,Transport,230008,Contract Hire,05/10/2022,4053536-1783,"1,476.69",DA TAXIS.
Children and Young Peoples Services,Head of Education and Skills,Transport,230008,Contract Hire,05/10/2022,4053536-1785,"1,958.00",DA TAXIS.
Children and Young Peoples Services,Head of Education and Skills,Transport,230008,Contract Hire,05/10/2022,4053536-1787,"2,256.00",DA TAXIS.
Children and Young Peoples Services,Head of Education and Skills,Transport,230008,Contract Hire,05/10/2022,4053537-552,"1,846.16",DA TRAVEL.
Children and Young Peoples Services,Head of Education and Skills,Transport,230008,Contract Hire,05/10/2022,4053537-553,"1,274.30",DA TRAVEL.
Children and Young Peoples Services,Head of Education and Skills,Transport,230010,Contract Hire,05/10/2022,4053537-554,"1,068.00",DA TRAVEL.
Children and Young Peoples Services,Head of Education and Skills,Transport,230006,Contract Hire,05/10/2022,4053539-BACSEPT2201-B,"1,862.76",DALELINK PRIVATE HIRE.
Children and Young Peoples Services,Head of Education and Skills,Transport,230009,Contract Hire,05/10/2022,4053539-SGPSSSEPT2201,630.00,DALELINK PRIVATE HIRE.
Children and Young Peoples Services,Head of Education and Skills,Transport,230007,Contract Hire,05/10/2022,4053540-213-4227,"3,364.20",DANNY`S TRAVEL.
Children and Young Peoples Services,Head of Education and Skills,Transport,230003,Contract Hire,05/10/2022,4053540-213-4270,"2,127.10",DANNY`S TRAVEL.
Children and Young Peoples Services,Head of Education and Skills,Transport,230008,Contract Hire,05/10/2022,4053542-3747,"2,160.92",DAVES MINIBUSES.
Children and Young Peoples Services,Head of Education and Skills,Transport,230008,Contract Hire,05/10/2022,4053542-3748,"1,794.24",DAVES MINIBUSES.
Children and Young Peoples Services,Head of Education and Skills,Transport,230008,Contract Hire,05/10/2022,4053542-3749,"1,581.35",DAVES MINIBUSES.
Children and Young Peoples Services,Head of Education and Skills,Transport,230008,Contract Hire,05/10/2022,4053542-3750,"1,744.40",DAVES MINIBUSES.
Children and Young Peoples Services,Head of Education and Skills,Transport,230008,Contract Hire,05/10/2022,4053542-3751,"1,836.60",DAVES MINIBUSES.
Children and Young Peoples Services,Head of Education and Skills,Transport,230008,Contract Hire,05/10/2022,4053542-3752,"1,744.40",DAVES MINIBUSES.
Neighbourhoods and Climate Change,Environmental Services,Transport,230005,Contract Hire,05/10/2022,4053546-673852,627.00,DAWSONGROUP VANS LTD.
Neighbourhoods and Climate Change,Environmental Services,Transport,230005,Contract Hire,05/10/2022,4053546-673854,607.50,DAWSONGROUP VANS LTD.
Neighbourhoods and Climate Change,Environmental Services,Transport,230005,Contract Hire,05/10/2022,4053546-673855,627.00,DAWSONGROUP VANS LTD.
Neighbourhoods and Climate Change,Environmental Services,Transport,230005,Contract Hire,05/10/2022,4053546-673857,630.00,DAWSONGROUP VANS LTD.
Neighbourhoods and Climate Change,Environmental Services,Transport,230005,Contract Hire,05/10/2022,4053546-673859,570.00,DAWSONGROUP VANS LTD.
Neighbourhoods and Climate Change,Environmental Services,Transport,230005,Contract Hire,05/10/2022,4053546-673869,553.80,DAWSONGROUP VANS LTD.
Neighbourhoods and Climate Change,Environmental Services,Transport,230005,Contract Hire,05/10/2022,4053546-673870,516.60,DAWSONGROUP VANS LTD.
Children and Young Peoples Services,Head of Education and Skills,Transport,230008,Contract Hire,05/10/2022,4053547-0922-001,"1,769.14",DCM TAXIS.
Children and Young Peoples Services,Head of Childrens Social Care,Transport,230005,Contract Hire,05/10/2022,4053551-DH2231O,660.00,DH2 CABS.
Children and Young Peoples Services,Head of Education and Skills,Transport,230007,Contract Hire,05/10/2022,4053577-5234/0922,"2,417.49",ELLIOTTS OF TRIMDON.
Children and Young Peoples Services,Head of Education and Skills,Transport,230008,Contract Hire,05/10/2022,4053577-E128/0922,"1,740.71",ELLIOTTS OF TRIMDON.
Children and Young Peoples Services,Head of Education and Skills,Transport,230008,Contract Hire,05/10/2022,4053577-M042/0922,"1,979.18",ELLIOTTS OF TRIMDON.
Neighbourhoods and Climate Change,Environmental Services,Transport,230005,Contract Hire,05/10/2022,4053581-13001285537,829.65,ENTERPRISE FLEX-E-RENT T/A BURNT TREE GROUP LTD.
Children and Young Peoples Services,Head of Education and Skills,Transport,230008,Contract Hire,05/10/2022,4053588-SEP22-E003,"2,314.00",FAIR FARE TRAVEL (TAXIS).
Adult and Health Services,Head of Adults,Transport,230005,Contract Hire,05/10/2022,4053595-103065,"2,141.28",G & P JOHNSON LTD T/A NIGHTINGALE COACHES.
Adult and Health Services,Head of Adults,Transport,230005,Contract Hire,05/10/2022,4053595-103066,"2,018.90",G & P JOHNSON LTD T/A NIGHTINGALE COACHES.
Children and Young Peoples Services,Head of Education and Skills,Transport,230008,Contract Hire,05/10/2022,4053595-103067,"1,744.40",G & P JOHNSON LTD T/A NIGHTINGALE COACHES.
Children and Young Peoples Services,Head of Education and Skills,Transport,230003,Contract Hire,05/10/2022,4053595-103068,"3,553.20",G & P JOHNSON LTD T/A NIGHTINGALE COACHES.
Children and Young Peoples Services,Head of Education and Skills,Transport,230008,Contract Hire,05/10/2022,4053595-103070,"2,563.20",G & P JOHNSON LTD T/A NIGHTINGALE COACHES.
Children and Young Peoples Services,Head of Education and Skills,Transport,230008,Contract Hire,05/10/2022,4053628-1097,"2,515.44",I & R EXECUTIVE TRAVEL.
Children and Young Peoples Services,Head of Education and Skills,Transport,230008,Contract Hire,05/10/2022,4053628-1098,"1,859.70",I & R EXECUTIVE TRAVEL.
Adult and Health Services,Head of Adults,Transport,230005,Contract Hire,05/10/2022,4053628-1099,"1,976.04",I & R EXECUTIVE TRAVEL.
Children and Young Peoples Services,Head of Education and Skills,Transport,230007,Contract Hire,05/10/2022,4053640-6501-22,"1,029.60",J YOUNG T/A VIP TAXIS.
Children and Young Peoples Services,Head of Education and Skills,Transport,230007,Contract Hire,05/10/2022,4053640-6502-22,"1,068.00",J YOUNG T/A VIP TAXIS.
Children and Young Peoples Services,Head of Education and Skills,Transport,230007,Contract Hire,05/10/2022,4053640-6504-22,"1,332.92",J YOUNG T/A VIP TAXIS.
Children and Young Peoples Services,Head of Education and Skills,Transport,230008,Contract Hire,05/10/2022,4053640-6506-22,"1,284.09",J YOUNG T/A VIP TAXIS.
Adult and Health Services,Head of Adults,Transport,230005,Contract Hire,05/10/2022,4053642-0910,"1,940.20",JACKSON`S TAXI.
Adult and Health Services,Head of Adults,Transport,230005,Contract Hire,05/10/2022,4053642-0911,"2,888.50",JACKSON`S TAXI.
Children and Young Peoples Services,Head of Education and Skills,Transport,230008,Contract Hire,05/10/2022,4053642-0912,"1,914.21",JACKSON`S TAXI.
Children and Young Peoples Services,Head of Education and Skills,Transport,230008,Contract Hire,05/10/2022,4053642-0913,"2,126.03",JACKSON`S TAXI.
Children and Young Peoples Services,Head of Education and Skills,Transport,230009,Contract Hire,05/10/2022,4053642-0914,"1,912.43",JACKSON`S TAXI.
Children and Young Peoples Services,Head of Education and Skills,Transport,230008,Contract Hire,05/10/2022,4053642-0915,"2,271.28",JACKSON`S TAXI.
Adult and Health Services,Head of Adults,Transport,230005,Contract Hire,05/10/2022,4053642-0916,638.00,JACKSON`S TAXI.
Adult and Health Services,Head of Adults,Transport,230005,Contract Hire,05/10/2022,4053642-0917,744.00,JACKSON`S TAXI.
Children and Young Peoples Services,Head of Education and Skills,Transport,230007,Contract Hire,05/10/2022,4053647-3229,"2,534.43",JEFF ANDERSON COACHES LTD.
Children and Young Peoples Services,Head of Education and Skills,Transport,230008,Contract Hire,05/10/2022,4053647-INV3230,"1,640.80",JEFF ANDERSON COACHES LTD.
Children and Young Peoples Services,Head of Education and Skills,Transport,230008,Contract Hire,05/10/2022,4053647-INV3231,"2,224.82",JEFF ANDERSON COACHES LTD.
Children and Young Peoples Services,Head of Education and Skills,Transport,230007,Contract Hire,05/10/2022,4053647-INV3232,"1,614.92",JEFF ANDERSON COACHES LTD.
Dedicated Schools Grant BG0015,DSG High Needs Block,Transport,230009,Contract Hire,05/10/2022,4053652-0122/23,"1,410.14",JOHN BELL TAXI.
Dedicated Schools Grant BG0015,DSG High Needs Block,Transport,230009,Contract Hire,05/10/2022,4053652-0122/232,540.18,JOHN BELL TAXI.
Children and Young Peoples Services,Head of Education and Skills,Transport,230007,Contract Hire,05/10/2022,4053653-59-SEP22,"1,692.00",JOHN CRAKE & SONS MINI BUSES LTD.
Children and Young Peoples Services,Head of Education and Skills,Transport,230008,Contract Hire,05/10/2022,4053659-M00951,"3,204.00",JOVIAL PRIVATE HIRE.
Children and Young Peoples Services,Head of Education and Skills,Transport,230008,Contract Hire,05/10/2022,4053659-M01612,"1,246.00",JOVIAL PRIVATE HIRE.
Children and Young Peoples Services,Head of Education and Skills,Transport,230008,Contract Hire,05/10/2022,4053659-M01751,"2,446.85",JOVIAL PRIVATE HIRE.
Children and Young Peoples Services,Head of Education and Skills,Transport,230008,Contract Hire,05/10/2022,4053659-N030013,"2,595.60",JOVIAL PRIVATE HIRE.
Children and Young Peoples Services,Head of Education and Skills,Transport,230008,Contract Hire,05/10/2022,4053662-1308,"3,776.97",K & R TAXIS (STANLEY).
Children and Young Peoples Services,Head of Education and Skills,Transport,230016,Contract Hire,05/10/2022,4053662-1309,"3,524.40",K & R TAXIS (STANLEY).
Children and Young Peoples Services,Head of Education and Skills,Transport,230008,Contract Hire,05/10/2022,4053662-1310,"2,563.20",K & R TAXIS (STANLEY).
Children and Young Peoples Services,Head of Education and Skills,Transport,230008,Contract Hire,05/10/2022,4053662-1313,"2,563.20",K & R TAXIS (STANLEY).
Children and Young Peoples Services,Head of Education and Skills,Transport,230008,Contract Hire,05/10/2022,4053662-1315,"3,488.80",K & R TAXIS (STANLEY).
Children and Young Peoples Services,Head of Education and Skills,Transport,230012,Contract Hire,05/10/2022,4053662-1316,"3,271.20",K & R TAXIS (STANLEY).
Children and Young Peoples Services,Head of Education and Skills,Transport,230008,Contract Hire,05/10/2022,4053662-1318,"3,328.60",K & R TAXIS (STANLEY).
Children and Young Peoples Services,Head of Education and Skills,Transport,230008,Contract Hire,05/10/2022,4053662-1319,504.00,K & R TAXIS (STANLEY).
Adult and Health Services,Head of Adults,Transport,230005,Contract Hire,05/10/2022,4053662-1320,"1,302.40",K & R TAXIS (STANLEY).
Children and Young Peoples Services,Head of Education and Skills,Transport,230012,Contract Hire,05/10/2022,4053662-1327,"3,249.58",K & R TAXIS (STANLEY).
Children and Young Peoples Services,Head of Education and Skills,Transport,230007,Contract Hire,05/10/2022,4053670-2002,940.00,KINGSWAY CABS LTD.
Children and Young Peoples Services,Head of Education and Skills,Transport,230034,Contract Hire,05/10/2022,4053670-2003,"1,692.00",KINGSWAY CABS LTD.
Children and Young Peoples Services,Head of Education and Skills,Transport,230034,Contract Hire,05/10/2022,4053670-2005,"2,914.00",KINGSWAY CABS LTD.
Children and Young Peoples Services,Head of Education and Skills,Transport,230006,Contract Hire,05/10/2022,4053670-2007,"3,471.00",KINGSWAY CABS LTD.
Children and Young Peoples Services,Head of Education and Skills,Transport,230006,Contract Hire,05/10/2022,4053670-2008,"2,759.00",KINGSWAY CABS LTD.
Children and Young Peoples Services,Head of Education and Skills,Transport,230006,Contract Hire,05/10/2022,4053670-2009,"4,358.33",KINGSWAY CABS LTD.
Children and Young Peoples Services,Head of Education and Skills,Transport,230006,Contract Hire,05/10/2022,4053670-2013,"3,069.00",KINGSWAY CABS LTD.
Children and Young Peoples Services,Head of Education and Skills,Transport,230006,Contract Hire,05/10/2022,4053670-2018,"1,764.00",KINGSWAY CABS LTD.
Children and Young Peoples Services,Head of Education and Skills,Transport,230008,Contract Hire,05/10/2022,4053670-2021,"1,958.00",KINGSWAY CABS LTD.
Children and Young Peoples Services,Head of Education and Skills,Transport,230008,Contract Hire,05/10/2022,4053670-2023,"1,628.00",KINGSWAY CABS LTD.
Children and Young Peoples Services,Head of Education and Skills,Transport,230008,Contract Hire,05/10/2022,4053670-2024,"1,958.00",KINGSWAY CABS LTD.
Children and Young Peoples Services,Head of Education and Skills,Transport,230008,Contract Hire,05/10/2022,4053670-2025,"1,424.00",KINGSWAY CABS LTD.
Children and Young Peoples Services,Head of Education and Skills,Transport,230008,Contract Hire,05/10/2022,4053670-2025-SEPT22,"3,293.00",KINGSWAY CABS LTD.
Children and Young Peoples Services,Head of Education and Skills,Transport,230008,Contract Hire,05/10/2022,4053670-2026,"3,115.00",KINGSWAY CABS LTD.
Children and Young Peoples Services,Head of Education and Skills,Transport,230008,Contract Hire,05/10/2022,4053670-2027,"3,766.00",KINGSWAY CABS LTD.
Children and Young Peoples Services,Head of Education and Skills,Transport,230008,Contract Hire,05/10/2022,4053670-2028,"2,656.99",KINGSWAY CABS LTD.
Children and Young Peoples Services,Head of Education and Skills,Transport,230008,Contract Hire,05/10/2022,4053670-2030,"2,973.85",KINGSWAY CABS LTD.
Children and Young Peoples Services,Head of Education and Skills,Transport,230008,Contract Hire,05/10/2022,4053670-2032,"1,780.00",KINGSWAY CABS LTD.
Children and Young Peoples Services,Head of Education and Skills,Transport,230007,Contract Hire,05/10/2022,4053670-2032-SEPT22,800.00,KINGSWAY CABS LTD.
Children and Young Peoples Services,Head of Education and Skills,Transport,230007,Contract Hire,05/10/2022,4053670-2033,"1,470.00",KINGSWAY CABS LTD.
Children and Young Peoples Services,Head of Education and Skills,Transport,230006,Contract Hire,05/10/2022,4053670-2034,"1,015.96",KINGSWAY CABS LTD.
Children and Young Peoples Services,Head of Education and Skills,Transport,230008,Contract Hire,05/10/2022,4053670-2035,770.00,KINGSWAY CABS LTD.
Children and Young Peoples Services,Head of Education and Skills,Transport,230007,Contract Hire,05/10/2022,4053676-1006,"1,139.00",LD TAXIS.
Children and Young Peoples Services,Head of Education and Skills,Transport,230007,Contract Hire,05/10/2022,4053676-1362,"1,316.00",LD TAXIS.
Children and Young Peoples Services,Head of Education and Skills,Transport,230034,Contract Hire,05/10/2022,4053676-3063,"1,246.00",LD TAXIS.
Children and Young Peoples Services,Head of Education and Skills,Transport,230008,Contract Hire,05/10/2022,4053676-3064,"1,246.00",LD TAXIS.
Adult and Health Services,Head of Adults,Transport,230005,Contract Hire,05/10/2022,4053676-3066,"1,744.00",LD TAXIS.
Children and Young Peoples Services,Head of Education and Skills,Transport,230003,Contract Hire,05/10/2022,4053679-31598,"3,645.62",LEE`S COACHES LTD.
Children and Young Peoples Services,Head of Education and Skills,Transport,230003,Contract Hire,05/10/2022,4053679-31599,"4,865.81",LEE`S COACHES LTD.
Children and Young Peoples Services,Head of Education and Skills,Transport,230007,Contract Hire,05/10/2022,4053679-31601,"3,684.61",LEE`S COACHES LTD.
Children and Young Peoples Services,Head of Education and Skills,Transport,230007,Contract Hire,05/10/2022,4053679-31602,"2,820.00",LEE`S COACHES LTD.
Children and Young Peoples Services,Head of Education and Skills,Transport,230003,Contract Hire,05/10/2022,4053679-31604,"3,384.00",LEE`S COACHES LTD.
Children and Young Peoples Services,Head of Education and Skills,Transport,230007,Contract Hire,05/10/2022,4053679-31605,"4,042.00",LEE`S COACHES LTD.
Children and Young Peoples Services,Head of Childrens Social Care,Transport,230005,Contract Hire,05/10/2022,4053687-5240,780.00,LOCAL TRANSPORT LTD.
Children and Young Peoples Services,Head of Childrens Social Care,Transport,230005,Contract Hire,05/10/2022,4053687-5268,845.00,LOCAL TRANSPORT LTD.
Children and Young Peoples Services,Head of Childrens Social Care,Transport,230005,Contract Hire,05/10/2022,4053687-5285,990.00,LOCAL TRANSPORT LTD.
Children and Young Peoples Services,Head of Childrens Social Care,Transport,230005,Contract Hire,05/10/2022,4053687-5286,"1,080.00",LOCAL TRANSPORT LTD.
Children and Young Peoples Services,Head of Education and Skills,Transport,230008,Contract Hire,05/10/2022,4053695-INV09/2022,"3,173.94",MARK & JOHN CHISHOLM T/A (CHEVRON).
Children and Young Peoples Services,Head of Education and Skills,Transport,230008,Contract Hire,05/10/2022,4053695-INV09/202207,"1,767.20",MARK & JOHN CHISHOLM T/A (CHEVRON).
Children and Young Peoples Services,Head of Education and Skills,Transport,230010,Contract Hire,05/10/2022,4053695-INV09/202210,"3,669.60",MARK & JOHN CHISHOLM T/A (CHEVRON).
Children and Young Peoples Services,Head of Education and Skills,Transport,230010,Contract Hire,05/10/2022,4053695-INV09/202211,"3,878.40",MARK & JOHN CHISHOLM T/A (CHEVRON).
Children and Young Peoples Services,Head of Education and Skills,Transport,230010,Contract Hire,05/10/2022,4053695-INV09/202212,"1,758.60",MARK & JOHN CHISHOLM T/A (CHEVRON).
Children and Young Peoples Services,Head of Education and Skills,Transport,230010,Contract Hire,05/10/2022,4053695-INV09/202213,"3,213.64",MARK & JOHN CHISHOLM T/A (CHEVRON).
Children and Young Peoples Services,Head of Education and Skills,Transport,230008,Contract Hire,05/10/2022,4053695-INV09/202218,"2,456.40",MARK & JOHN CHISHOLM T/A (CHEVRON).
Children and Young Peoples Services,Head of Education and Skills,Transport,230008,Contract Hire,05/10/2022,4053695-INV09/202219,"2,486.40",MARK & JOHN CHISHOLM T/A (CHEVRON).
Children and Young Peoples Services,Head of Education and Skills,Transport,230008,Contract Hire,05/10/2022,4053695-INV09/202220,"1,982.40",MARK & JOHN CHISHOLM T/A (CHEVRON).
Children and Young Peoples Services,Head of Education and Skills,Transport,230008,Contract Hire,05/10/2022,4053695-INV09/202221,"3,303.07",MARK & JOHN CHISHOLM T/A (CHEVRON).
Children and Young Peoples Services,Head of Education and Skills,Transport,230008,Contract Hire,05/10/2022,4053695-INV09/202226,"4,076.40",MARK & JOHN CHISHOLM T/A (CHEVRON).
Children and Young Peoples Services,Head of Education and Skills,Transport,230008,Contract Hire,05/10/2022,4053695-INV09/202227,564.00,MARK & JOHN CHISHOLM T/A (CHEVRON).
Children and Young Peoples Services,Head of Education and Skills,Transport,230008,Contract Hire,05/10/2022,4053695-INV09/202228,"3,872.60",MARK & JOHN CHISHOLM T/A (CHEVRON).
Children and Young Peoples Services,Head of Education and Skills,Transport,230006,Contract Hire,05/10/2022,4053695-INV09/202230,"1,992.00",MARK & JOHN CHISHOLM T/A (CHEVRON).
Children and Young Peoples Services,Head of Education and Skills,Transport,230006,Contract Hire,05/10/2022,4053709-466,"1,188.00",MICKS TAXIS - MURTON.
Children and Young Peoples Services,Head of Education and Skills,Transport,230007,Contract Hire,05/10/2022,4053709-467,601.60,MICKS TAXIS - MURTON.
Children and Young Peoples Services,Head of Education and Skills,Transport,230008,Contract Hire,05/10/2022,4053713-A009-SEPT22,"2,699.93",MOLLY`S TAXIS LTD.
Children and Young Peoples Services,Head of Education and Skills,Transport,230008,Contract Hire,05/10/2022,4053713-N077-SEPT22,"3,996.00",MOLLY`S TAXIS LTD.
Children and Young Peoples Services,Head of Education and Skills,Transport,230008,Contract Hire,05/10/2022,4053715-2022002,"1,200.00",MOSSOPS LUXURY TRAVEL.
Children and Young Peoples Services,Head of Education and Skills,Transport,230007,Contract Hire,05/10/2022,4053739-1SEPTEMBER2022,"2,437.23",NC TAXI`S.
Neighbourhoods and Climate Change,Environmental Services,Transport,230005,Contract Hire,05/10/2022,4053740-156076,"1,281.30",ND BROWN LTD.
Neighbourhoods and Climate Change,Environmental Services,Transport,230005,Contract Hire,05/10/2022,4053740-156077,"3,000.00",ND BROWN LTD.
Neighbourhoods and Climate Change,Environmental Services,Transport,230005,Contract Hire,05/10/2022,4053740-156078,"2,121.30",ND BROWN LTD.
Children and Young Peoples Services,Head of Education and Skills,Transport,230006,Contract Hire,05/10/2022,4053741-SEPTEMBER2022/F806,918.00,ND TAXIS.
Neighbourhoods and Climate Change,Environmental Services,Transport,230005,Contract Hire,05/10/2022,4053756-SL07394437INV,636.72,NORTHGATE VEHICLE HIRE LTD.
Neighbourhoods and Climate Change,Environmental Services,Transport,230005,Contract Hire,05/10/2022,4053756-SL07395893INV,558.70,NORTHGATE VEHICLE HIRE LTD.
Children and Young Peoples Services,Head of Education and Skills,Transport,230007,Contract Hire,05/10/2022,4053810-221001,"2,289.08",SHOTTON PRIVATE HIRE.
Children and Young Peoples Services,Head of Education and Skills,Transport,230008,Contract Hire,05/10/2022,4053810-221002,"2,673.00",SHOTTON PRIVATE HIRE.
Children and Young Peoples Services,Head of Education and Skills,Transport,230008,Contract Hire,05/10/2022,4053810-221004,"1,890.81",SHOTTON PRIVATE HIRE.
Children and Young Peoples Services,Head of Education and Skills,Transport,230008,Contract Hire,05/10/2022,4053810-221006,"2,711.11",SHOTTON PRIVATE HIRE.
Children and Young Peoples Services,Head of Education and Skills,Transport,230008,Contract Hire,05/10/2022,4053810-221006-W050,"3,212.86",SHOTTON PRIVATE HIRE.
Children and Young Peoples Services,Head of Education and Skills,Transport,230010,Contract Hire,05/10/2022,4053810-221077,"2,766.68",SHOTTON PRIVATE HIRE.
Children and Young Peoples Services,Head of Education and Skills,Transport,230035,Contract Hire,05/10/2022,4053833-07572,"1,795.38",STANLEY TRAVEL (NORTH EAST) LTD.
Children and Young Peoples Services,Head of Education and Skills,Transport,230009,Contract Hire,05/10/2022,4053833-07573,"1,670.48",STANLEY TRAVEL (NORTH EAST) LTD.
Children and Young Peoples Services,Head of Childrens Social Care,Transport,230005,Contract Hire,05/10/2022,4053837-SEP1/STL22,510.00,STL CABS LTD.
Children and Young Peoples Services,Head of Childrens Social Care,Transport,230005,Contract Hire,05/10/2022,4053837-SEP13/STL22,590.00,STL CABS LTD.
Children and Young Peoples Services,Head of Childrens Social Care,Transport,230005,Contract Hire,05/10/2022,4053837-SEP17/STL22,504.00,STL CABS LTD.
Children and Young Peoples Services,Head of Childrens Social Care,Transport,230005,Contract Hire,05/10/2022,4053837-SEP18/STL22,637.50,STL CABS LTD.
Children and Young Peoples Services,Head of Childrens Social Care,Transport,230005,Contract Hire,05/10/2022,4053837-SEP2/STL22,826.00,STL CABS LTD.
Children and Young Peoples Services,Head of Childrens Social Care,Transport,230005,Contract Hire,05/10/2022,4053837-SEP21/STL22,504.00,STL CABS LTD.
Children and Young Peoples Services,Head of Childrens Social Care,Transport,230005,Contract Hire,05/10/2022,4053837-SEP22/STL22,504.00,STL CABS LTD.
Children and Young Peoples Services,Head of Early Help Inclusion & Vulnerable Children.,Transport,230005,Contract Hire,05/10/2022,4053837-SEP24/STL22,660.00,STL CABS LTD.
Children and Young Peoples Services,Head of Childrens Social Care,Transport,230005,Contract Hire,05/10/2022,4053837-SEP3/STL22,918.00,STL CABS LTD.
Children and Young Peoples Services,Head of Childrens Social Care,Transport,230005,Contract Hire,05/10/2022,4053837-SEP4/STL22,"1,488.00",STL CABS LTD.
Children and Young Peoples Services,Head of Childrens Social Care,Transport,230005,Contract Hire,05/10/2022,4053837-SEP6/STL22,596.00,STL CABS LTD.
Children and Young Peoples Services,Head of Childrens Social Care,Transport,230005,Contract Hire,05/10/2022,4053837-SEP8/STL22,"1,018.00",STL CABS LTD.
Children and Young Peoples Services,Head of Education and Skills,Transport,230010,Contract Hire,05/10/2022,4053848-09/2022/003,679.68,TARNS TAXIS LTD.
Children and Young Peoples Services,Head of Education and Skills,Transport,230010,Contract Hire,05/10/2022,4053848-09/2022/003-A,"2,099.14",TARNS TAXIS LTD.
Children and Young Peoples Services,Head of Education and Skills,Transport,230008,Contract Hire,05/10/2022,4053849-DCC/2022/01,"2,793.00",TAYLOR`S TAXIS.
Children and Young Peoples Services,Head of Education and Skills,Transport,230006,Contract Hire,05/10/2022,4053849-DCC/2022/03,"3,150.38",TAYLOR`S TAXIS.
Children and Young Peoples Services,Head of Education and Skills,Transport,230035,Contract Hire,05/10/2022,4053849-DCC/2022/04,"1,228.36",TAYLOR`S TAXIS.
Children and Young Peoples Services,Head of Education and Skills,Transport,230009,Contract Hire,05/10/2022,4053849-DCC/2022/06,"1,485.20",TAYLOR`S TAXIS.
Children and Young Peoples Services,Head of Education and Skills,Transport,230003,Contract Hire,05/10/2022,4053852-5030-SEPT22,"3,384.00",TED WILFORD COACHES.
Adult and Health Services,Head of Adults,Transport,230005,Contract Hire,05/10/2022,4053863-244-2,"1,074.40",THE TAXI COMPANY (MURTON) LTD.
Children and Young Peoples Services,Head of Education and Skills,Transport,230006,Contract Hire,05/10/2022,4053870-1-SEPT22,"2,578.66",TONYS TAXIS (J BIRCH).
Adult and Health Services,Head of Adults,Transport,230005,Contract Hire,05/10/2022,4053870-3-SEPT22,"1,114.47",TONYS TAXIS (J BIRCH).
Children and Young Peoples Services,Head of Education and Skills,Transport,230008,Contract Hire,05/10/2022,4053870-6-SEPT22,"2,296.20",TONYS TAXIS (J BIRCH).
Adult and Health Services,Head of Adults,Transport,230005,Contract Hire,05/10/2022,4053870-7-SEPT22,"2,616.00",TONYS TAXIS (J BIRCH).
Children and Young Peoples Services,Head of Education and Skills,Transport,230008,Contract Hire,05/10/2022,4053901-0003475,"1,984.34",WATSONS OF SPENNYMOOR.
Children and Young Peoples Services,Head of Education and Skills,Transport,230034,Contract Hire,05/10/2022,4053433-0293,"1,829.00",REDACTED - PAYMENT TO INDIVIDUAL
Children and Young Peoples Services,Head of Education and Skills,Transport,230008,Contract Hire,05/10/2022,4053433-0294,"2,995.00",REDACTED - PAYMENT TO INDIVIDUAL
Children and Young Peoples Services,Head of Education and Skills,Transport,230008,Contract Hire,05/10/2022,4053441-116,"1,579.20",REDACTED - PAYMENT TO INDIVIDUAL
Children and Young Peoples Services,Head of Education and Skills,Transport,230006,Contract Hire,05/10/2022,4053441-117,"1,261.67",REDACTED - PAYMENT TO INDIVIDUAL
Children and Young Peoples Services,Head of Education and Skills,Transport,230008,Contract Hire,05/10/2022,4053446-61,"3,402.47",REDACTED - PAYMENT TO INDIVIDUAL
Children and Young Peoples Services,Head of Education and Skills,Transport,230008,Contract Hire,05/10/2022,4053446-62,"2,483.10",REDACTED - PAYMENT TO INDIVIDUAL
Adult and Health Services,Head of Adults,Transport,230005,Contract Hire,05/10/2022,4053448-1-SEP22,672.00,REDACTED - PAYMENT TO INDIVIDUAL
Children and Young Peoples Services,Head of Education and Skills,Transport,230008,Contract Hire,05/10/2022,4053449-0143,"3,115.00",REDACTED - PAYMENT TO INDIVIDUAL
Children and Young Peoples Services,Head of Education and Skills,Transport,230008,Contract Hire,05/10/2022,4053492-BIL0283,"1,213.25",REDACTED - PAYMENT TO INDIVIDUAL
Children and Young Peoples Services,Head of Education and Skills,Transport,230009,Contract Hire,05/10/2022,4053492-BIL0284,676.80,REDACTED - PAYMENT TO INDIVIDUAL
Children and Young Peoples Services,Head of Education and Skills,Transport,230034,Contract Hire,05/10/2022,4053492-BIL0285,"2,286.68",REDACTED - PAYMENT TO INDIVIDUAL
Adult and Health Services,Head of Adults,Transport,230005,Contract Hire,05/10/2022,4053509-EAS199-SEP,"1,090.00",REDACTED - PAYMENT TO INDIVIDUAL
Children and Young Peoples Services,Head of Education and Skills,Transport,230007,Contract Hire,05/10/2022,4053510-47539,"2,700.00",REDACTED - PAYMENT TO INDIVIDUAL
Children and Young Peoples Services,Head of Education and Skills,Transport,230003,Contract Hire,05/10/2022,4053510-47540,"2,986.56",REDACTED - PAYMENT TO INDIVIDUAL
Children and Young Peoples Services,Head of Education and Skills,Transport,230003,Contract Hire,05/10/2022,4053510-47542,"2,873.00",REDACTED - PAYMENT TO INDIVIDUAL
Children and Young Peoples Services,Head of Education and Skills,Transport,230003,Contract Hire,05/10/2022,4053510-47544,"2,805.00",REDACTED - PAYMENT TO INDIVIDUAL
Children and Young Peoples Services,Head of Education and Skills,Transport,230034,Contract Hire,05/10/2022,4053511-5260/12,"1,103.60",REDACTED - PAYMENT TO INDIVIDUAL
Children and Young Peoples Services,Head of Education and Skills,Transport,230034,Contract Hire,05/10/2022,4053511-5289/12,"2,900.44",REDACTED - PAYMENT TO INDIVIDUAL
Children and Young Peoples Services,Head of Education and Skills,Transport,230008,Contract Hire,05/10/2022,4053544-18,"3,195.20",REDACTED - PAYMENT TO INDIVIDUAL
Children and Young Peoples Services,Head of Education and Skills,Transport,230008,Contract Hire,05/10/2022,4053545-0092,"3,356.10",REDACTED - PAYMENT TO INDIVIDUAL
Children and Young Peoples Services,Head of Education and Skills,Transport,230006,Contract Hire,05/10/2022,4053618-01-SEP22-F253,798.00,REDACTED - PAYMENT TO INDIVIDUAL
Children and Young Peoples Services,Head of Education and Skills,Transport,230006,Contract Hire,05/10/2022,4053618-12-SEP22-F802,"1,848.05",REDACTED - PAYMENT TO INDIVIDUAL
Children and Young Peoples Services,Head of Education and Skills,Transport,230007,Contract Hire,05/10/2022,4053629-4409-SEPT22,914.92,REDACTED - PAYMENT TO INDIVIDUAL
Adult and Health Services,Head of Adults,Transport,230005,Contract Hire,05/10/2022,4053629-CLS078-SEPT22,"1,142.73",REDACTED - PAYMENT TO INDIVIDUAL
Children and Young Peoples Services,Head of Education and Skills,Transport,230009,Contract Hire,05/10/2022,4053629-G001-SEPT22,832.00,REDACTED - PAYMENT TO INDIVIDUAL
Children and Young Peoples Services,Head of Education and Skills,Transport,230008,Contract Hire,05/10/2022,4053629-N098-SEPT22,"1,424.00",REDACTED - PAYMENT TO INDIVIDUAL
Children and Young Peoples Services,Head of Education and Skills,Transport,230010,Contract Hire,05/10/2022,4053630-WOOD001-1,"1,628.40",REDACTED - PAYMENT TO INDIVIDUAL
Children and Young Peoples Services,Head of Education and Skills,Transport,230010,Contract Hire,05/10/2022,4053630-WOOD001-2,563.00,REDACTED - PAYMENT TO INDIVIDUAL
Children and Young Peoples Services,Head of Education and Skills,Transport,230006,Contract Hire,05/10/2022,4053645-DCC01,"2,350.00",REDACTED - PAYMENT TO INDIVIDUAL
Children and Young Peoples Services,Head of Education and Skills,Transport,230008,Contract Hire,05/10/2022,4053656-200,"2,848.00",REDACTED - PAYMENT TO INDIVIDUAL
Children and Young Peoples Services,Head of Education and Skills,Transport,230008,Contract Hire,05/10/2022,4053656-201,"1,980.00",REDACTED - PAYMENT TO INDIVIDUAL
Children and Young Peoples Services,Head of Education and Skills,Transport,230008,Contract Hire,05/10/2022,4053656-202,"3,382.00",REDACTED - PAYMENT TO INDIVIDUAL
Children and Young Peoples Services,Head of Education and Skills,Transport,230008,Contract Hire,05/10/2022,4053656-203,"3,572.00",REDACTED - PAYMENT TO INDIVIDUAL
Children and Young Peoples Services,Head of Education and Skills,Transport,230008,Contract Hire,05/10/2022,4053656-205,"1,424.00",REDACTED - PAYMENT TO INDIVIDUAL
Children and Young Peoples Services,Head of Education and Skills,Transport,230008,Contract Hire,05/10/2022,4053656-205-SEPT22,"2,751.17",REDACTED - PAYMENT TO INDIVIDUAL
Children and Young Peoples Services,Head of Education and Skills,Transport,230016,Contract Hire,05/10/2022,4053656-206,"2,492.00",REDACTED - PAYMENT TO INDIVIDUAL
Children and Young Peoples Services,Head of Education and Skills,Transport,230016,Contract Hire,05/10/2022,4053656-207,"2,848.00",REDACTED - PAYMENT TO INDIVIDUAL
Children and Young Peoples Services,Head of Education and Skills,Transport,230008,Contract Hire,05/10/2022,4053656-208,"3,264.03",REDACTED - PAYMENT TO INDIVIDUAL
Adult and Health Services,Head of Adults,Transport,230005,Contract Hire,05/10/2022,4053657-271,"1,078.25",REDACTED - PAYMENT TO INDIVIDUAL
Children and Young Peoples Services,Head of Education and Skills,Transport,230010,Contract Hire,05/10/2022,4053657-273,"1,350.85",REDACTED - PAYMENT TO INDIVIDUAL
Children and Young Peoples Services,Head of Education and Skills,Transport,230034,Contract Hire,05/10/2022,4053664-BC001,645.00,REDACTED - PAYMENT TO INDIVIDUAL
Children and Young Peoples Services,Head of Education and Skills,Transport,230007,Contract Hire,05/10/2022,4053664-TL001,"2,068.00",REDACTED - PAYMENT TO INDIVIDUAL
Children and Young Peoples Services,Head of Education and Skills,Transport,230009,Contract Hire,05/10/2022,4053665-010922,"1,823.22",REDACTED - PAYMENT TO INDIVIDUAL
Children and Young Peoples Services,Head of Education and Skills,Transport,230007,Contract Hire,05/10/2022,4053666-CTD0012/22,"1,410.00",REDACTED - PAYMENT TO INDIVIDUAL
Children and Young Peoples Services,Head of Education and Skills,Transport,230007,Contract Hire,05/10/2022,4053672-002-SEP22,"1,139.20",REDACTED - PAYMENT TO INDIVIDUAL
Children and Young Peoples Services,Head of Education and Skills,Transport,230008,Contract Hire,05/10/2022,4053681-0100,"2,550.00",REDACTED - PAYMENT TO INDIVIDUAL
Children and Young Peoples Services,Head of Education and Skills,Transport,230008,Contract Hire,05/10/2022,4053690-12-SEP22,"2,034.54",REDACTED - PAYMENT TO INDIVIDUAL
Children and Young Peoples Services,Head of Education and Skills,Transport,230008,Contract Hire,05/10/2022,4053697-12-SEP,"1,246.00",REDACTED - PAYMENT TO INDIVIDUAL
Children and Young Peoples Services,Head of Education and Skills,Transport,230008,Contract Hire,05/10/2022,4053698-0105,"2,189.40",REDACTED - PAYMENT TO INDIVIDUAL
Children and Young Peoples Services,Head of Education and Skills,Transport,230008,Contract Hire,05/10/2022,4053698-0106,"2,194.56",REDACTED - PAYMENT TO INDIVIDUAL
Children and Young Peoples Services,Head of Education and Skills,Transport,230008,Contract Hire,05/10/2022,4053698-0107,"2,848.00",REDACTED - PAYMENT TO INDIVIDUAL
Children and Young Peoples Services,Head of Education and Skills,Transport,230008,Contract Hire,05/10/2022,4053705-246,"2,090.00",REDACTED - PAYMENT TO INDIVIDUAL
Children and Young Peoples Services,Head of Education and Skills,Transport,230008,Contract Hire,05/10/2022,4053721-CROFT1-09-22,"1,831.26",REDACTED - PAYMENT TO INDIVIDUAL
Children and Young Peoples Services,Head of Education and Skills,Transport,230008,Contract Hire,05/10/2022,4053721-DTR1-09-22,"2,303.32",REDACTED - PAYMENT TO INDIVIDUAL
Children and Young Peoples Services,Head of Education and Skills,Transport,230009,Contract Hire,05/10/2022,4053721-FRAM1-09-22,"1,473.92",REDACTED - PAYMENT TO INDIVIDUAL
Children and Young Peoples Services,Head of Education and Skills,Transport,230008,Contract Hire,05/10/2022,4053721-PAK2-09-22,"2,135.11",REDACTED - PAYMENT TO INDIVIDUAL
Children and Young Peoples Services,Head of Education and Skills,Transport,230012,Contract Hire,05/10/2022,4053722-E054-SEPT22,"2,049.20",REDACTED - PAYMENT TO INDIVIDUAL
Children and Young Peoples Services,Head of Education and Skills,Transport,230007,Contract Hire,05/10/2022,4053723-DURHAMGATEWAY300922,960.00,REDACTED - PAYMENT TO INDIVIDUAL
Children and Young Peoples Services,Head of Education and Skills,Transport,230035,Contract Hire,05/10/2022,4053723-WHIT300922,"1,111.97",REDACTED - PAYMENT TO INDIVIDUAL
Children and Young Peoples Services,Head of Education and Skills,Transport,230012,Contract Hire,05/10/2022,4053725-E038-SEPT22,"2,068.00",REDACTED - PAYMENT TO INDIVIDUAL
Children and Young Peoples Services,Head of Education and Skills,Transport,230008,Contract Hire,05/10/2022,4053725-N014-SEP22,"3,365.20",REDACTED - PAYMENT TO INDIVIDUAL
Children and Young Peoples Services,Head of Education and Skills,Transport,230008,Contract Hire,05/10/2022,4053727-JK221122,"4,368.00",REDACTED - PAYMENT TO INDIVIDUAL
Children and Young Peoples Services,Head of Education and Skills,Transport,230008,Contract Hire,05/10/2022,4053732-336,"2,670.00",REDACTED - PAYMENT TO INDIVIDUAL
Children and Young Peoples Services,Head of Education and Skills,Transport,230008,Contract Hire,05/10/2022,4053732-337,"3,337.07",REDACTED - PAYMENT TO INDIVIDUAL
Children and Young Peoples Services,Head of Education and Skills,Transport,230008,Contract Hire,05/10/2022,4053732-338,"2,634.40",REDACTED - PAYMENT TO INDIVIDUAL
Children and Young Peoples Services,Head of Education and Skills,Transport,230008,Contract Hire,05/10/2022,4053732-339,"3,146.33",REDACTED - PAYMENT TO INDIVIDUAL
Children and Young Peoples Services,Head of Education and Skills,Transport,230008,Contract Hire,05/10/2022,4053732-340,"4,246.00",REDACTED - PAYMENT TO INDIVIDUAL
Children and Young Peoples Services,Head of Education and Skills,Transport,230016,Contract Hire,05/10/2022,4053732-342,"2,251.34",REDACTED - PAYMENT TO INDIVIDUAL
Children and Young Peoples Services,Head of Education and Skills,Transport,230008,Contract Hire,05/10/2022,4053732-343,"2,492.00",REDACTED - PAYMENT TO INDIVIDUAL
Children and Young Peoples Services,Head of Education and Skills,Transport,230012,Contract Hire,05/10/2022,4053732-344,"2,110.19",REDACTED - PAYMENT TO INDIVIDUAL
Children and Young Peoples Services,Head of Education and Skills,Transport,230008,Contract Hire,05/10/2022,4053732-345,"1,958.00",REDACTED - PAYMENT TO INDIVIDUAL
Children and Young Peoples Services,Head of Education and Skills,Transport,230012,Contract Hire,05/10/2022,4053732-346,"1,432.45",REDACTED - PAYMENT TO INDIVIDUAL
Children and Young Peoples Services,Head of Education and Skills,Transport,230008,Contract Hire,05/10/2022,4053732-347,"2,017.68",REDACTED - PAYMENT TO INDIVIDUAL
Children and Young Peoples Services,Head of Education and Skills,Transport,230008,Contract Hire,05/10/2022,4053732-348,"1,646.40",REDACTED - PAYMENT TO INDIVIDUAL
Children and Young Peoples Services,Head of Education and Skills,Transport,230009,Contract Hire,05/10/2022,4053732-349,"1,426.85",REDACTED - PAYMENT TO INDIVIDUAL
Adult and Health Services,Head of Adults,Transport,230005,Contract Hire,05/10/2022,4053732-350,624.00,REDACTED - PAYMENT TO INDIVIDUAL
Children and Young Peoples Services,Head of Education and Skills,Transport,230006,Contract Hire,05/10/2022,4053733-DCC085,871.00,REDACTED - PAYMENT TO INDIVIDUAL
Children and Young Peoples Services,Head of Education and Skills,Transport,230008,Contract Hire,05/10/2022,4053733-DCC086,"2,142.00",REDACTED - PAYMENT TO INDIVIDUAL
Children and Young Peoples Services,Head of Education and Skills,Transport,230009,Contract Hire,05/10/2022,4053737-DCC/005/22-4390,"1,366.20",REDACTED - PAYMENT TO INDIVIDUAL
Children and Young Peoples Services,Head of Education and Skills,Transport,230034,Contract Hire,05/10/2022,4053737-DCC/005/22-4411,"2,100.00",REDACTED - PAYMENT TO INDIVIDUAL
Children and Young Peoples Services,Head of Education and Skills,Transport,230009,Contract Hire,05/10/2022,4053737-DCC/005/22-G002,"1,154.40",REDACTED - PAYMENT TO INDIVIDUAL
Children and Young Peoples Services,Head of Education and Skills,Transport,230008,Contract Hire,05/10/2022,4053743-90,"2,256.00",REDACTED - PAYMENT TO INDIVIDUAL
Children and Young Peoples Services,Head of Education and Skills,Transport,230007,Contract Hire,05/10/2022,4053834-5290-SEPT22,"1,477.49",REDACTED - PAYMENT TO INDIVIDUAL
Children and Young Peoples Services,Head of Education and Skills,Transport,230008,Contract Hire,05/10/2022,4053717-700-SEPT22,"1,000.00",REDACTED - PAYMENT TO INDIVIDUAL
Children and Young Peoples Services,Head of Childrens Social Care,Transport,230005,Contract Hire,05/10/2022,4053836-SI-2062,576.00,REDACTED - PAYMENT TO INDIVIDUAL
Children and Young Peoples Services,Head of Childrens Social Care,Transport,230005,Contract Hire,05/10/2022,4053836-SI-2070,576.00,REDACTED - PAYMENT TO INDIVIDUAL
Adult and Health Services,Public Health CC0450,Third Party Payments,460803,Contract Payments,05/10/2022,4053777-18019/18,"5,462.92",PIONEERING CARE PARTNERSHIP.
Adult and Health Services,Public Health CC0450,Third Party Payments,460803,Contract Payments,05/10/2022,4053777-18020/18,"7,327.00",PIONEERING CARE PARTNERSHIP.
Regeneration Economy and Growth,Culture Sport and Tourism,Premises,120037,Energy Costs,05/10/2022,4053493-35443501,647.36,CALOR GAS LTD.
Neighbourhoods and Climate Change,Environmental Services,Supplies and Services,304252,Equipment and Materials,05/10/2022,4053458-INV001488,745.00,ASSOCIATED MAINTENANCE SERVICES LTD.
Resources BK0010,Digital Services,Supplies and Services,304303,Equipment and Materials,05/10/2022,4053489-SINV00209815,"1,644.70",BUSINESS IT SUPPORT TEAM LTD (BIST).
Resources BK0010,Digital Services,Supplies and Services,304639,Equipment and Materials,05/10/2022,4053548-7402854800,"1,327.00",DELL COMPUTER CORPORATION LTD.
Neighbourhoods and Climate Change,Environmental Services,Supplies and Services,304259,Equipment and Materials,05/10/2022,4053622-1446992192,654.80,HILTI (GB) LTD.
Regeneration Economy and Growth,Corporate Property and Land,Supplies and Services,304221,Equipment and Materials,05/10/2022,4053661-0113/00731697,911.82,JT DOVE LTD.
Neighbourhoods and Climate Change,Environmental Services,Supplies and Services,304221,Equipment and Materials,05/10/2022,4053661-0123/00714419,518.40,JT DOVE LTD.
Regeneration Economy and Growth,Corporate Property and Land,Supplies and Services,304221,Equipment and Materials,05/10/2022,4053661-0213/00757039,970.43,JT DOVE LTD.
Neighbourhoods and Climate Change,Technical Services CM0300,Supplies and Services,304221,Equipment and Materials,05/10/2022,4053661-0303/00714424,758.26,JT DOVE LTD.
Neighbourhoods and Climate Change,Technical Services CM0300,Supplies and Services,304221,Equipment and Materials,05/10/2022,4053661-0303/00737443,758.26,JT DOVE LTD.
Neighbourhoods and Climate Change,Technical Services CM0300,Supplies and Services,304221,Equipment and Materials,05/10/2022,4053661-0303/00744218,797.64,JT DOVE LTD.
Regeneration Economy and Growth,Corporate Property and Land,Supplies and Services,304221,Equipment and Materials,05/10/2022,4053680-99819,525.00,LEISURETEQ LTD.
Neighbourhoods and Climate Change,Technical Services CM0300,Supplies and Services,304221,Equipment and Materials,05/10/2022,4053748-NPSL1689,"11,489.20",NORDIC PRODUCTS & SERVICES LTD.
Regeneration Economy and Growth,Culture Sport and Tourism,Supplies and Services,304259,Equipment and Materials,05/10/2022,4053795-SIN023240,"1,075.80",RLSS UK ENTERPRISES LTD T/A RLSS UK SHOP.
Regeneration Economy and Growth,Culture Sport and Tourism,Supplies and Services,304252,Equipment and Materials,05/10/2022,4053825-SI002715,"1,095.00",SPEKTRIX LTD.
Regeneration Economy and Growth,Corporate Property and Land,Supplies and Services,304221,Equipment and Materials,05/10/2022,4053891-6890461896,"17,175.50",VIESSMANN LTD.
Neighbourhoods and Climate Change,Environmental Services,Supplies and Services,304221,Equipment and Materials,05/10/2022,4053907-57395,"6,269.50",WILLOWCRETE MANUFACTURING COMPANY LTD (MFG).
Neighbourhoods and Climate Change,Environmental Services,Supplies and Services,304252,Equipment and Materials,05/10/2022,4053909-22-0596,534.00,WM O SILMON LTD.
Resources BK0010,Digital Services,Supplies and Services,304639,Equipment and Materials,05/10/2022,4053912-LC68267,577.78,XMA LTD.
Neighbourhoods and Climate Change,Environmental Services,Supplies and Services,304259,Equipment and Materials,05/10/2022,4053915-1004695,"5,719.60",YOUR NRG LTD.
Neighbourhoods and Climate Change,Environmental Services,Supplies and Services,304252,Equipment and Materials,05/10/2022,4053876-12023525,895.00,TQ ENVIRONMENTAL LTD.
Regeneration Economy and Growth,Culture Sport and Tourism,Supplies and Services,304259,Equipment and Materials,05/10/2022,4053538-2113140314,"1,383.06",DACHSER LTD.
Neighbourhoods and Climate Change,Environmental Services,Supplies and Services,304259,Equipment and Materials,05/10/2022,4053621-2606272,"1,336.00",HILLS NUMBERPLATES LTD.
Resources BK0010,Corporate Finance & Commercial Services,Supplies and Services,304040,Equipment and Materials,05/10/2022,4053625-KF053,"2,800.00",HOUSING FINANCE SEPCIALISTS (HFS) LTD.
Neighbourhoods and Climate Change,Environmental Services,Supplies and Services,304252,Equipment and Materials,05/10/2022,4053842-129002,"2,750.00",SWARCO UK LTD.
Neighbourhoods and Climate Change,Technical Services CM0300,Supplies and Services,304221,Equipment and Materials,05/10/2022,4053587-19745,"7,713.24",EXTERIOR LIGHTING SOLUTIONS (UK) LTD.
Children and Young Peoples Services,Head of Early Help Inclusion & Vulnerable Children.,Supplies and Services,384199,Miscellaneous Expenses,05/10/2022,4053429-14902,968.00,1AB TAXIS LTD.
Regeneration Economy and Growth,Corporate Property and Land,Supplies and Services,384199,Miscellaneous Expenses,05/10/2022,4053459-22040024,"6,711.02",ATKINS GLOBAL.
Neighbourhoods and Climate Change,Environmental Services,Supplies and Services,384199,Miscellaneous Expenses,05/10/2022,4053699-1341,"3,479.00",MARSDEN AES LTD.
Children and Young Peoples Services,Head of Childrens Social Care,Supplies and Services,384500,Miscellaneous Expenses,05/10/2022,4053749-3573A,840.00,NORTH EAST ADOPTION THERAPY SERVICES LTD (NEATS).
Regeneration Economy and Growth,Culture Sport and Tourism,Supplies and Services,384199,Miscellaneous Expenses,05/10/2022,4053496-4100792610,"2,500.00",REDACTED - PAYMENT TO INDIVIDUAL
Regeneration Economy and Growth,Culture Sport and Tourism,Supplies and Services,384302,Miscellaneous Expenses,05/10/2022,4053497-0421,600.00,REDACTED - PAYMENT TO INDIVIDUAL
Regeneration Economy and Growth,Culture Sport and Tourism,Supplies and Services,384302,Miscellaneous Expenses,05/10/2022,4053543-4100780582-2ND,525.00,REDACTED - PAYMENT TO INDIVIDUAL
Regeneration Economy and Growth,Planning & Housing,Supplies and Services,384999,Miscellaneous Expenses,05/10/2022,4053719-RES-10-2022-037,999.98,REDACTED - PAYMENT TO INDIVIDUAL
Regeneration Economy and Growth,Planning & Housing,Supplies and Services,384199,Miscellaneous Expenses,05/10/2022,4053478-2740,"2,275.00",BOB SMITH COACHES.
Regeneration Economy and Growth,Culture Sport and Tourism,Supplies and Services,312013,Newspapers books and periodicals E312,05/10/2022,4053480-98609,582.61,BOLINDA DIGITAL LTD.
Regeneration Economy and Growth,Planning & Housing,Third Party Payments,440999,Other third party payments E440,05/10/2022,4053463-104630,"6,514.32",BAYDALE CONTROL SYSTEMS LTD.
Children and Young Peoples Services,Head of Childrens Social Care,Third Party Payments,440046,Other third party payments E440,05/10/2022,4053499-23052,"18,000.00",CASTLE VIEW GROUP TRAINING.
Children and Young Peoples Services,Head of Childrens Social Care,Third Party Payments,440046,Other third party payments E440,05/10/2022,4053499-23054,"8,300.00",CASTLE VIEW GROUP TRAINING.
Children and Young Peoples Services,Head of Childrens Social Care,Third Party Payments,440046,Other third party payments E440,05/10/2022,4053499-23056,"6,720.00",CASTLE VIEW GROUP TRAINING.
Children and Young Peoples Services,Head of Childrens Social Care,Third Party Payments,440046,Other third party payments E440,05/10/2022,4053499-23058,"10,575.00",CASTLE VIEW GROUP TRAINING.
Children and Young Peoples Services,Head of Childrens Social Care,Third Party Payments,440046,Other third party payments E440,05/10/2022,4053499-23060,"13,832.50",CASTLE VIEW GROUP TRAINING.
Children and Young Peoples Services,Head of Childrens Social Care,Third Party Payments,440046,Other third party payments E440,05/10/2022,4053499-23109,"4,800.00",CASTLE VIEW GROUP TRAINING.
Children and Young Peoples Services,Head of Childrens Social Care,Third Party Payments,440046,Other third party payments E440,05/10/2022,4053499-23110,"2,250.00",CASTLE VIEW GROUP TRAINING.
Children and Young Peoples Services,Head of Childrens Social Care,Third Party Payments,440046,Other third party payments E440,05/10/2022,4053499-23111,630.00,CASTLE VIEW GROUP TRAINING.
Children and Young Peoples Services,Head of Childrens Social Care,Third Party Payments,440046,Other third party payments E440,05/10/2022,4053499-23112,"8,380.00",CASTLE VIEW GROUP TRAINING.
Children and Young Peoples Services,Head of Childrens Social Care,Third Party Payments,440046,Other third party payments E440,05/10/2022,4053499-23114,"6,745.00",CASTLE VIEW GROUP TRAINING.
Children and Young Peoples Services,Head of Childrens Social Care,Third Party Payments,440046,Other third party payments E440,05/10/2022,4053499-23116,"10,087.50",CASTLE VIEW GROUP TRAINING.
Children and Young Peoples Services,Head of Childrens Social Care,Third Party Payments,440046,Other third party payments E440,05/10/2022,4053499-23119,"10,285.00",CASTLE VIEW GROUP TRAINING.
Children and Young Peoples Services,Head of Childrens Social Care,Third Party Payments,440046,Other third party payments E440,05/10/2022,4053499-23164,"5,520.00",CASTLE VIEW GROUP TRAINING.
Children and Young Peoples Services,Head of Childrens Social Care,Third Party Payments,440046,Other third party payments E440,05/10/2022,4053499-23165,"8,480.00",CASTLE VIEW GROUP TRAINING.
Children and Young Peoples Services,Head of Childrens Social Care,Third Party Payments,440046,Other third party payments E440,05/10/2022,4053499-23167,"6,720.00",CASTLE VIEW GROUP TRAINING.
Children and Young Peoples Services,Head of Childrens Social Care,Third Party Payments,440046,Other third party payments E440,05/10/2022,4053499-23169,"9,295.00",CASTLE VIEW GROUP TRAINING.
Children and Young Peoples Services,Head of Childrens Social Care,Third Party Payments,440046,Other third party payments E440,05/10/2022,4053499-23171,"10,837.50",CASTLE VIEW GROUP TRAINING.
Children and Young Peoples Services,Head of Childrens Social Care,Third Party Payments,440046,Other third party payments E440,05/10/2022,4053499-23220,"5,890.00",CASTLE VIEW GROUP TRAINING.
Children and Young Peoples Services,Head of Childrens Social Care,Third Party Payments,440046,Other third party payments E440,05/10/2022,4053499-23222,"6,460.00",CASTLE VIEW GROUP TRAINING.
Children and Young Peoples Services,Head of Childrens Social Care,Third Party Payments,440046,Other third party payments E440,05/10/2022,4053499-23224,"6,800.00",CASTLE VIEW GROUP TRAINING.
Children and Young Peoples Services,Head of Childrens Social Care,Third Party Payments,440046,Other third party payments E440,05/10/2022,4053499-23226,"9,652.50",CASTLE VIEW GROUP TRAINING.
Children and Young Peoples Services,Head of Childrens Social Care,Third Party Payments,440046,Other third party payments E440,05/10/2022,4053499-23228,"9,637.50",CASTLE VIEW GROUP TRAINING.
Children and Young Peoples Services,Head of Childrens Social Care,Third Party Payments,440046,Other third party payments E440,05/10/2022,4053499-23239,"2,400.00",CASTLE VIEW GROUP TRAINING.
Regeneration Economy and Growth,Planning & Housing,Third Party Payments,440999,Other third party payments E440,05/10/2022,4053514-CLC-5019-37-INV001,500.00,CLEAR CLIMATE LTD.
Regeneration Economy and Growth,Culture Sport and Tourism,Supplies and Services,324117,Provisions E324,05/10/2022,4053473-53472876,687.19,BIDFOOD.
Regeneration Economy and Growth,Culture Sport and Tourism,Supplies and Services,324117,Provisions E324,05/10/2022,4053473-53540888,785.80,BIDFOOD.
Regeneration Economy and Growth,Culture Sport and Tourism,Supplies and Services,324001,Provisions E324,05/10/2022,4053714-906732100,500.71,MOLSON COORS BREWING COMPANY (UK) LTD.
Children and Young Peoples Services,Head of Early Help Inclusion & Vulnerable Children.,Supplies and Services,324117,Provisions E324,05/10/2022,4053516-BCC22044,606.20,CLOISTERS OF DURHAM LTD (CAFE 22).
Adult and Health Services,Head of Adults,Third Party Payments,478151,Purchase of Care,05/10/2022,4053434-SI-1719,"3,596.46",ACCEPT CARE LTD.
Adult and Health Services,Head of Adults,Third Party Payments,478151,Purchase of Care,05/10/2022,4053434-SI-1720,"1,174.25",ACCEPT CARE LTD.
Adult and Health Services,Head of Adults,Third Party Payments,478151,Purchase of Care,05/10/2022,4053461-D720004222,"4,732.28",AUTISM CARE UK (4) LTD.
Adult and Health Services,Head of Adults,Third Party Payments,478151,Purchase of Care,05/10/2022,4053461-D720004223,"4,732.28",AUTISM CARE UK (4) LTD.
Adult and Health Services,Head of Adults,Third Party Payments,478151,Purchase of Care,05/10/2022,4053578-HIGHFIELDP4-2022,"2,171.44",EMBRACING CARE.
Adult and Health Services,Head of Adults,Third Party Payments,479102,Purchase of Care,05/10/2022,4053781-004,"1,870.56",POSITIVE CARE & SUPPORT LTD.
Adult and Health Services,Head of Adults,Third Party Payments,479102,Purchase of Care,05/10/2022,4053781-020,"7,990.50",POSITIVE CARE & SUPPORT LTD.
Adult and Health Services,Head of Adults,Third Party Payments,479102,Purchase of Care,05/10/2022,4053781-INV-0031,"5,329.40",POSITIVE CARE & SUPPORT LTD.
Adult and Health Services,Head of Adults,Third Party Payments,479102,Purchase of Care,05/10/2022,4053781-INV-0032,"4,796.46",POSITIVE CARE & SUPPORT LTD.
Children and Young Peoples Services,Head of Early Help Inclusion & Vulnerable Children.,Third Party Payments,410037,Rendered by Other Local Authorities,05/10/2022,4053911-0366,"1,250.00",WORLD ALTERNATIVE EDUCATION LTD.
Children and Young Peoples Services,Head of Early Help Inclusion & Vulnerable Children.,Third Party Payments,410037,Rendered by Other Local Authorities,05/10/2022,4053911-0401,"4,500.00",WORLD ALTERNATIVE EDUCATION LTD.
Children and Young Peoples Services,Head of Early Help Inclusion & Vulnerable Children.,Third Party Payments,410037,Rendered by Other Local Authorities,05/10/2022,4053911-0403,"1,500.00",WORLD ALTERNATIVE EDUCATION LTD.
Regeneration Economy and Growth,Corporate Property and Land,Third Party Payments,430100,Rendered by Private Contractors,05/10/2022,4053436-50812231,"1,364.39",ADT FIRE & SECURITY PLC.
Regeneration Economy and Growth,Corporate Property and Land,Third Party Payments,430100,Rendered by Private Contractors,05/10/2022,4053501-10180,924.00,CATHEDRAL LOCK & SAFE SERVICES LTD.
Regeneration Economy and Growth,Corporate Property and Land,Third Party Payments,430100,Rendered by Private Contractors,05/10/2022,4053634-13081,"4,758.03",INGLEFORD SCAFFOLDING LTD.
Regeneration Economy and Growth,Corporate Property and Land,Third Party Payments,430100,Rendered by Private Contractors,05/10/2022,4053634-13086,"2,112.00",INGLEFORD SCAFFOLDING LTD.
Regeneration Economy and Growth,Corporate Property and Land,Third Party Payments,430100,Rendered by Private Contractors,05/10/2022,4053638-1560,"183,710.42",IVEGATE LTD.
Neighbourhoods and Climate Change,Technical Services CM0300,Third Party Payments,430100,Rendered by Private Contractors,05/10/2022,4053641-26968,"2,764.93",JACK COUPE & SONS LTD T/A COUPE LINE.
Regeneration Economy and Growth,Corporate Property and Land,Third Party Payments,430100,Rendered by Private Contractors,05/10/2022,4053799-7014,"4,090.00",SAFE STRIP UK LTD.
Regeneration Economy and Growth,Corporate Property and Land,Third Party Payments,430100,Rendered by Private Contractors,05/10/2022,4053830-8214,"10,377.22",ST ASTIER LTD.
Neighbourhoods and Climate Change,Environmental Services,Third Party Payments,430100,Rendered by Private Contractors,05/10/2022,4053873-TRNE033930,553.00,TOTAL RESOURCES (UK) LTD.
Regeneration Economy and Growth,Culture Sport and Tourism,Third Party Payments,430131,Rendered by Private Contractors,05/10/2022,4053708-2022034,"1,004.00",REDACTED - PAYMENT TO INDIVIDUAL
Neighbourhoods and Climate Change,Environmental Services,Third Party Payments,430100,Rendered by Private Contractors,05/10/2022,4053869-INV0186,620.00,TOM CARTER T/A ARBORLINE TREE SERVICES.
Neighbourhoods and Climate Change,Environmental Services,Transport,215012,Running Costs of Vehicles,05/10/2022,4053508-196914,833.00,CHEVIN FLEET SOLUTIONS LTD.
Neighbourhoods and Climate Change,Environmental Services,Transport,215005,Running Costs of Vehicles,05/10/2022,4053915-987137,"17,360.89",YOUR NRG LTD.
Neighbourhoods and Climate Change,Environmental Services,Transport,215005,Running Costs of Vehicles,05/10/2022,4053915-991286,"25,972.11",YOUR NRG LTD.
Children and Young Peoples Services,Head of Education and Skills,Supplies and Services,338094,Services,05/10/2022,4053443-7563,504.00,ALINGTON HOUSE COMMUNITY ASSOCIATION.
Resources BK0010,Corporate Finance & Commercial Services,Supplies and Services,338066,Services,05/10/2022,4053477-SIN036974,"43,354.89",BLOOM PROCUREMENT SERVICES LTD (FORMERLY NEPRO LTD).
Neighbourhoods and Climate Change,Environmental Services,Supplies and Services,338066,Services,05/10/2022,4053580-1014-22832,650.00,ENERGY & COMPLIANCE TECHNOLOGY LTD T/A COMPLIANCE365.
Neighbourhoods and Climate Change,Environmental Services,Supplies and Services,338099,Services,05/10/2022,4053600-GEOUK2828,"1,798.00",GEOMATICS UK LTD.
Neighbourhoods and Climate Change,Technical Services CM0300,Supplies and Services,338066,Services,05/10/2022,4053644-B225H016-006,"25,649.79",JACOBS UK LTD.
Resources BK0010,Digital Services,Supplies and Services,338066,Services,05/10/2022,4053736-MSCINV-2485,"1,485.00",MSC IT SOLUTIONS LTD.
Neighbourhoods and Climate Change,Environmental Services,Supplies and Services,338027,Services,05/10/2022,4053817-0000982482,"1,566.71",SOCOTEC UK LTD.
Resources BK0010,HR & Employee Services,Supplies and Services,338094,Services,05/10/2022,4053857-6851,818.00,THE DURHAM CENTRE LTD.
Regeneration Economy and Growth,Business Durham CL0850,Supplies and Services,338066,Services,05/10/2022,4053865-TICEUK2223-01,"6,000.00",THIS IS CREATIVE ENTERPRISE CIC.
Resources BK0010,Legal & Democratic Services,Supplies and Services,338042,Services,05/10/2022,4053880-301993/INVGR460,720.00,TRINITY CHAMBERS.
Regeneration Economy and Growth,Business Durham CL0850,Supplies and Services,338066,Services,05/10/2022,4053887-63028,"1,200.00",UNW LLP.
Neighbourhoods and Climate Change,Environmental Services,Supplies and Services,338066,Services,05/10/2022,4053913-SI104192,"3,885.45",YORKSHIRE DALES NATIONAL PARK AUTHORITY (NPA).
Resources BK0010,Legal & Democratic Services,Supplies and Services,338025,Services,05/10/2022,4053555-9/2022,"1,350.00",REDACTED - PAYMENT TO INDIVIDUAL
Neighbourhoods and Climate Change,Environmental Services,Supplies and Services,338066,Services,05/10/2022,4053784-11893,696.00,PRINTING SERVICES (NORTH EAST) LTD.
Resources BK0010,Digital Services,Stock A926,926900,Stock in hand-Inventory system,05/10/2022,4053548-7402852577,535.20,DELL COMPUTER CORPORATION LTD.
Neighbourhoods and Climate Change,Environmental Services,Stock A926,926900,Stock in hand-Inventory system,05/10/2022,4053667-SI02-0371331,599.17,KILLGERM CHEMICALS LTD.
Neighbourhoods and Climate Change,Technical Services CM0300,Stock A926,926900,Stock in hand-Inventory system,05/10/2022,4053700-306026,872.70,MARWOOD ELECTRICAL COMPANY LTD.
Neighbourhoods and Climate Change,Technical Services CM0300,Stock A926,926900,Stock in hand-Inventory system,05/10/2022,4053767-XL291493,"7,975.00",PARK ELECTRICAL DISTRIBUTORS LTD.
Neighbourhoods and Climate Change,Technical Services CM0300,Stock A926,926900,Stock in hand-Inventory system,05/10/2022,4053776-1444454,708.73,PILKINGTON UNITED KINGDOM LTD.
Resources BK0010,Digital Services,Supplies and Services,344015,Telephones,05/10/2022,4053894-RP01089,"2,920.00",VODAFONE CORPORATE LTD.
Resources BK0010,Digital Services,Supplies and Services,344015,Telephones,05/10/2022,4053894-RP30573,"1,035.00",VODAFONE CORPORATE LTD.
Resources BK0010,Digital Services,Supplies and Services,344015,Telephones,05/10/2022,4053894-RP80654,"1,885.00",VODAFONE CORPORATE LTD.
Resources BK0010,Digital Services,Supplies and Services,344015,Telephones,05/10/2022,4053894-RQ02434,"1,863.00",VODAFONE CORPORATE LTD.
Resources BK0010,Digital Services,Supplies and Services,344015,Telephones,05/10/2022,4053894-RQ02435,"1,678.00",VODAFONE CORPORATE LTD.
Regeneration Economy and Growth,Planning & Housing,Premises,135005,Water Services,05/10/2022,4053758-085981020022453499,"2,953.33",NORTHUMBRIAN WATER LTD.
Children and Young Peoples Services,Head of Childrens Social Care,Premises,135005,Water Services,05/10/2022,4053758-359144131223390237,707.35,NORTHUMBRIAN WATER LTD.
Regeneration Economy and Growth,Planning & Housing,Premises,135005,Water Services,05/10/2022,4053758-514548020022447406,"3,247.30",NORTHUMBRIAN WATER LTD.
Neighbourhoods and Climate Change,Technical Services CM0300,Supplies and Services,336005,Advertising E336,06/10/2022,4054173-41061207,749.95,NEWSQUEST (YORKSHIRE & NORTH EAST) LTD.
Neighbourhoods and Climate Change,Technical Services CM0300,Construction work A908,908202,Capital - Public Utilities - Telephones Services,06/10/2022,4054308-4024208,"17,374.91",VODAFONE LTD.
Regeneration Economy and Growth,Culture Sport and Tourism,Premises,145050,Cleaning and Domestic Supplies,06/10/2022,4053992-CN30215417,"1,140.90",CITRON HYGIENE UK LTD.
Neighbourhoods and Climate Change,Environmental Services,Supplies and Services,328041,Clothing uniforms and laundry E328,06/10/2022,4054091-63571,625.00,HYDRAULIC TECHNICAL SERVICES (NORTH EAST) LTD.
Resources BK0010,Digital Services,Supplies and Services,342051,Computers and Communications,06/10/2022,4053977-990788,"3,531.84",BYTES SOFTWARE SERVICES LTD.
Resources BK0010,Digital Services,Supplies and Services,342051,Computers and Communications,06/10/2022,4053995-C/RB250823,"343,376.19",CIVICA UK LTD.
Resources BK0010,Digital Services,Supplies and Services,342051,Computers and Communications,06/10/2022,4054145-12654892,"8,050.00",MAINTEL EUROPE LTD.
Resources BK0010,Digital Services,Supplies and Services,342033,Computers and Communications,06/10/2022,4054278-142120,"1,247.22",SWITCHSHOP LTD.
Regeneration Economy and Growth,Corporate Property and Land,Supplies and Services,342033,Computers and Communications,06/10/2022,4054278-142171,"2,536.12",SWITCHSHOP LTD.
Resources BK0010,HR & Employee Services,Supplies and Services,352001,Conference Expenses,06/10/2022,4054184-INV-1071,"1,850.00",OM CHANGE & TRANSFORMATION LTD.
Resources BK0010,HR & Employee Services,Supplies and Services,352001,Conference Expenses,06/10/2022,4054184-INV-1079,"3,572.00",OM CHANGE & TRANSFORMATION LTD.
Regeneration Economy and Growth,Culture Sport and Tourism,Construction work A908,908105,Construction work,06/10/2022,4054239-TEC607710,"1,760.00",RPS CONSULTING SERVICES LTD.
Neighbourhoods and Climate Change,Environmental Services,Construction work A908,908105,Construction work,06/10/2022,4054261-2022-479,"20,424.50",SOLMEK LTD.
Regeneration Economy and Growth,Corporate Property and Land,Fees,901002,Professional fees 901002,06/10/2022,4054239-TEC607602,500.00,RPS CONSULTING SERVICES LTD.
Regeneration Economy and Growth,Transport and Contracted Services,Fees,901002,Professional fees 901002,06/10/2022,4054239-TEC607684,"1,000.00",RPS CONSULTING SERVICES LTD.
Children and Young Peoples Services,Head of Education and Skills,Fees,901002,Professional fees 901002,06/10/2022,4054239-TEC607698,"1,344.00",RPS CONSULTING SERVICES LTD.
Children and Young Peoples Services,Head of Childrens Social Care,Fees,901002,Professional fees 901002,06/10/2022,4054239-TEC607722,"1,979.00",RPS CONSULTING SERVICES LTD.
Children and Young Peoples Services,Head of Education and Skills,Transport,230008,Contract Hire,06/10/2022,4053919-92214,"3,692.08",24/7 TAXI SERVICES (PETERLEE) LTD.
Children and Young Peoples Services,Head of Education and Skills,Transport,230012,Contract Hire,06/10/2022,4053919-92215,960.00,24/7 TAXI SERVICES (PETERLEE) LTD.
Children and Young Peoples Services,Head of Education and Skills,Transport,230008,Contract Hire,06/10/2022,4053919-92216,"3,365.20",24/7 TAXI SERVICES (PETERLEE) LTD.
Children and Young Peoples Services,Head of Education and Skills,Transport,230008,Contract Hire,06/10/2022,4053919-92217,"3,644.99",24/7 TAXI SERVICES (PETERLEE) LTD.
Children and Young Peoples Services,Head of Education and Skills,Transport,230034,Contract Hire,06/10/2022,4053919-92218,"2,376.00",24/7 TAXI SERVICES (PETERLEE) LTD.
Children and Young Peoples Services,Head of Education and Skills,Transport,230008,Contract Hire,06/10/2022,4053919-92219,"1,861.20",24/7 TAXI SERVICES (PETERLEE) LTD.
Children and Young Peoples Services,Head of Education and Skills,Transport,230008,Contract Hire,06/10/2022,4053919-92220,"3,008.00",24/7 TAXI SERVICES (PETERLEE) LTD.
Children and Young Peoples Services,Head of Education and Skills,Transport,230006,Contract Hire,06/10/2022,4053919-92221,"1,485.20",24/7 TAXI SERVICES (PETERLEE) LTD.
Adult and Health Services,Head of Adults,Transport,230005,Contract Hire,06/10/2022,4053919-92225,"1,092.00",24/7 TAXI SERVICES (PETERLEE) LTD.
Children and Young Peoples Services,Head of Education and Skills,Transport,230008,Contract Hire,06/10/2022,4053919-92226,"3,598.96",24/7 TAXI SERVICES (PETERLEE) LTD.
Children and Young Peoples Services,Head of Education and Skills,Transport,230034,Contract Hire,06/10/2022,4053923-0922/SA,"2,481.60",AABAT TAXIS.
Children and Young Peoples Services,Head of Education and Skills,Transport,230008,Contract Hire,06/10/2022,4053923-0922/SB,"1,246.00",AABAT TAXIS.
Children and Young Peoples Services,Head of Education and Skills,Transport,230008,Contract Hire,06/10/2022,4053923-0922/SC,"3,390.54",AABAT TAXIS.
Children and Young Peoples Services,Head of Education and Skills,Transport,230008,Contract Hire,06/10/2022,4053923-0922/SD,"2,102.35",AABAT TAXIS.
Children and Young Peoples Services,Head of Education and Skills,Transport,230034,Contract Hire,06/10/2022,4053923-0922/SE,"1,579.92",AABAT TAXIS.
Children and Young Peoples Services,Head of Education and Skills,Transport,230012,Contract Hire,06/10/2022,4053923-0922/SG,"1,494.49",AABAT TAXIS.
Adult and Health Services,Head of Adults,Transport,230005,Contract Hire,06/10/2022,4053923-0922/SH,"2,026.74",AABAT TAXIS.
Adult and Health Services,Head of Adults,Transport,230005,Contract Hire,06/10/2022,4053923-0922/SK,"2,356.20",AABAT TAXIS.
Children and Young Peoples Services,Head of Education and Skills,Transport,230007,Contract Hire,06/10/2022,4053923-0922/SL,"1,605.20",AABAT TAXIS.
Children and Young Peoples Services,Head of Education and Skills,Transport,230034,Contract Hire,06/10/2022,4053923-0922/SO,"1,002.72",AABAT TAXIS.
Children and Young Peoples Services,Head of Education and Skills,Transport,230007,Contract Hire,06/10/2022,4053923-0922/SR,"1,145.67",AABAT TAXIS.
Children and Young Peoples Services,Head of Education and Skills,Transport,230012,Contract Hire,06/10/2022,4053923-0922/SS,"1,208.62",AABAT TAXIS.
Children and Young Peoples Services,Head of Education and Skills,Transport,230010,Contract Hire,06/10/2022,4053925-0571,"1,593.49",ABC & OUSTON CABS.
Children and Young Peoples Services,Head of Education and Skills,Transport,230008,Contract Hire,06/10/2022,4053925-O570,"2,248.83",ABC & OUSTON CABS.
Children and Young Peoples Services,Head of Education and Skills,Transport,230008,Contract Hire,06/10/2022,4053930-08/22,"5,546.00",ADVANCE TRAVEL.
Children and Young Peoples Services,Head of Education and Skills,Transport,230012,Contract Hire,06/10/2022,4053945-SEPT2022-2,"1,210.40",ARMSTRONG`S TAXIS.
Children and Young Peoples Services,Head of Education and Skills,Transport,230008,Contract Hire,06/10/2022,4053948-DCC03SEPT22,"2,883.60",ATLAS TAXIS BISHOP AUCKLAND.
Children and Young Peoples Services,Head of Education and Skills,Transport,230008,Contract Hire,06/10/2022,4053948-DCC04SEPT22,"3,739.45",ATLAS TAXIS BISHOP AUCKLAND.
Children and Young Peoples Services,Head of Education and Skills,Transport,230008,Contract Hire,06/10/2022,4053948-DCC10SEPT22,"4,973.45",ATLAS TAXIS BISHOP AUCKLAND.
Adult and Health Services,Head of Adults,Transport,230005,Contract Hire,06/10/2022,4053948-DCC13SEPT2022,"1,430.52",ATLAS TAXIS BISHOP AUCKLAND.
Children and Young Peoples Services,Head of Education and Skills,Transport,230008,Contract Hire,06/10/2022,4053948-DCC7SEPT22,"3,321.12",ATLAS TAXIS BISHOP AUCKLAND.
Children and Young Peoples Services,Head of Education and Skills,Transport,230008,Contract Hire,06/10/2022,4053949-DCC12SEPT22,"3,148.20",ATLAS TAXIS MANAGEMENT LTD.
Children and Young Peoples Services,Head of Education and Skills,Transport,230008,Contract Hire,06/10/2022,4053949-DCC15SEPT22,"3,620.00",ATLAS TAXIS MANAGEMENT LTD.
Children and Young Peoples Services,Head of Education and Skills,Transport,230009,Contract Hire,06/10/2022,4053949-DCC16SEPT22,"2,820.00",ATLAS TAXIS MANAGEMENT LTD.
Children and Young Peoples Services,Head of Education and Skills,Transport,230008,Contract Hire,06/10/2022,4053949-DCC6SEPT22,"3,564.00",ATLAS TAXIS MANAGEMENT LTD.
Children and Young Peoples Services,Head of Education and Skills,Transport,230008,Contract Hire,06/10/2022,4053949-DCC9SEPT2022,"2,848.00",ATLAS TAXIS MANAGEMENT LTD.
Children and Young Peoples Services,Head of Education and Skills,Transport,230008,Contract Hire,06/10/2022,4053951-300922,"1,112.28",AVALON TAXIS.
Children and Young Peoples Services,Head of Education and Skills,Transport,230034,Contract Hire,06/10/2022,4053951-3009221,"1,751.00",AVALON TAXIS.
Children and Young Peoples Services,Head of Education and Skills,Transport,230007,Contract Hire,06/10/2022,4053951-3009222,"2,316.00",AVALON TAXIS.
Children and Young Peoples Services,Head of Education and Skills,Transport,230007,Contract Hire,06/10/2022,4053951-3009223,"1,128.00",AVALON TAXIS.
Children and Young Peoples Services,Head of Education and Skills,Transport,230007,Contract Hire,06/10/2022,4053957-6069-SEPT22,"1,423.64",BIG MAMA`S TAXI.
Adult and Health Services,Head of Adults,Transport,230005,Contract Hire,06/10/2022,4053957-DM228-SEPT22,617.95,BIG MAMA`S TAXI.
Children and Young Peoples Services,Head of Education and Skills,Transport,230006,Contract Hire,06/10/2022,4053957-F185-SEPT22,519.92,BIG MAMA`S TAXI.
Children and Young Peoples Services,Head of Education and Skills,Transport,230006,Contract Hire,06/10/2022,4053957-F218-SEPT22,"1,377.79",BIG MAMA`S TAXI.
Adult and Health Services,Head of Adults,Transport,230005,Contract Hire,06/10/2022,4053958-0628,"2,138.40",BIRDS TAXIS LTD.
Children and Young Peoples Services,Head of Education and Skills,Transport,230034,Contract Hire,06/10/2022,4053965-SEP22-5435,"2,184.00",BON VOYAGE TAXIS LTD.
Children and Young Peoples Services,Head of Education and Skills,Transport,230008,Contract Hire,06/10/2022,4053965-SEP22-N107,"3,024.00",BON VOYAGE TAXIS LTD.
Children and Young Peoples Services,Head of Education and Skills,Transport,230008,Contract Hire,06/10/2022,4053969-BZ00412,"1,913.84",BREZ`S TAXIS.
Children and Young Peoples Services,Head of Education and Skills,Transport,230008,Contract Hire,06/10/2022,4053969-BZ00413,"1,071.60",BREZ`S TAXIS.
Adult and Health Services,Head of Adults,Transport,230005,Contract Hire,06/10/2022,4053969-BZ00415,673.20,BREZ`S TAXIS.
Children and Young Peoples Services,Head of Education and Skills,Transport,230034,Contract Hire,06/10/2022,4053984-01-SEP22,720.00,CHAPMAN TRAVEL.
Children and Young Peoples Services,Head of Education and Skills,Transport,230008,Contract Hire,06/10/2022,4053988-CW33,"1,902.83",CHIPPERS TAXIS.
Children and Young Peoples Services,Head of Education and Skills,Transport,230008,Contract Hire,06/10/2022,4053988-SW12-SEP22,"1,935.94",CHIPPERS TAXIS.
Neighbourhoods and Climate Change,Environmental Services,Transport,230005,Contract Hire,06/10/2022,4054038-8192528,554.40,ENTERPRISE FLEX-E-RENT T/A BURNT TREE GROUP LTD.
Neighbourhoods and Climate Change,Environmental Services,Transport,230005,Contract Hire,06/10/2022,4054038-8192529,737.10,ENTERPRISE FLEX-E-RENT T/A BURNT TREE GROUP LTD.
Neighbourhoods and Climate Change,Environmental Services,Transport,230005,Contract Hire,06/10/2022,4054038-8192530,679.50,ENTERPRISE FLEX-E-RENT T/A BURNT TREE GROUP LTD.
Neighbourhoods and Climate Change,Environmental Services,Transport,230005,Contract Hire,06/10/2022,4054038-8192531,554.40,ENTERPRISE FLEX-E-RENT T/A BURNT TREE GROUP LTD.
Neighbourhoods and Climate Change,Environmental Services,Transport,230005,Contract Hire,06/10/2022,4054038-8192535,"1,148.00",ENTERPRISE FLEX-E-RENT T/A BURNT TREE GROUP LTD.
Neighbourhoods and Climate Change,Environmental Services,Transport,230005,Contract Hire,06/10/2022,4054038-8192538,"1,323.00",ENTERPRISE FLEX-E-RENT T/A BURNT TREE GROUP LTD.
Neighbourhoods and Climate Change,Environmental Services,Transport,230005,Contract Hire,06/10/2022,4054038-8192539,"1,323.00",ENTERPRISE FLEX-E-RENT T/A BURNT TREE GROUP LTD.
Neighbourhoods and Climate Change,Environmental Services,Transport,230005,Contract Hire,06/10/2022,4054038-8192540,"1,323.00",ENTERPRISE FLEX-E-RENT T/A BURNT TREE GROUP LTD.
Neighbourhoods and Climate Change,Environmental Services,Transport,230005,Contract Hire,06/10/2022,4054038-8192541,588.90,ENTERPRISE FLEX-E-RENT T/A BURNT TREE GROUP LTD.
Neighbourhoods and Climate Change,Environmental Services,Transport,230005,Contract Hire,06/10/2022,4054038-8192543,554.40,ENTERPRISE FLEX-E-RENT T/A BURNT TREE GROUP LTD.
Neighbourhoods and Climate Change,Environmental Services,Transport,230005,Contract Hire,06/10/2022,4054038-8192545,588.90,ENTERPRISE FLEX-E-RENT T/A BURNT TREE GROUP LTD.
Neighbourhoods and Climate Change,Environmental Services,Transport,230005,Contract Hire,06/10/2022,4054038-8192552,554.40,ENTERPRISE FLEX-E-RENT T/A BURNT TREE GROUP LTD.
Children and Young Peoples Services,Head of Education and Skills,Transport,230008,Contract Hire,06/10/2022,4054047-1583,"1,637.60",FMR SILVA PITA.
Children and Young Peoples Services,Head of Education and Skills,Transport,230007,Contract Hire,06/10/2022,4054047-1585,"1,316.00",FMR SILVA PITA.
Adult and Health Services,Head of Adults,Transport,230005,Contract Hire,06/10/2022,4054050-103050,"2,434.68",G & P JOHNSON LTD T/A NIGHTINGALE COACHES.
Children and Young Peoples Services,Head of Education and Skills,Transport,230008,Contract Hire,06/10/2022,4054050-103069,"2,723.76",G & P JOHNSON LTD T/A NIGHTINGALE COACHES.
Children and Young Peoples Services,Head of Education and Skills,Transport,230008,Contract Hire,06/10/2022,4054050-103082,"1,459.60",G & P JOHNSON LTD T/A NIGHTINGALE COACHES.
Children and Young Peoples Services,Head of Education and Skills,Transport,230008,Contract Hire,06/10/2022,4054050-103083,"1,374.16",G & P JOHNSON LTD T/A NIGHTINGALE COACHES.
Children and Young Peoples Services,Head of Education and Skills,Transport,230008,Contract Hire,06/10/2022,4054050-103084,925.60,G & P JOHNSON LTD T/A NIGHTINGALE COACHES.
Children and Young Peoples Services,Head of Education and Skills,Transport,230006,Contract Hire,06/10/2022,4054074-SI-20,"2,820.00",HEPWORTHS TRAVEL.
Children and Young Peoples Services,Head of Education and Skills,Transport,230007,Contract Hire,06/10/2022,4054074-SI-21,"1,692.00",HEPWORTHS TRAVEL.
Children and Young Peoples Services,Head of Education and Skills,Transport,230003,Contract Hire,06/10/2022,4054074-SI-22,"2,848.00",HEPWORTHS TRAVEL.
Children and Young Peoples Services,Head of Education and Skills,Transport,230034,Contract Hire,06/10/2022,4054088-1-SEPT22,"1,598.00",HORNDALE TAXIS.
Children and Young Peoples Services,Head of Education and Skills,Transport,230035,Contract Hire,06/10/2022,4054088-2-SEPT22,998.66,HORNDALE TAXIS.
Children and Young Peoples Services,Head of Education and Skills,Transport,230034,Contract Hire,06/10/2022,4054104-2447,"2,791.80",JDS PRIVATE HIRE DURHAM.
Children and Young Peoples Services,Head of Education and Skills,Transport,230034,Contract Hire,06/10/2022,4054104-2448,"1,109.20",JDS PRIVATE HIRE DURHAM.
Children and Young Peoples Services,Head of Education and Skills,Transport,230008,Contract Hire,06/10/2022,4054104-2449,"2,293.60",JDS PRIVATE HIRE DURHAM.
Children and Young Peoples Services,Head of Education and Skills,Transport,230006,Contract Hire,06/10/2022,4054104-2450,"3,196.00",JDS PRIVATE HIRE DURHAM.
Children and Young Peoples Services,Head of Education and Skills,Transport,230008,Contract Hire,06/10/2022,4054104-2451,"2,820.00",JDS PRIVATE HIRE DURHAM.
Children and Young Peoples Services,Head of Education and Skills,Transport,230008,Contract Hire,06/10/2022,4054104-2452,"2,704.00",JDS PRIVATE HIRE DURHAM.
Children and Young Peoples Services,Head of Education and Skills,Transport,230008,Contract Hire,06/10/2022,4054104-2453,"2,118.20",JDS PRIVATE HIRE DURHAM.
Children and Young Peoples Services,Head of Education and Skills,Transport,230008,Contract Hire,06/10/2022,4054104-2455,"2,126.39",JDS PRIVATE HIRE DURHAM.
Children and Young Peoples Services,Head of Education and Skills,Transport,230008,Contract Hire,06/10/2022,4054104-2456,"1,886.80",JDS PRIVATE HIRE DURHAM.
Children and Young Peoples Services,Head of Education and Skills,Transport,230012,Contract Hire,06/10/2022,4054104-2457,"1,842.40",JDS PRIVATE HIRE DURHAM.
Children and Young Peoples Services,Head of Education and Skills,Transport,230008,Contract Hire,06/10/2022,4054104-2458,"2,133.69",JDS PRIVATE HIRE DURHAM.
Children and Young Peoples Services,Head of Education and Skills,Transport,230012,Contract Hire,06/10/2022,4054104-2459,"1,993.60",JDS PRIVATE HIRE DURHAM.
Children and Young Peoples Services,Head of Education and Skills,Transport,230008,Contract Hire,06/10/2022,4054104-2461,"3,385.13",JDS PRIVATE HIRE DURHAM.
Children and Young Peoples Services,Head of Education and Skills,Transport,230008,Contract Hire,06/10/2022,4054104-2465,"1,637.24",JDS PRIVATE HIRE DURHAM.
Children and Young Peoples Services,Head of Education and Skills,Transport,230008,Contract Hire,06/10/2022,4054104-2466,"2,322.90",JDS PRIVATE HIRE DURHAM.
Children and Young Peoples Services,Head of Education and Skills,Transport,230006,Contract Hire,06/10/2022,4054104-2467,"1,076.16",JDS PRIVATE HIRE DURHAM.
Children and Young Peoples Services,Head of Education and Skills,Transport,230008,Contract Hire,06/10/2022,4054123-01-M071,"2,314.00",KD TAXIS.
Children and Young Peoples Services,Head of Education and Skills,Transport,230008,Contract Hire,06/10/2022,4054126-2017,"2,436.00",KINGSWAY CABS LTD.
Children and Young Peoples Services,Head of Education and Skills,Transport,230008,Contract Hire,06/10/2022,4054126-2036,"1,617.52",KINGSWAY CABS LTD.
Children and Young Peoples Services,Head of Education and Skills,Transport,230007,Contract Hire,06/10/2022,4054136-31600,"1,939.78",LEE`S COACHES LTD.
Children and Young Peoples Services,Head of Education and Skills,Transport,230008,Contract Hire,06/10/2022,4054143-W180-SEPT22,"3,204.00",LORRAINES TAXIS.
Children and Young Peoples Services,Head of Education and Skills,Transport,230008,Contract Hire,06/10/2022,4054147-INV09/202208,"2,879.78",MARK & JOHN CHISHOLM T/A (CHEVRON).
Children and Young Peoples Services,Head of Education and Skills,Transport,230008,Contract Hire,06/10/2022,4054147-INV09/202215,"2,500.40",MARK & JOHN CHISHOLM T/A (CHEVRON).
Children and Young Peoples Services,Head of Education and Skills,Transport,230008,Contract Hire,06/10/2022,4054147-INV09/202216,"2,556.80",MARK & JOHN CHISHOLM T/A (CHEVRON).
Children and Young Peoples Services,Head of Education and Skills,Transport,230008,Contract Hire,06/10/2022,4054147-INV09/202222,"3,910.40",MARK & JOHN CHISHOLM T/A (CHEVRON).
Children and Young Peoples Services,Head of Education and Skills,Transport,230008,Contract Hire,06/10/2022,4054147-INV09/202223,"2,412.26",MARK & JOHN CHISHOLM T/A (CHEVRON).
Children and Young Peoples Services,Head of Education and Skills,Transport,230008,Contract Hire,06/10/2022,4054147-INV09/202224,"2,383.42",MARK & JOHN CHISHOLM T/A (CHEVRON).
Children and Young Peoples Services,Head of Education and Skills,Transport,230007,Contract Hire,06/10/2022,4054194-1160-3030,"2,065.56",PBS TRAVEL LTD.
Children and Young Peoples Services,Head of Education and Skills,Transport,230007,Contract Hire,06/10/2022,4054194-1160-3037,"2,144.52",PBS TRAVEL LTD.
Children and Young Peoples Services,Head of Education and Skills,Transport,230007,Contract Hire,06/10/2022,4054194-1160-3039,"3,246.57",PBS TRAVEL LTD.
Children and Young Peoples Services,Head of Education and Skills,Transport,230007,Contract Hire,06/10/2022,4054194-1160-3058,"2,339.47",PBS TRAVEL LTD.
Children and Young Peoples Services,Head of Education and Skills,Transport,230007,Contract Hire,06/10/2022,4054194-1160-3065,"1,930.01",PBS TRAVEL LTD.
Children and Young Peoples Services,Head of Education and Skills,Transport,230034,Contract Hire,06/10/2022,4054202-3422-SEPT22,"1,026.63",PETER`S TAXIS.
Children and Young Peoples Services,Head of Education and Skills,Transport,230003,Contract Hire,06/10/2022,4054202-3501-SEPT22,"1,424.00",PETER`S TAXIS.
Children and Young Peoples Services,Head of Education and Skills,Transport,230034,Contract Hire,06/10/2022,4054202-5294-SEPT22,"1,177.12",PETER`S TAXIS.
Children and Young Peoples Services,Head of Education and Skills,Transport,230034,Contract Hire,06/10/2022,4054205-50721,"2,049.96",PHOENIX TAXIS T/A PRATT`S TAXIS.
Children and Young Peoples Services,Head of Education and Skills,Transport,230007,Contract Hire,06/10/2022,4054205-50722,"1,142.40",PHOENIX TAXIS T/A PRATT`S TAXIS.
Children and Young Peoples Services,Head of Education and Skills,Transport,230008,Contract Hire,06/10/2022,4054205-50723,"3,326.40",PHOENIX TAXIS T/A PRATT`S TAXIS.
Adult and Health Services,Head of Adults,Transport,230005,Contract Hire,06/10/2022,4054205-50725,563.20,PHOENIX TAXIS T/A PRATT`S TAXIS.
Children and Young Peoples Services,Head of Education and Skills,Transport,230006,Contract Hire,06/10/2022,4054205-50728,990.00,PHOENIX TAXIS T/A PRATT`S TAXIS.
Children and Young Peoples Services,Head of Education and Skills,Transport,230006,Contract Hire,06/10/2022,4054205-50729,"2,278.40",PHOENIX TAXIS T/A PRATT`S TAXIS.
Children and Young Peoples Services,Head of Education and Skills,Transport,230006,Contract Hire,06/10/2022,4054228-RDS082,"1,504.00",RDS TAXI.
Children and Young Peoples Services,Head of Education and Skills,Transport,230012,Contract Hire,06/10/2022,4054236-SI-56,"1,747.20",ROBBIE`S PRIVATE HIRE.
Children and Young Peoples Services,Head of Education and Skills,Transport,230008,Contract Hire,06/10/2022,4054241-AGB11012,"2,291.91",SAFELINE TRAVEL.
Children and Young Peoples Services,Head of Education and Skills,Transport,230007,Contract Hire,06/10/2022,4054269-07560,613.60,STANLEY TRAVEL (NORTH EAST) LTD.
Children and Young Peoples Services,Head of Education and Skills,Transport,230007,Contract Hire,06/10/2022,4054269-07560-2,501.30,STANLEY TRAVEL (NORTH EAST) LTD.
Children and Young Peoples Services,Head of Education and Skills,Transport,230007,Contract Hire,06/10/2022,4054269-07563,868.33,STANLEY TRAVEL (NORTH EAST) LTD.
Children and Young Peoples Services,Head of Education and Skills,Transport,230016,Contract Hire,06/10/2022,4054269-07566,"1,420.90",STANLEY TRAVEL (NORTH EAST) LTD.
Children and Young Peoples Services,Head of Education and Skills,Transport,230012,Contract Hire,06/10/2022,4054269-07567,"1,378.17",STANLEY TRAVEL (NORTH EAST) LTD.
Children and Young Peoples Services,Head of Education and Skills,Transport,230016,Contract Hire,06/10/2022,4054269-07568,"1,314.80",STANLEY TRAVEL (NORTH EAST) LTD.
Children and Young Peoples Services,Head of Education and Skills,Transport,230008,Contract Hire,06/10/2022,4054269-07569,"1,728.02",STANLEY TRAVEL (NORTH EAST) LTD.
Children and Young Peoples Services,Head of Education and Skills,Transport,230007,Contract Hire,06/10/2022,4054269-07575,"1,175.00",STANLEY TRAVEL (NORTH EAST) LTD.
Children and Young Peoples Services,Head of Education and Skills,Transport,230008,Contract Hire,06/10/2022,4054269-07576,"2,887.37",STANLEY TRAVEL (NORTH EAST) LTD.
Children and Young Peoples Services,Head of Education and Skills,Transport,230008,Contract Hire,06/10/2022,4054269-07578,"2,581.00",STANLEY TRAVEL (NORTH EAST) LTD.
Children and Young Peoples Services,Head of Education and Skills,Transport,230008,Contract Hire,06/10/2022,4054269-07581,"2,359.50",STANLEY TRAVEL (NORTH EAST) LTD.
Children and Young Peoples Services,Head of Education and Skills,Transport,230006,Contract Hire,06/10/2022,4053920-647,888.00,REDACTED - PAYMENT TO INDIVIDUAL
Children and Young Peoples Services,Head of Education and Skills,Transport,230012,Contract Hire,06/10/2022,4053970-1-SEPT,"2,225.00",REDACTED - PAYMENT TO INDIVIDUAL
Children and Young Peoples Services,Head of Education and Skills,Transport,230035,Contract Hire,06/10/2022,4054000-001-SEP,"1,940.05",REDACTED - PAYMENT TO INDIVIDUAL
Adult and Health Services,Head of Adults,Transport,230005,Contract Hire,06/10/2022,4054015-B68,"3,052.00",REDACTED - PAYMENT TO INDIVIDUAL
Children and Young Peoples Services,Head of Education and Skills,Transport,230008,Contract Hire,06/10/2022,4054015-B69,"2,621.05",REDACTED - PAYMENT TO INDIVIDUAL
Children and Young Peoples Services,Head of Education and Skills,Transport,230034,Contract Hire,06/10/2022,4054051-10-SEPT22,519.00,REDACTED - PAYMENT TO INDIVIDUAL
Children and Young Peoples Services,Head of Education and Skills,Transport,230009,Contract Hire,06/10/2022,4054092-7370-SEPT22,"1,261.60",REDACTED - PAYMENT TO INDIVIDUAL
Adult and Health Services,Head of Adults,Transport,230005,Contract Hire,06/10/2022,4054110-01092022,"1,679.30",REDACTED - PAYMENT TO INDIVIDUAL
Children and Young Peoples Services,Head of Education and Skills,Transport,230006,Contract Hire,06/10/2022,4054112-0001-F125,770.00,REDACTED - PAYMENT TO INDIVIDUAL
Children and Young Peoples Services,Head of Education and Skills,Transport,230007,Contract Hire,06/10/2022,4054112-0001-SEP,"1,584.20",REDACTED - PAYMENT TO INDIVIDUAL
Children and Young Peoples Services,Head of Education and Skills,Transport,230008,Contract Hire,06/10/2022,4054112-0043,"2,434.32",REDACTED - PAYMENT TO INDIVIDUAL
Children and Young Peoples Services,Head of Education and Skills,Transport,230010,Contract Hire,06/10/2022,4054149-KC3800,"1,198.44",REDACTED - PAYMENT TO INDIVIDUAL
Children and Young Peoples Services,Head of Education and Skills,Transport,230009,Contract Hire,06/10/2022,4054149-KC3801,692.07,REDACTED - PAYMENT TO INDIVIDUAL
Children and Young Peoples Services,Head of Education and Skills,Transport,230008,Contract Hire,06/10/2022,4054149-KC3804,528.87,REDACTED - PAYMENT TO INDIVIDUAL
Children and Young Peoples Services,Head of Education and Skills,Transport,230008,Contract Hire,06/10/2022,4054149-KC3805,"2,800.00",REDACTED - PAYMENT TO INDIVIDUAL
Children and Young Peoples Services,Head of Education and Skills,Transport,230008,Contract Hire,06/10/2022,4054159-W174/23,"2,338.56",REDACTED - PAYMENT TO INDIVIDUAL
Children and Young Peoples Services,Head of Education and Skills,Transport,230007,Contract Hire,06/10/2022,4054160-246,"1,843.72",REDACTED - PAYMENT TO INDIVIDUAL
Children and Young Peoples Services,Head of Education and Skills,Transport,230006,Contract Hire,06/10/2022,4054160-248,"1,693.60",REDACTED - PAYMENT TO INDIVIDUAL
Dedicated Schools Grant BG0015,DSG High Needs Block,Transport,230009,Contract Hire,06/10/2022,4054162-2A-G006,"1,692.00",REDACTED - PAYMENT TO INDIVIDUAL
Children and Young Peoples Services,Head of Education and Skills,Transport,230034,Contract Hire,06/10/2022,4054163-4501-SEPT22,"2,243.59",REDACTED - PAYMENT TO INDIVIDUAL
Adult and Health Services,Head of Adults,Transport,230005,Contract Hire,06/10/2022,4054163-DW144SEP22,"1,592.00",REDACTED - PAYMENT TO INDIVIDUAL
Adult and Health Services,Head of Adults,Transport,230005,Contract Hire,06/10/2022,4054165-05-SEPT-02,798.39,REDACTED - PAYMENT TO INDIVIDUAL
Children and Young Peoples Services,Head of Education and Skills,Transport,230007,Contract Hire,06/10/2022,4054166-ACD0922,"1,246.00",REDACTED - PAYMENT TO INDIVIDUAL
Children and Young Peoples Services,Head of Education and Skills,Transport,230010,Contract Hire,06/10/2022,4054166-FERRY0922,"2,634.77",REDACTED - PAYMENT TO INDIVIDUAL
Children and Young Peoples Services,Head of Education and Skills,Transport,230006,Contract Hire,06/10/2022,4054200-F254-SEPT,602.00,REDACTED - PAYMENT TO INDIVIDUAL
Children and Young Peoples Services,Head of Education and Skills,Transport,230008,Contract Hire,06/10/2022,4054124-SEP22-A026,"2,827.28",REDACTED - PAYMENT TO INDIVIDUAL
Children and Young Peoples Services,Head of Education and Skills,Transport,230006,Contract Hire,06/10/2022,4054124-SEP22-A058,"4,272.00",REDACTED - PAYMENT TO INDIVIDUAL
Children and Young Peoples Services,Head of Education and Skills,Transport,230008,Contract Hire,06/10/2022,4054124-SEP22-S020,"2,345.06",REDACTED - PAYMENT TO INDIVIDUAL
Children and Young Peoples Services,Head of Education and Skills,Transport,230008,Contract Hire,06/10/2022,4054124-SEP22-S103,"1,264.00",REDACTED - PAYMENT TO INDIVIDUAL
Adult and Health Services,Public Health CC0450,Third Party Payments,460803,Contract Payments,06/10/2022,4053926-INV-1743,"124,855.00",ABL HEALTH LTD.
Adult and Health Services,Public Health CC0450,Third Party Payments,460803,Contract Payments,06/10/2022,4053926-INV-1749,"16,333.33",ABL HEALTH LTD.
Neighbourhoods and Climate Change,Partnerships & Community Engagement Div.,Cap Exp on Grants & Other Financial Assistance (REFCUS),918004,Contributions to other bodies 918004,06/10/2022,4054245-VOUCHER22NB-EDUR006,"2,450.00",SEAHAM EASTLEA & DISTRICT COMMUNITY ASSOCIATION.
Neighbourhoods and Climate Change,Partnerships & Community Engagement Div.,Cap Exp on Grants & Other Financial Assistance (REFCUS),918004,Contributions to other bodies 918004,06/10/2022,4054268-VOUCHER22NB-MDUR008,"1,950.00",STANLEY LEARNING PARTNERSHIP.
Neighbourhoods and Climate Change,Partnerships & Community Engagement Div.,Cap Exp on Grants & Other Financial Assistance (REFCUS),918004,Contributions to other bodies 918004,06/10/2022,4053959-VOUCHER21AB-4TOG009,"52,130.00",BISHOP MIDDLEHAM PARISH COUNCIL.
Regeneration Economy and Growth,Business Durham CL0850,Premises,120009,Energy Costs,06/10/2022,4054180-IN4243165,753.71,NPOWER.
Regeneration Economy and Growth,Corporate Property and Land,Supplies and Services,304221,Equipment and Materials,06/10/2022,4053979-140012737,"3,194.96",CARLISLE CONSTRUCTION MATERIALS LTD.
Regeneration Economy and Growth,Corporate Property and Land,Supplies and Services,304221,Equipment and Materials,06/10/2022,4054031-059-303573,932.60,EDMUNDSON ELECTRICAL LTD.
Regeneration Economy and Growth,Corporate Property and Land,Supplies and Services,304221,Equipment and Materials,06/10/2022,4054031-059-304166,"1,330.00",EDMUNDSON ELECTRICAL LTD.
Regeneration Economy and Growth,Corporate Property and Land,Supplies and Services,304221,Equipment and Materials,06/10/2022,4054031-059-304576,622.00,EDMUNDSON ELECTRICAL LTD.
Regeneration Economy and Growth,Corporate Property and Land,Supplies and Services,304221,Equipment and Materials,06/10/2022,4054031-059-304695,736.17,EDMUNDSON ELECTRICAL LTD.
Regeneration Economy and Growth,Corporate Property and Land,Supplies and Services,304221,Equipment and Materials,06/10/2022,4054031-059-304802,592.33,EDMUNDSON ELECTRICAL LTD.
Regeneration Economy and Growth,Corporate Property and Land,Supplies and Services,304221,Equipment and Materials,06/10/2022,4054031-059-304813,"1,128.32",EDMUNDSON ELECTRICAL LTD.
Regeneration Economy and Growth,Corporate Property and Land,Supplies and Services,304221,Equipment and Materials,06/10/2022,4054031-059-304877,600.92,EDMUNDSON ELECTRICAL LTD.
Regeneration Economy and Growth,Corporate Property and Land,Supplies and Services,304221,Equipment and Materials,06/10/2022,4054031-059-304919,876.15,EDMUNDSON ELECTRICAL LTD.
Neighbourhoods and Climate Change,Environmental Services,Supplies and Services,304221,Equipment and Materials,06/10/2022,4054060-06/188588,"1,138.99",GREENHAM TRADING LTD.
Neighbourhoods and Climate Change,Environmental Services,Supplies and Services,304221,Equipment and Materials,06/10/2022,4054065-108556,612.25,GUSTHARTS LTD.
Regeneration Economy and Growth,Corporate Property and Land,Supplies and Services,304221,Equipment and Materials,06/10/2022,4054071-4742084,"1,553.17",HEADLAM (FLOORCOVERING DISTRIBUTORS) LTD.
Regeneration Economy and Growth,Culture Sport and Tourism,Supplies and Services,304259,Equipment and Materials,06/10/2022,4054114-157983,537.70,JP LENNARD LTD.
Neighbourhoods and Climate Change,Technical Services CM0300,Supplies and Services,304221,Equipment and Materials,06/10/2022,4054116-0113/00741831,712.50,JT DOVE LTD.
Neighbourhoods and Climate Change,Technical Services CM0300,Supplies and Services,304221,Equipment and Materials,06/10/2022,4054116-0113/00741832,"2,246.00",JT DOVE LTD.
Neighbourhoods and Climate Change,Technical Services CM0300,Supplies and Services,304221,Equipment and Materials,06/10/2022,4054116-0303/00745238,"2,226.57",JT DOVE LTD.
Regeneration Economy and Growth,Corporate Property and Land,Supplies and Services,304221,Equipment and Materials,06/10/2022,4054131-2551,660.50,L-PAC PACKAGING SOLUTIONS LTD.
Regeneration Economy and Growth,Culture Sport and Tourism,Supplies and Services,304259,Equipment and Materials,06/10/2022,4054176-25589708,"1,339.98",NISBETS PLC.
Neighbourhoods and Climate Change,Environmental Services,Supplies and Services,304259,Equipment and Materials,06/10/2022,4054188-OASI0034213,"1,442.00",ORIGIN AMENITY SOLUTIONS LTD.
Neighbourhoods and Climate Change,Environmental Services,Supplies and Services,304403,Equipment and Materials,06/10/2022,4054260-INV440920,605.01,SNOWBALLS LTD.
Neighbourhoods and Climate Change,Technical Services CM0300,Supplies and Services,304221,Equipment and Materials,06/10/2022,4054279-9045839402,616.43,TARMAC TRADING LTD.
Resources BK0010,Digital Services,Supplies and Services,304639,Equipment and Materials,06/10/2022,4054319-LB97709,837.89,XMA LTD.
Resources BK0010,Digital Services,Supplies and Services,304639,Equipment and Materials,06/10/2022,4054319-LC09094,837.89,XMA LTD.
Regeneration Economy and Growth,Culture Sport and Tourism,Supplies and Services,304337,Equipment and Materials,06/10/2022,4054040-INV-22350,"2,247.20",EVENT LIGHTS LTD.
Adult and Health Services,Head of Adults,Supplies and Services,304259,Equipment and Materials,06/10/2022,4054311-00950,"2,019.00",WASHWORKS LTD.
Regeneration Economy and Growth,Corporate Property and Land,Supplies and Services,304040,Equipment and Materials,06/10/2022,4053971-BAB72590,"2,000.00",BRITISH ASSESSMENT BUREAU.
Regeneration Economy and Growth,Culture Sport and Tourism,Supplies and Services,384199,Miscellaneous Expenses,06/10/2022,4053962-1355,"2,375.00",BLUEGRASS RESEARCH LTD.
Regeneration Economy and Growth,Business Durham CL0850,Supplies and Services,384899,Miscellaneous Expenses,06/10/2022,4053966-RES-10-2022-063,"1,345.70",BOSS BINS LTD.
Regeneration Economy and Growth,Transport and Contracted Services,Supplies and Services,384199,Miscellaneous Expenses,06/10/2022,4053975-29175,"4,364.53",BUS SHELTERS LTD.
Regeneration Economy and Growth,Corporate Property and Land,Supplies and Services,384199,Miscellaneous Expenses,06/10/2022,4054021-64022397,"2,320.00",DESCO (DESIGN & CONSULTANCY) LTD.
Children and Young Peoples Services,Head of Early Help Inclusion & Vulnerable Children.,Supplies and Services,384302,Miscellaneous Expenses,06/10/2022,4054023-002SUM-2022,"3,375.00",DURHAM AREA DISABILITY LEISURE GROUP (DADLG).
Resources BK0010,Digital Services,Supplies and Services,384156,Miscellaneous Expenses,06/10/2022,4054031-059-303568,530.26,EDMUNDSON ELECTRICAL LTD.
Children and Young Peoples Services,Head of Early Help Inclusion & Vulnerable Children.,Supplies and Services,384302,Miscellaneous Expenses,06/10/2022,4054063-0000014900,"64,530.00",GROUNDWORK NORTH EAST.
Adult and Health Services,Head of Adults,Supplies and Services,384616,Miscellaneous Expenses,06/10/2022,4054120-20ETHERLY/2022/SEPT,890.55,KARBON HOMES LTD FORMERLY CESTRIA HOUSING ASSOCIATION LTD.
Children and Young Peoples Services,Head of Education and Skills,Supplies and Services,384199,Miscellaneous Expenses,06/10/2022,4054203-22/23-01,597.00,PGI SMITH SOLUTIONS LTD.
Regeneration Economy and Growth,Transport and Contracted Services,Supplies and Services,384199,Miscellaneous Expenses,06/10/2022,4054255-186010,"4,813.20",SHOWSEC INTERNATIONAL LTD.
Neighbourhoods and Climate Change,Partnerships & Community Engagement Div.,Supplies and Services,384086,Miscellaneous Expenses,06/10/2022,4054313-VOUCHER20NB-CHES026,"6,000.00",WEAR RIVERS TRUST.
Regeneration Economy and Growth,Culture Sport and Tourism,Supplies and Services,384302,Miscellaneous Expenses,06/10/2022,4053980-0423,600.00,REDACTED - PAYMENT TO INDIVIDUAL
Regeneration Economy and Growth,Business Durham CL0850,Supplies and Services,384899,Miscellaneous Expenses,06/10/2022,4054089-RES-10-2022-030,"1,601.24",HOWDEN AUTOMOTIVE LTD.
Regeneration Economy and Growth,Culture Sport and Tourism,Supplies and Services,384199,Miscellaneous Expenses,06/10/2022,4054017-CFI00060I,"2,784.41",REDACTED - PAYMENT TO INDIVIDUAL
Regeneration Economy and Growth,Culture Sport and Tourism,Supplies and Services,384302,Miscellaneous Expenses,06/10/2022,4054139-26092022,540.00,REDACTED - PAYMENT TO INDIVIDUAL
Neighbourhoods and Climate Change,Environmental Services,Supplies and Services,384899,Miscellaneous Expenses,06/10/2022,4054045-RES-10-2022-033,"4,546.99",FINNMARK LTD.
Adult and Health Services,Central/Other,Third Party Payments,440150,Other third party payments E440,06/10/2022,4054174-NHSCCG/OCTOBER2022,"1,362,424.00",NHS NORTH EAST & NORTH CUMBRIA ICB.
Resources BK0010,Digital Services,Supplies and Services,332029,Printing Stationery and Gen Off Exps,06/10/2022,4053932-163320,"1,109.92",AGNE LTD T/A ALPHAGRAPHICS.
Resources BK0010,Digital Services,Supplies and Services,332029,Printing Stationery and Gen Off Exps,06/10/2022,4054212-709308,579.00,POTTS PRINTERS LTD.
Regeneration Economy and Growth,Culture Sport and Tourism,Supplies and Services,324117,Provisions E324,06/10/2022,4053956-53328201,604.99,BIDFOOD.
Adult and Health Services,Head of Adults,Third Party Payments,478151,Purchase of Care,06/10/2022,4054016-INV-1254,"2,686.58",DEACONSTAR LTD.
Adult and Health Services,Head of Adults,Third Party Payments,478151,Purchase of Care,06/10/2022,4054016-INV-1255,"1,830.69",DEACONSTAR LTD.
Adult and Health Services,Head of Adults,Third Party Payments,479102,Purchase of Care,06/10/2022,4054211-INV-0025,"5,388.00",POSITIVE CARE & SUPPORT LTD.
Regeneration Economy and Growth,Corporate Property and Land,Third Party Payments,430100,Rendered by Private Contractors,06/10/2022,4053982-712,524.00,CEILINGS DIRECT LTD.
Neighbourhoods and Climate Change,Technical Services CM0300,Third Party Payments,430100,Rendered by Private Contractors,06/10/2022,4054076-3443,"3,781.00",HIGHWAY CONSTRUCTION SERVICES LTD.
Neighbourhoods and Climate Change,Technical Services CM0300,Third Party Payments,430100,Rendered by Private Contractors,06/10/2022,4054076-3444,"5,174.00",HIGHWAY CONSTRUCTION SERVICES LTD.
Neighbourhoods and Climate Change,Environmental Services,Third Party Payments,430113,Rendered by Private Contractors,06/10/2022,4054214-2123025419,"1,625.00",PRECIA-MOLEN UK LTD T/A SHERING WEIGHING LTD.
Neighbourhoods and Climate Change,Environmental Services,Third Party Payments,430113,Rendered by Private Contractors,06/10/2022,4054214-2123025420,"3,250.00",PRECIA-MOLEN UK LTD T/A SHERING WEIGHING LTD.
Neighbourhoods and Climate Change,Technical Services CM0300,Third Party Payments,430100,Rendered by Private Contractors,06/10/2022,4054224-14367,"18,523.66",QUANTUM POWER CONNECTIONS LTD.
Regeneration Economy and Growth,Corporate Property and Land,Third Party Payments,430100,Rendered by Private Contractors,06/10/2022,4054233-72820,"1,650.00",RJ UTILITY SERVICES LTD.
Neighbourhoods and Climate Change,Technical Services CM0300,Third Party Payments,430100,Rendered by Private Contractors,06/10/2022,4054250-23931,"60,206.40",SEYMOUR (CIVIL ENGINEERING CONTRACTORS) LTD.
Neighbourhoods and Climate Change,Environmental Services,Third Party Payments,430119,Rendered by Private Contractors,06/10/2022,4053997-22070762,697.25,CLEANSING SERVICE GROUP LTD.
Children and Young Peoples Services,Head of Childrens Social Care,Third Party Payments,425021,Rendered by Voluntary Organisations,06/10/2022,4053990-DURHAL01,"8,925.72",CHRYSALIS ASSOCIATES LTD.
Neighbourhoods and Climate Change,Environmental Services,Transport,215005,Running Costs of Vehicles,06/10/2022,4054323-998643,"5,735.60",YOUR NRG LTD.
Children and Young Peoples Services,Head of Education and Skills,Supplies and Services,338066,Services,06/10/2022,4053933-RES-09-2022-378,"2,700.00",AJ GUTHRIE & SON.
Regeneration Economy and Growth,Economic Development Level C,Supplies and Services,338094,Services,06/10/2022,4053981-604,"2,273.31",CDC ENTERPRISE AGENCY LTD.
Neighbourhoods and Climate Change,Technical Services CM0300,Supplies and Services,338027,Services,06/10/2022,4054055-GEOUK2829,"1,396.00",GEOMATICS UK LTD.
Children and Young Peoples Services,Head of Education and Skills,Supplies and Services,338094,Services,06/10/2022,4054208-18044/18,850.00,PIONEERING CARE PARTNERSHIP.
Neighbourhoods and Climate Change,Environmental Services,Supplies and Services,338066,Services,06/10/2022,4054222-1236,"3,580.00",PUBLIC ARTS T/A BEAM.
Children and Young Peoples Services,Head of Early Help Inclusion & Vulnerable Children.,Supplies and Services,338094,Services,06/10/2022,4054227-INV70534,"3,237.63",RAMSIDE HALL HOTEL & GOLF CLUB.*
Regeneration Economy and Growth,Business Durham CL0850,Supplies and Services,338066,Services,06/10/2022,4054282-INV-0175,"8,051.00",TEDCO BUSINESS SUPPORT LTD.
Neighbourhoods and Climate Change,Technical Services CM0300,Supplies and Services,338066,Services,06/10/2022,4054317-700,516.00,WHORLTON LAND SURVEYS LTD.
Regeneration Economy and Growth,Culture Sport and Tourism,Supplies and Services,338047,Services,06/10/2022,4054185-INV149,"3,574.89",ONE NIGHT IN DUBLIN LTD.
Children and Young Peoples Services,Head of Education and Skills,Supplies and Services,338027,Services,06/10/2022,4053937-8/2022,"1,881.25",REDACTED - PAYMENT TO INDIVIDUAL
Neighbourhoods and Climate Change,Environmental Services,Supplies and Services,338066,Services,06/10/2022,4054284-RES-10-2022-044,758.93,THE FARMER NETWORK LTD.
Neighbourhoods and Climate Change,Environmental Services,Supplies and Services,338066,Services,06/10/2022,4054012-RES-10-2022-043,"4,077.41",CUMBRIA ACTION FOR SUSTAINABILITY.
Neighbourhoods and Climate Change,Environmental Services,Supplies and Services,338066,Services,06/10/2022,4053941-1266,"1,175.00",REDACTED - PAYMENT TO INDIVIDUAL
Neighbourhoods and Climate Change,Technical Services CM0300,Stock A926,926900,Stock in hand-Inventory system,06/10/2022,4054060-06/193550,"1,116.80",GREENHAM TRADING LTD.
Neighbourhoods and Climate Change,Technical Services CM0300,Stock A926,926900,Stock in hand-Inventory system,06/10/2022,4054116-0113/00757035,964.25,JT DOVE LTD.
Neighbourhoods and Climate Change,Technical Services CM0300,Stock A926,926900,Stock in hand-Inventory system,06/10/2022,4054287-NSIN00082333,922.20,THOMAS OWEN & SONS (NEWCASTLE) LTD.
Regeneration Economy and Growth,Culture Sport and Tourism,Supplies and Services,372009,Subscriptions E372,06/10/2022,4054003-SI-3553,"1,020.00",CORE BUSINESS SYSTEMS LTD T/A CASCADE 3D.
Neighbourhoods and Climate Change,Technical Services CM0300,Supplies and Services,372009,Subscriptions E372,06/10/2022,4054288-00096486,"2,365.00",THOMAS TELFORD LTD.
Regeneration Economy and Growth,Planning & Housing,Supplies and Services,336005,Advertising E336,07/10/2022,4054632-41075944,630.27,NEWSQUEST (YORKSHIRE & NORTH EAST) LTD.
Regeneration Economy and Growth,Planning & Housing,Supplies and Services,336005,Advertising E336,07/10/2022,4054709-16874,514.80,TEESDALE MERCURY LTD.
Children and Young Peoples Services,Head of Early Help Inclusion & Vulnerable Children.,Employees,080025,Agency Staff,07/10/2022,4054387-21923194,"2,966.16",BROOK STREET UK LTD T/A BS SOCIAL CARE.
Children and Young Peoples Services,Head of Early Help Inclusion & Vulnerable Children.,Employees,080025,Agency Staff,07/10/2022,4054387-21923195,"2,966.16",BROOK STREET UK LTD T/A BS SOCIAL CARE.
Children and Young Peoples Services,Head of Early Help Inclusion & Vulnerable Children.,Employees,080025,Agency Staff,07/10/2022,4054387-21923196,"2,966.16",BROOK STREET UK LTD T/A BS SOCIAL CARE.
Children and Young Peoples Services,Head of Early Help Inclusion & Vulnerable Children.,Employees,080025,Agency Staff,07/10/2022,4054387-21923197,"2,966.16",BROOK STREET UK LTD T/A BS SOCIAL CARE.
Children and Young Peoples Services,Head of Early Help Inclusion & Vulnerable Children.,Employees,080025,Agency Staff,07/10/2022,4054387-21923198,"2,966.16",BROOK STREET UK LTD T/A BS SOCIAL CARE.
Regeneration Economy and Growth,Culture Sport and Tourism,Premises,106082,Centrally Controlled Rep and Maint,07/10/2022,4054466-500921,600.00,FT LEISURE LTD.
Regeneration Economy and Growth,Culture Sport and Tourism,Premises,106082,Centrally Controlled Rep and Maint,07/10/2022,4054466-500922,"3,705.36",FT LEISURE LTD.
Regeneration Economy and Growth,Culture Sport and Tourism,Premises,106082,Centrally Controlled Rep and Maint,07/10/2022,4054466-500941,"2,931.32",FT LEISURE LTD.
Regeneration Economy and Growth,Business Durham CL0850,Premises,106082,Centrally Controlled Rep and Maint,07/10/2022,4054472-INV-1243,"18,375.35",GLENFIELD ENERGY SOLUTIONS LTD.
Neighbourhoods and Climate Change,Environmental Services,Premises,106082,Centrally Controlled Rep and Maint,07/10/2022,4054513-27059,"7,974.32",JC MAINTENANCE SERVICES LTD.
Regeneration Economy and Growth,Culture Sport and Tourism,Premises,106082,Centrally Controlled Rep and Maint,07/10/2022,4054727-DLA82781,523.00,TYCO FIRE & INTEGRATED SOLUTIONS (UK) LTD.
Neighbourhoods and Climate Change,Environmental Services,Premises,106083,Centrally Controlled Rep and Maint,07/10/2022,4054727-DLA83460,"6,340.00",TYCO FIRE & INTEGRATED SOLUTIONS (UK) LTD.
Regeneration Economy and Growth,Business Durham CL0850,Premises,106083,Centrally Controlled Rep and Maint,07/10/2022,4054498-2210716,"5,011.00",HYGIENIC CLEANING COMPANY (UK) LTD.
Regeneration Economy and Growth,Business Durham CL0850,Premises,106083,Centrally Controlled Rep and Maint,07/10/2022,4054498-2210717,"5,011.00",HYGIENIC CLEANING COMPANY (UK) LTD.
Regeneration Economy and Growth,Culture Sport and Tourism,Premises,145009,Cleaning and Domestic Supplies,07/10/2022,4054402-CN30212088,759.72,CITRON HYGIENE UK LTD.
Regeneration Economy and Growth,Culture Sport and Tourism,Premises,145023,Cleaning and Domestic Supplies,07/10/2022,4054653-96214050,"1,401.90",PHS GROUP PLC.
Neighbourhoods and Climate Change,Environmental Services,Supplies and Services,328041,Clothing uniforms and laundry E328,07/10/2022,4054520-1050000008595,521.27,JOHNSONS TEXTILE SERVICES LTD T/A JOHNSONS WORKWEAR.
Resources BK0010,Digital Services,Supplies and Services,342033,Computers and Communications,07/10/2022,4054426-7402854398,"1,348.05",DELL COMPUTER CORPORATION LTD.
Regeneration Economy and Growth,Culture Sport and Tourism,Construction work A908,908105,Construction work,07/10/2022,4054532-10296547,"1,030,969.10",KIER CONSTRUCTION LTD - SCOTLAND
Children and Young Peoples Services,Head of Education and Skills,Transport,230034,Contract Hire,07/10/2022,4054699-0013,"2,256.00",STARGATE TAXIS.
Children and Young Peoples Services,Head of Education and Skills,Transport,230005,Contract Hire,07/10/2022,4054735-18175,"2,930.00",WEARDALE MOTOR SERVICES LTD.
Adult and Health Services,Head of Adults,Transport,230005,Contract Hire,07/10/2022,4054349-00695,"1,340.00",REDACTED - PAYMENT TO INDIVIDUAL
Adult and Health Services,Head of Adults,Transport,230005,Contract Hire,07/10/2022,4054349-00697,"2,070.00",REDACTED - PAYMENT TO INDIVIDUAL
Children and Young Peoples Services,Head of Education and Skills,Transport,230016,Contract Hire,07/10/2022,4054349-00698,"2,848.00",REDACTED - PAYMENT TO INDIVIDUAL
Children and Young Peoples Services,Head of Education and Skills,Transport,230008,Contract Hire,07/10/2022,4054349-00702,"2,759.54",REDACTED - PAYMENT TO INDIVIDUAL
Children and Young Peoples Services,Head of Education and Skills,Transport,230006,Contract Hire,07/10/2022,4054349-00710,713.40,REDACTED - PAYMENT TO INDIVIDUAL
Children and Young Peoples Services,Head of Education and Skills,Transport,230006,Contract Hire,07/10/2022,4054349-00711,"2,654.40",REDACTED - PAYMENT TO INDIVIDUAL
Children and Young Peoples Services,Head of Education and Skills,Transport,230008,Contract Hire,07/10/2022,4054349-00712,"2,594.40",REDACTED - PAYMENT TO INDIVIDUAL
Children and Young Peoples Services,Head of Education and Skills,Transport,230010,Contract Hire,07/10/2022,4054349-00716,"3,064.18",REDACTED - PAYMENT TO INDIVIDUAL
Children and Young Peoples Services,Head of Education and Skills,Transport,230008,Contract Hire,07/10/2022,4054349-0696,"3,299.76",REDACTED - PAYMENT TO INDIVIDUAL
Adult and Health Services,Public Health CC0450,Third Party Payments,460802,Contract Payments,07/10/2022,4054414-3910020649,"30,258.00",COUNTY DURHAM & DARLINGTON NHS FOUNDATION TRUST (CDDFT).
Regeneration Economy and Growth,Business Durham CL0850,Premises,120009,Energy Costs,07/10/2022,4054638-IN03447322.,976.41,NPOWER.
Regeneration Economy and Growth,Business Durham CL0850,Premises,120009,Energy Costs,07/10/2022,4054638-IN03447325.,"1,131.13",NPOWER.
Regeneration Economy and Growth,Culture Sport and Tourism,Supplies and Services,304359,Equipment and Materials,07/10/2022,4054373-BMPR/1002/SKIPS,700.00,BISHOP MIDDLEHAM PLANT & RECYCLING LTD.
Children and Young Peoples Services,Head of Early Help Inclusion & Vulnerable Children.,Supplies and Services,304359,Equipment and Materials,07/10/2022,4054373-BMPR/1003/SKIPS,700.00,BISHOP MIDDLEHAM PLANT & RECYCLING LTD.
Regeneration Economy and Growth,Culture Sport and Tourism,Supplies and Services,304359,Equipment and Materials,07/10/2022,4054373-BMPR/995/SKIPS,700.00,BISHOP MIDDLEHAM PLANT & RECYCLING LTD.
Neighbourhoods and Climate Change,Technical Services CM0300,Supplies and Services,304221,Equipment and Materials,07/10/2022,4054385-20913341,"6,536.75",BREEDON TRADING LTD.
Regeneration Economy and Growth,Corporate Property and Land,Supplies and Services,304221,Equipment and Materials,07/10/2022,4054443-059-304608,562.78,EDMUNDSON ELECTRICAL LTD.
Regeneration Economy and Growth,Corporate Property and Land,Supplies and Services,304221,Equipment and Materials,07/10/2022,4054443-059-304844,"1,348.07",EDMUNDSON ELECTRICAL LTD.
Regeneration Economy and Growth,Culture Sport and Tourism,Supplies and Services,304259,Equipment and Materials,07/10/2022,4054478-INV-5327,"1,607.50",GYM TECH NORTH EAST.
Neighbourhoods and Climate Change,Technical Services CM0300,Supplies and Services,304221,Equipment and Materials,07/10/2022,4054488-I00002092,"1,520.00",HOBEN INTERNATIONAL LTD.
Regeneration Economy and Growth,Corporate Property and Land,Supplies and Services,304259,Equipment and Materials,07/10/2022,4054500-SI-00172272,903.45,ID CARD CENTRE LTD.
Regeneration Economy and Growth,Corporate Property and Land,Supplies and Services,304221,Equipment and Materials,07/10/2022,4054523-0113/00669455,"1,009.29",JT DOVE LTD.
Regeneration Economy and Growth,Corporate Property and Land,Supplies and Services,304221,Equipment and Materials,07/10/2022,4054523-0213/00759433,696.32,JT DOVE LTD.
Neighbourhoods and Climate Change,Technical Services CM0300,Supplies and Services,304221,Equipment and Materials,07/10/2022,4054551-Z001382546,"1,503.72",MARSHALLS MONO LTD.
Neighbourhoods and Climate Change,Technical Services CM0300,Supplies and Services,304221,Equipment and Materials,07/10/2022,4054551-Z001393487,"2,568.48",MARSHALLS MONO LTD.
Neighbourhoods and Climate Change,Technical Services CM0300,Supplies and Services,304221,Equipment and Materials,07/10/2022,4054708-9045928475,502.98,TARMAC TRADING LTD.
Regeneration Economy and Growth,Planning & Housing,Supplies and Services,304245,Equipment and Materials,07/10/2022,4054726-3IN/10395969,"1,090.00",TUNSTALL HEALTHCARE (UK) LTD.
Regeneration Economy and Growth,Corporate Property and Land,Cap Exp on Grants & Other Financial Assistance (REFCUS),918501,Exp assets not owned by authority,07/10/2022,4054635-4100786835,500.00,NORTH EAST BUS PRESERVATION TRUST LTD (NEBPT).
Regeneration Economy and Growth,Planning & Housing,Supplies and Services,384999,Miscellaneous Expenses,07/10/2022,4054361-RINV/00003033,"2,298.09",BELIEVE HOUSING LTD.
Adult and Health Services,Head of Adults,Supplies and Services,384616,Miscellaneous Expenses,07/10/2022,4054364-06/2223/MULB3,604.76,BERNICIA GROUP LTD.*
Adult and Health Services,Head of Adults,Supplies and Services,384616,Miscellaneous Expenses,07/10/2022,4054364-6/2223/DEALO,812.68,BERNICIA GROUP LTD.*
Adult and Health Services,Head of Adults,Supplies and Services,384616,Miscellaneous Expenses,07/10/2022,4054364-6/2223/RUSHG,970.00,BERNICIA GROUP LTD.*
Regeneration Economy and Growth,Culture Sport and Tourism,Supplies and Services,384199,Miscellaneous Expenses,07/10/2022,4054541-INV-1201,"1,000.00",LEE DOBSON PHOTOGRAPHY LTD.
Resources BK0010,HR & Employee Services,Supplies and Services,384150,Miscellaneous Expenses,07/10/2022,4054527-0000365493,"1,500.00",KAYS MEDICAL LTD.
Regeneration Economy and Growth,Culture Sport and Tourism,Supplies and Services,384302,Miscellaneous Expenses,07/10/2022,4054647-28092022,750.00,REDACTED - PAYMENT TO INDIVIDUAL
Children and Young Peoples Services,Head of Early Help Inclusion & Vulnerable Children.,Supplies and Services,384302,Miscellaneous Expenses,07/10/2022,4054678-00062,520.00,REDACTED - PAYMENT TO INDIVIDUAL
Children and Young Peoples Services,Head of Education and Skills,Supplies and Services,312009,Newspapers books and periodicals E312,07/10/2022,4054354-6737980,660.36,ASKEWS & HOLTS LIBRARY SERVICES LTD.
Children and Young Peoples Services,Head of Education and Skills,Supplies and Services,312009,Newspapers books and periodicals E312,07/10/2022,4054652-1934759,554.20,PETERS LTD.
Dedicated Schools Grant BG0015,DSG High Needs Block,Third Party Payments,440080,Other third party payments E440,07/10/2022,4054436-SEPTEMBER2022TOPUP,"1,559.00",EAST DURHAM COLLEGE.
Dedicated Schools Grant BG0015,DSG High Needs Block,Third Party Payments,440080,Other third party payments E440,07/10/2022,4054667-SEPTEMBER2022TOPUP,"8,520.00",REAL CARE LTD.
Children and Young Peoples Services,Head of Education and Skills,Third Party Payments,440999,Other third party payments E440,07/10/2022,4054681-KICK5044718INVOICE000925,746.52,SELF MADE STUDIOS CIC.
Resources BK0010,Legal & Democratic Services,Supplies and Services,340001,Postages E340,07/10/2022,4054333-PSI0204795,901.02,ADARE SEC LTD.
Resources BK0010,Legal & Democratic Services,Supplies and Services,340001,Postages E340,07/10/2022,4054333-PSI0204797,"5,672.37",ADARE SEC LTD.
Adult and Health Services,Head of Adults,Third Party Payments,478151,Purchase of Care,07/10/2022,4054450-16APERIOD5,"1,017.55",EMBRACING CARE.
Adult and Health Services,Head of Adults,Third Party Payments,478151,Purchase of Care,07/10/2022,4054450-16APERIOD6,"1,017.55",EMBRACING CARE.
Adult and Health Services,Head of Adults,Third Party Payments,478151,Purchase of Care,07/10/2022,4054450-16BPERIOD06,"1,017.55",EMBRACING CARE.
Adult and Health Services,Head of Adults,Third Party Payments,478151,Purchase of Care,07/10/2022,4054450-16BPERIOD5,"1,017.55",EMBRACING CARE.
Adult and Health Services,Head of Adults,Third Party Payments,478151,Purchase of Care,07/10/2022,4054450-BURNHALLDRIVEP5,"2,723.84",EMBRACING CARE.
Adult and Health Services,Head of Adults,Third Party Payments,478151,Purchase of Care,07/10/2022,4054450-BURNHALLDRIVEP6,"2,723.84",EMBRACING CARE.
Adult and Health Services,Head of Adults,Third Party Payments,478151,Purchase of Care,07/10/2022,4054450-COURTYARDP5,"2,195.87",EMBRACING CARE.
Adult and Health Services,Head of Adults,Third Party Payments,478151,Purchase of Care,07/10/2022,4054450-COURTYARDP6,"2,195.87",EMBRACING CARE.
Adult and Health Services,Head of Adults,Third Party Payments,478151,Purchase of Care,07/10/2022,4054450-EASTFIELDSP5VOID2,"2,235.72",EMBRACING CARE.
Adult and Health Services,Head of Adults,Third Party Payments,478151,Purchase of Care,07/10/2022,4054450-EASTFIELDSP6,"2,235.72",EMBRACING CARE.
Adult and Health Services,Head of Adults,Third Party Payments,478151,Purchase of Care,07/10/2022,4054450-ETHERLEY-P5,"2,251.79",EMBRACING CARE.
Adult and Health Services,Head of Adults,Third Party Payments,478151,Purchase of Care,07/10/2022,4054450-ETHERLEYP6,"2,251.79",EMBRACING CARE.
Adult and Health Services,Head of Adults,Third Party Payments,478151,Purchase of Care,07/10/2022,4054450-FLAT12BP6,"1,017.55",EMBRACING CARE.
Adult and Health Services,Head of Adults,Third Party Payments,478151,Purchase of Care,07/10/2022,4054450-JENNADRIVEP5,"2,171.44",EMBRACING CARE.
Adult and Health Services,Head of Adults,Third Party Payments,478151,Purchase of Care,07/10/2022,4054450-JENNADRIVEP6,"2,171.44",EMBRACING CARE.
Adult and Health Services,Head of Adults,Third Party Payments,478151,Purchase of Care,07/10/2022,4054450-MURRAYRDP6,"1,047.28",EMBRACING CARE.
